Body Name,Transaction Number,Account Code Description,Expenses Type,Service Code,Service Area Categorisation,Supplier Name,Date,Amount
Bath & North East Somerset Council,80420593,LM8,Home Care,P03,Wellbeing,ACTIVE ASSISTANCE,02/01/2015,1300
Bath & North East Somerset Council,80420628,LM8,Home Care,P03,Wellbeing,AGINCARE LIVE IN CARE SERVICES LTD,02/01/2015,0.06
Bath & North East Somerset Council,80420629,LM8,Home Care,P03,Wellbeing,AGINCARE LIVE IN CARE SERVICES LTD,02/01/2015,0.06
Bath & North East Somerset Council,80420630,LM8,Home Care,P03,Wellbeing,AGINCARE LIVE IN CARE SERVICES LTD,02/01/2015,700
Bath & North East Somerset Council,80420630,LM8,Home Care,P03,Wellbeing,AGINCARE LIVE IN CARE SERVICES LTD,02/01/2015,700
Bath & North East Somerset Council,80420628,LM8,Home Care,P03,Wellbeing,AGINCARE LIVE IN CARE SERVICES LTD,02/01/2015,765
Bath & North East Somerset Council,80420628,LM8,Home Care,P03,Wellbeing,AGINCARE LIVE IN CARE SERVICES LTD,02/01/2015,765
Bath & North East Somerset Council,80420629,LM8,Home Care,P03,Wellbeing,AGINCARE LIVE IN CARE SERVICES LTD,02/01/2015,765
Bath & North East Somerset Council,80420629,LM8,Home Care,P03,Wellbeing,AGINCARE LIVE IN CARE SERVICES LTD,02/01/2015,765
Bath & North East Somerset Council,80420641,LL3,Supported Living,P03,Wellbeing,ALLIED CARE [SUPPORTED LIVING] LTD,02/01/2015,686
Bath & North East Somerset Council,80420641,LL3,Supported Living,P03,Wellbeing,ALLIED CARE [SUPPORTED LIVING] LTD,02/01/2015,686
Bath & North East Somerset Council,80420641,LL3,Supported Living,P03,Wellbeing,ALLIED CARE [SUPPORTED LIVING] LTD,02/01/2015,686
Bath & North East Somerset Council,80420641,LL3,Supported Living,P03,Wellbeing,ALLIED CARE [SUPPORTED LIVING] LTD,02/01/2015,686
Bath & North East Somerset Council,10762738,LJ4,Contracts,P01,Transport,RIVERSIDE TAXIS,02/01/2015,36
Bath & North East Somerset Council,10762136,LW9,Other Expenses,P04,Leader,CYCLESCHEME LTD,02/01/2015,69.99
Bath & North East Somerset Council,10762130,HA4,Responsive Maintenance PCB,P07,Community Resources,N K S CONTRACTS LTD,02/01/2015,82.5
Bath & North East Somerset Council,80420631,LM8,Home Care,P03,Wellbeing,BLUEBIRD CARE (BATH),02/01/2015,273.8
Bath & North East Somerset Council,80420631,LM8,Home Care,P03,Wellbeing,BLUEBIRD CARE (BATH),02/01/2015,273.8
Bath & North East Somerset Council,80420623,LM8,Home Care,P03,Wellbeing,BUTTERFLY HOME HELP,02/01/2015,8.12
Bath & North East Somerset Council,80420588,LM8,Home Care,P03,Wellbeing,BUTTERFLY HOME HELP,02/01/2015,336
Bath & North East Somerset Council,80420588,LM8,Home Care,P03,Wellbeing,BUTTERFLY HOME HELP,02/01/2015,336
Bath & North East Somerset Council,80420588,LM8,Home Care,P03,Wellbeing,BUTTERFLY HOME HELP,02/01/2015,336
Bath & North East Somerset Council,80420588,LM8,Home Care,P03,Wellbeing,BUTTERFLY HOME HELP,02/01/2015,336
Bath & North East Somerset Council,80420623,LM8,Home Care,P03,Wellbeing,BUTTERFLY HOME HELP,02/01/2015,388.31
Bath & North East Somerset Council,80420623,LM8,Home Care,P03,Wellbeing,BUTTERFLY HOME HELP,02/01/2015,388.31
Bath & North East Somerset Council,80420623,LM8,Home Care,P03,Wellbeing,BUTTERFLY HOME HELP,02/01/2015,388.31
Bath & North East Somerset Council,80420623,LM8,Home Care,P03,Wellbeing,BUTTERFLY HOME HELP,02/01/2015,388.31
Bath & North East Somerset Council,80420587,LM8,Home Care,P03,Wellbeing,BUTTERFLY HOME HELP,02/01/2015,672
Bath & North East Somerset Council,80420587,LM8,Home Care,P03,Wellbeing,BUTTERFLY HOME HELP,02/01/2015,672
Bath & North East Somerset Council,80420589,LM8,Home Care,P03,Wellbeing,BUTTERFLY HOME HELP,02/01/2015,1547
Bath & North East Somerset Council,80420589,LM8,Home Care,P03,Wellbeing,BUTTERFLY HOME HELP,02/01/2015,1547
Bath & North East Somerset Council,80420589,LM8,Home Care,P03,Wellbeing,BUTTERFLY HOME HELP,02/01/2015,1547
Bath & North East Somerset Council,80420588,LM8,Home Care,P03,Wellbeing,BUTTERFLY HOME HELP,02/01/2015,1848
Bath & North East Somerset Council,80420588,LM8,Home Care,P03,Wellbeing,BUTTERFLY HOME HELP,02/01/2015,1848
Bath & North East Somerset Council,80420599,LM9,Day Care,P03,Wellbeing,CARE FUTURES,02/01/2015,171
Bath & North East Somerset Council,80420599,LM9,Day Care,P03,Wellbeing,CARE FUTURES,02/01/2015,171
Bath & North East Somerset Council,80420599,LM9,Day Care,P03,Wellbeing,CARE FUTURES,02/01/2015,171
Bath & North East Somerset Council,80420599,LM9,Day Care,P03,Wellbeing,CARE FUTURES,02/01/2015,171
Bath & North East Somerset Council,80420599,LM9,Day Care,P03,Wellbeing,CARE FUTURES,02/01/2015,171
Bath & North East Somerset Council,80420598,LM9,Day Care,P03,Wellbeing,CARE FUTURES,02/01/2015,310
Bath & North East Somerset Council,80420598,LM9,Day Care,P03,Wellbeing,CARE FUTURES,02/01/2015,310
Bath & North East Somerset Council,80420598,LM9,Day Care,P03,Wellbeing,CARE FUTURES,02/01/2015,310
Bath & North East Somerset Council,80420598,LM9,Day Care,P03,Wellbeing,CARE FUTURES,02/01/2015,310
Bath & North East Somerset Council,80420598,LM9,Day Care,P03,Wellbeing,CARE FUTURES,02/01/2015,310
Bath & North East Somerset Council,80420600,LM9,Day Care,P03,Wellbeing,CARE FUTURES,02/01/2015,435
Bath & North East Somerset Council,80420600,LM9,Day Care,P03,Wellbeing,CARE FUTURES,02/01/2015,435
Bath & North East Somerset Council,80420600,LM9,Day Care,P03,Wellbeing,CARE FUTURES,02/01/2015,435
Bath & North East Somerset Council,80420600,LM9,Day Care,P03,Wellbeing,CARE FUTURES,02/01/2015,435
Bath & North East Somerset Council,80420600,LM9,Day Care,P03,Wellbeing,CARE FUTURES,02/01/2015,435
Bath & North East Somerset Council,80420581,LM8,Home Care,P03,Wellbeing,CARE SOUTH,02/01/2015,34.68
Bath & North East Somerset Council,80420580,LM8,Home Care,P03,Wellbeing,CARE SOUTH,02/01/2015,69.36
Bath & North East Somerset Council,80420578,LM8,Home Care,P03,Wellbeing,CARE SOUTH,02/01/2015,69.44
Bath & North East Somerset Council,80420577,LM8,Home Care,P03,Wellbeing,CARE SOUTH,02/01/2015,86.7
Bath & North East Somerset Council,80420578,LM8,Home Care,P03,Wellbeing,CARE SOUTH,02/01/2015,104.04
Bath & North East Somerset Council,80420581,LM8,Home Care,P03,Wellbeing,CARE SOUTH,02/01/2015,121.38
Bath & North East Somerset Council,80420581,LM8,Home Care,P03,Wellbeing,CARE SOUTH,02/01/2015,121.38
Bath & North East Somerset Council,80420581,LM8,Home Care,P03,Wellbeing,CARE SOUTH,02/01/2015,121.38
Bath & North East Somerset Council,80420581,LM8,Home Care,P03,Wellbeing,CARE SOUTH,02/01/2015,121.38
Bath & North East Somerset Council,80420577,LM8,Home Care,P03,Wellbeing,CARE SOUTH,02/01/2015,182.07
Bath & North East Somerset Council,80420577,LM8,Home Care,P03,Wellbeing,CARE SOUTH,02/01/2015,182.07
Bath & North East Somerset Council,80420577,LM8,Home Care,P03,Wellbeing,CARE SOUTH,02/01/2015,182.07
Bath & North East Somerset Council,80420577,LM8,Home Care,P03,Wellbeing,CARE SOUTH,02/01/2015,182.07
Bath & North East Somerset Council,80420578,LM8,Home Care,P03,Wellbeing,CARE SOUTH,02/01/2015,208.08
Bath & North East Somerset Council,80420578,LM8,Home Care,P03,Wellbeing,CARE SOUTH,02/01/2015,242.76
Bath & North East Somerset Council,80420578,LM8,Home Care,P03,Wellbeing,CARE SOUTH,02/01/2015,242.76
Bath & North East Somerset Council,80420580,LM8,Home Care,P03,Wellbeing,CARE SOUTH,02/01/2015,242.76
Bath & North East Somerset Council,80420580,LM8,Home Care,P03,Wellbeing,CARE SOUTH,02/01/2015,242.76
Bath & North East Somerset Council,80420580,LM8,Home Care,P03,Wellbeing,CARE SOUTH,02/01/2015,242.76
Bath & North East Somerset Council,80420580,LM8,Home Care,P03,Wellbeing,CARE SOUTH,02/01/2015,242.76
Bath & North East Somerset Council,80420578,LM8,Home Care,P03,Wellbeing,CARE SOUTH,02/01/2015,364.14
Bath & North East Somerset Council,80420586,LM8,Home Care,P03,Wellbeing,COMPLETE CARE HOLDINGS LIMITED,02/01/2015,1960.11
Bath & North East Somerset Council,80420586,LM8,Home Care,P03,Wellbeing,COMPLETE CARE HOLDINGS LIMITED,02/01/2015,5418.48
Bath & North East Somerset Council,80420586,LM8,Home Care,P03,Wellbeing,COMPLETE CARE HOLDINGS LIMITED,02/01/2015,5418.48
Bath & North East Somerset Council,80420586,LM8,Home Care,P03,Wellbeing,COMPLETE CARE HOLDINGS LIMITED,02/01/2015,5418.48
Bath & North East Somerset Council,80420586,LM8,Home Care,P03,Wellbeing,COMPLETE CARE HOLDINGS LIMITED,02/01/2015,5418.48
Bath & North East Somerset Council,80420688,LM9,Day Care,P03,Wellbeing,CULVERHAY NURSING HOME,02/01/2015,120
Bath & North East Somerset Council,80420688,LM9,Day Care,P03,Wellbeing,CULVERHAY NURSING HOME,02/01/2015,280
Bath & North East Somerset Council,80420688,LM9,Day Care,P03,Wellbeing,CULVERHAY NURSING HOME,02/01/2015,280
Bath & North East Somerset Council,80420688,LM9,Day Care,P03,Wellbeing,CULVERHAY NURSING HOME,02/01/2015,280
Bath & North East Somerset Council,80420688,LM9,Day Care,P03,Wellbeing,CULVERHAY NURSING HOME,02/01/2015,280
Bath & North East Somerset Council,80420750,PG1,Rent Allowances,P07,Community Resources,CURO,02/01/2015,1000
Bath & North East Somerset Council,80420757,PG1,Rent Allowances,P07,Community Resources,CURO,02/01/2015,17311.95
Bath & North East Somerset Council,80420754,PG1,Rent Allowances,P07,Community Resources,CURO,02/01/2015,78832.21
Bath & North East Somerset Council,10762743,LL3,Supported Living,P03,Wellbeing,REDACTED,02/01/2015,1550
Bath & North East Somerset Council,10762738,LJ4,Contracts,P01,Transport,RIVERSIDE TAXIS,02/01/2015,280
Bath & North East Somerset Council,80420602,LM9,Day Care,P03,Wellbeing,DIMENSIONS (UK) LTD,02/01/2015,176.7
Bath & North East Somerset Council,80420602,LM9,Day Care,P03,Wellbeing,DIMENSIONS (UK) LTD,02/01/2015,176.7
Bath & North East Somerset Council,80420602,LM9,Day Care,P03,Wellbeing,DIMENSIONS (UK) LTD,02/01/2015,176.7
Bath & North East Somerset Council,80420602,LM9,Day Care,P03,Wellbeing,DIMENSIONS (UK) LTD,02/01/2015,176.7
Bath & North East Somerset Council,80420705,LL3,Supported Living,P03,Wellbeing,DIMENSIONS (UK) LTD,02/01/2015,176.7
Bath & North East Somerset Council,80420705,LL3,Supported Living,P03,Wellbeing,DIMENSIONS (UK) LTD,02/01/2015,176.7
Bath & North East Somerset Council,80420705,LL3,Supported Living,P03,Wellbeing,DIMENSIONS (UK) LTD,02/01/2015,176.7
Bath & North East Somerset Council,80420705,LL3,Supported Living,P03,Wellbeing,DIMENSIONS (UK) LTD,02/01/2015,176.7
Bath & North East Somerset Council,10762117,HA4,Responsive Maintenance PCB,P07,Community Resources,N K S CONTRACTS LTD,02/01/2015,322.81
Bath & North East Somerset Council,80420708,LL3,Supported Living,P03,Wellbeing,DIMENSIONS (UK) LTD,02/01/2015,217
Bath & North East Somerset Council,80420708,LL3,Supported Living,P03,Wellbeing,DIMENSIONS (UK) LTD,02/01/2015,217
Bath & North East Somerset Council,80420708,LL3,Supported Living,P03,Wellbeing,DIMENSIONS (UK) LTD,02/01/2015,217
Bath & North East Somerset Council,80420708,LL3,Supported Living,P03,Wellbeing,DIMENSIONS (UK) LTD,02/01/2015,217
Bath & North East Somerset Council,10762502,DB1,Agency Staff,P01,Transport,MINIBUS TRAVEL,02/01/2015,350
Bath & North East Somerset Council,10762117,HA4,Responsive Maintenance PCB,P07,Community Resources,N K S CONTRACTS LTD,02/01/2015,362.08
Bath & North East Somerset Council,10762738,LJ4,Contracts,P01,Transport,RIVERSIDE TAXIS,02/01/2015,375
Bath & North East Somerset Council,10762117,HA4,Responsive Maintenance PCB,P07,Community Resources,N K S CONTRACTS LTD,02/01/2015,407.81
Bath & North East Somerset Council,10762117,HA4,Responsive Maintenance PCB,P07,Community Resources,N K S CONTRACTS LTD,02/01/2015,433.41
Bath & North East Somerset Council,10762710,LE1,Education Payment (independent school),P02,"Early Years, Children & Youth",EXETER ROYAL ACADEMY FOR DEAF EDUCATION,02/01/2015,15314.75
Bath & North East Somerset Council,80420601,LM9,Day Care,P03,Wellbeing,FREEWAYS TRUST LTD,02/01/2015,341.8
Bath & North East Somerset Council,80420601,LM9,Day Care,P03,Wellbeing,FREEWAYS TRUST LTD,02/01/2015,341.8
Bath & North East Somerset Council,80420601,LM9,Day Care,P03,Wellbeing,FREEWAYS TRUST LTD,02/01/2015,341.8
Bath & North East Somerset Council,80420601,LM9,Day Care,P03,Wellbeing,FREEWAYS TRUST LTD,02/01/2015,341.8
Bath & North East Somerset Council,10762451,LA1,Equipment Purchase (Non Medical),P03,Wellbeing,DRIVE MEDICAL LTD,02/01/2015,450
Bath & North East Somerset Council,10762579,LJ4,Contracts,P05,Neighbourhoods,H F VEALE & SONS,02/01/2015,453.86
Bath & North East Somerset Council,10762584,LL3,Supported Living,P03,Wellbeing,HIGHTOWN PRAETORIAN & CHURCHES HOUSING ASSOC,02/01/2015,513.28
Bath & North East Somerset Council,80420733,LL3,Supported Living,P03,Wellbeing,HOME FARM TRUST,02/01/2015,699.88
Bath & North East Somerset Council,80420733,LL3,Supported Living,P03,Wellbeing,HOME FARM TRUST,02/01/2015,699.88
Bath & North East Somerset Council,80420733,LL3,Supported Living,P03,Wellbeing,HOME FARM TRUST,02/01/2015,699.88
Bath & North East Somerset Council,80420733,LL3,Supported Living,P03,Wellbeing,HOME FARM TRUST,02/01/2015,699.88
Bath & North East Somerset Council,80420735,LL3,Supported Living,P03,Wellbeing,HOME FARM TRUST,02/01/2015,1204.59
Bath & North East Somerset Council,80420735,LL3,Supported Living,P03,Wellbeing,HOME FARM TRUST,02/01/2015,1204.59
Bath & North East Somerset Council,80420735,LL3,Supported Living,P03,Wellbeing,HOME FARM TRUST,02/01/2015,1204.59
Bath & North East Somerset Council,80420735,LL3,Supported Living,P03,Wellbeing,HOME FARM TRUST,02/01/2015,1204.59
Bath & North East Somerset Council,80420734,LL3,Supported Living,P03,Wellbeing,HOME FARM TRUST,02/01/2015,1632.89
Bath & North East Somerset Council,80420734,LL3,Supported Living,P03,Wellbeing,HOME FARM TRUST,02/01/2015,1632.89
Bath & North East Somerset Council,80420734,LL3,Supported Living,P03,Wellbeing,HOME FARM TRUST,02/01/2015,1632.89
Bath & North East Somerset Council,80420734,LL3,Supported Living,P03,Wellbeing,HOME FARM TRUST,02/01/2015,1632.89
Bath & North East Somerset Council,80420542,LM8,Home Care,P03,Wellbeing,KUMARI HOMECARE SERVICE,02/01/2015,0.01
Bath & North East Somerset Council,80420551,LM8,Home Care,P03,Wellbeing,KUMARI HOMECARE SERVICE,02/01/2015,0.01
Bath & North East Somerset Council,80420561,LM8,Home Care,P03,Wellbeing,KUMARI HOMECARE SERVICE,02/01/2015,0.01
Bath & North East Somerset Council,80420536,LM8,Home Care,P03,Wellbeing,KUMARI HOMECARE SERVICE,02/01/2015,16.84
Bath & North East Somerset Council,80420538,LM8,Home Care,P03,Wellbeing,KUMARI HOMECARE SERVICE,02/01/2015,55.84
Bath & North East Somerset Council,80420548,LM8,Home Care,P03,Wellbeing,KUMARI HOMECARE SERVICE,02/01/2015,55.84
Bath & North East Somerset Council,80420558,LM8,Home Care,P03,Wellbeing,KUMARI HOMECARE SERVICE,02/01/2015,55.84
Bath & North East Somerset Council,80420536,LM8,Home Care,P03,Wellbeing,KUMARI HOMECARE SERVICE,02/01/2015,94.25
Bath & North East Somerset Council,80420536,LM8,Home Care,P03,Wellbeing,KUMARI HOMECARE SERVICE,02/01/2015,94.25
Bath & North East Somerset Council,80420538,LM8,Home Care,P03,Wellbeing,KUMARI HOMECARE SERVICE,02/01/2015,117.88
Bath & North East Somerset Council,80420548,LM8,Home Care,P03,Wellbeing,KUMARI HOMECARE SERVICE,02/01/2015,117.88
Bath & North East Somerset Council,80420558,LM8,Home Care,P03,Wellbeing,KUMARI HOMECARE SERVICE,02/01/2015,117.88
Bath & North East Somerset Council,80420536,LM8,Home Care,P03,Wellbeing,KUMARI HOMECARE SERVICE,02/01/2015,188.5
Bath & North East Somerset Council,80420536,LM8,Home Care,P03,Wellbeing,KUMARI HOMECARE SERVICE,02/01/2015,303.12
Bath & North East Somerset Council,80420538,LM8,Home Care,P03,Wellbeing,KUMARI HOMECARE SERVICE,02/01/2015,394.88
Bath & North East Somerset Council,80420548,LM8,Home Care,P03,Wellbeing,KUMARI HOMECARE SERVICE,02/01/2015,394.88
Bath & North East Somerset Council,80420558,LM8,Home Care,P03,Wellbeing,KUMARI HOMECARE SERVICE,02/01/2015,394.88
Bath & North East Somerset Council,80420544,LM8,Home Care,P03,Wellbeing,KUMARI HOMECARE SERVICE,02/01/2015,471.25
Bath & North East Somerset Council,80420544,LM8,Home Care,P03,Wellbeing,KUMARI HOMECARE SERVICE,02/01/2015,471.25
Bath & North East Somerset Council,80420543,LM8,Home Care,P03,Wellbeing,KUMARI HOMECARE SERVICE,02/01/2015,558.4
Bath & North East Somerset Council,80420552,LM8,Home Care,P03,Wellbeing,KUMARI HOMECARE SERVICE,02/01/2015,558.4
Bath & North East Somerset Council,80420684,LM8,Home Care,P03,Wellbeing,KUMARI HOMECARE SERVICE,02/01/2015,659.75
Bath & North East Somerset Council,80420695,LM8,Home Care,P03,Wellbeing,KUMARI HOMECARE SERVICE,02/01/2015,659.75
Bath & North East Somerset Council,80420542,LM8,Home Care,P03,Wellbeing,KUMARI HOMECARE SERVICE,02/01/2015,804.92
Bath & North East Somerset Council,80420551,LM8,Home Care,P03,Wellbeing,KUMARI HOMECARE SERVICE,02/01/2015,804.92
Bath & North East Somerset Council,80420561,LM8,Home Care,P03,Wellbeing,KUMARI HOMECARE SERVICE,02/01/2015,804.92
Bath & North East Somerset Council,80420540,LM8,Home Care,P03,Wellbeing,KUMARI HOMECARE SERVICE,02/01/2015,804.93
Bath & North East Somerset Council,80420549,LM8,Home Care,P03,Wellbeing,KUMARI HOMECARE SERVICE,02/01/2015,804.93
Bath & North East Somerset Council,80420559,LM8,Home Care,P03,Wellbeing,KUMARI HOMECARE SERVICE,02/01/2015,804.93
Bath & North East Somerset Council,10760796,KB1,Hire of Vehicles,P05,Neighbourhoods,ROBERTS (BATH) LTD,02/01/2015,546.7
Bath & North East Somerset Council,80420667,LL3,Supported Living,P03,Wellbeing,NATIONAL AUTISTIC SOCIETY,02/01/2015,5.4
Bath & North East Somerset Council,80420667,LL3,Supported Living,P03,Wellbeing,NATIONAL AUTISTIC SOCIETY,02/01/2015,2833.19
Bath & North East Somerset Council,80420667,LL3,Supported Living,P03,Wellbeing,NATIONAL AUTISTIC SOCIETY,02/01/2015,2833.19
Bath & North East Somerset Council,80420667,LL3,Supported Living,P03,Wellbeing,NATIONAL AUTISTIC SOCIETY,02/01/2015,2833.19
Bath & North East Somerset Council,80420667,LL3,Supported Living,P03,Wellbeing,NATIONAL AUTISTIC SOCIETY,02/01/2015,2833.19
Bath & North East Somerset Council,80420594,LM8,Home Care,P03,Wellbeing,NETWORK VENTURES LTD,02/01/2015,53.5
Bath & North East Somerset Council,80420594,LM8,Home Care,P03,Wellbeing,NETWORK VENTURES LTD,02/01/2015,53.5
Bath & North East Somerset Council,80420594,LM8,Home Care,P03,Wellbeing,NETWORK VENTURES LTD,02/01/2015,53.5
Bath & North East Somerset Council,80420594,LM8,Home Care,P03,Wellbeing,NETWORK VENTURES LTD,02/01/2015,53.5
Bath & North East Somerset Council,80420594,LM8,Home Care,P03,Wellbeing,NETWORK VENTURES LTD,02/01/2015,315
Bath & North East Somerset Council,80420594,LM8,Home Care,P03,Wellbeing,NETWORK VENTURES LTD,02/01/2015,315
Bath & North East Somerset Council,10762117,HA4,Responsive Maintenance PCB,P07,Community Resources,N K S CONTRACTS LTD,02/01/2015,687.47
Bath & North East Somerset Council,10762541,LJ4,Contracts,P01,Transport,R E & V P JEFFRIES,02/01/2015,705
Bath & North East Somerset Council,10762670,LJ2,Legal Fees,P05,Neighbourhoods,BEVAN BRITTAN,02/01/2015,710
Bath & North East Somerset Council,80420609,YF2,Fees & Charges,P03,Wellbeing,PHOENIX (SW) LTD,02/01/2015,5.11
Bath & North East Somerset Council,10762184,LA1,Equipment Purchase (Non Medical),P03,Wellbeing,PATTERSON MEDICAL LTD,02/01/2015,725
Bath & North East Somerset Council,80420609,LL8,Individualised Budget,P03,Wellbeing,PHOENIX (SW) LTD,02/01/2015,41.86
Bath & North East Somerset Council,80420609,LL8,Individualised Budget,P03,Wellbeing,PHOENIX (SW) LTD,02/01/2015,41.86
Bath & North East Somerset Council,80420609,LL8,Individualised Budget,P03,Wellbeing,PHOENIX (SW) LTD,02/01/2015,42.61
Bath & North East Somerset Council,80420609,LL8,Individualised Budget,P03,Wellbeing,PHOENIX (SW) LTD,02/01/2015,42.61
Bath & North East Somerset Council,80420609,LL8,Individualised Budget,P03,Wellbeing,PHOENIX (SW) LTD,02/01/2015,47.7
Bath & North East Somerset Council,80420609,LL8,Individualised Budget,P03,Wellbeing,PHOENIX (SW) LTD,02/01/2015,59.75
Bath & North East Somerset Council,80420609,LL8,Individualised Budget,P03,Wellbeing,PHOENIX (SW) LTD,02/01/2015,59.75
Bath & North East Somerset Council,80420609,LL8,Individualised Budget,P03,Wellbeing,PHOENIX (SW) LTD,02/01/2015,66.3
Bath & North East Somerset Council,80420609,LL8,Individualised Budget,P03,Wellbeing,PHOENIX (SW) LTD,02/01/2015,66.3
Bath & North East Somerset Council,80420609,LL8,Individualised Budget,P03,Wellbeing,PHOENIX (SW) LTD,02/01/2015,66.78
Bath & North East Somerset Council,80420609,LL8,Individualised Budget,P03,Wellbeing,PHOENIX (SW) LTD,02/01/2015,66.78
Bath & North East Somerset Council,80420609,LL8,Individualised Budget,P03,Wellbeing,PHOENIX (SW) LTD,02/01/2015,73
Bath & North East Somerset Council,80420609,LL8,Individualised Budget,P03,Wellbeing,PHOENIX (SW) LTD,02/01/2015,73
Bath & North East Somerset Council,80420609,LL8,Individualised Budget,P03,Wellbeing,PHOENIX (SW) LTD,02/01/2015,74.84
Bath & North East Somerset Council,80420609,LL8,Individualised Budget,P03,Wellbeing,PHOENIX (SW) LTD,02/01/2015,74.84
Bath & North East Somerset Council,80420609,LL8,Individualised Budget,P03,Wellbeing,PHOENIX (SW) LTD,02/01/2015,76
Bath & North East Somerset Council,80420609,LL8,Individualised Budget,P03,Wellbeing,PHOENIX (SW) LTD,02/01/2015,76
Bath & North East Somerset Council,80420609,LL8,Individualised Budget,P03,Wellbeing,PHOENIX (SW) LTD,02/01/2015,76.2
Bath & North East Somerset Council,80420609,LL8,Individualised Budget,P03,Wellbeing,PHOENIX (SW) LTD,02/01/2015,76.2
Bath & North East Somerset Council,80420609,LL8,Individualised Budget,P03,Wellbeing,PHOENIX (SW) LTD,02/01/2015,76.2
Bath & North East Somerset Council,80420609,LL8,Individualised Budget,P03,Wellbeing,PHOENIX (SW) LTD,02/01/2015,76.2
Bath & North East Somerset Council,80420609,LL8,Individualised Budget,P03,Wellbeing,PHOENIX (SW) LTD,02/01/2015,76.2
Bath & North East Somerset Council,80420609,LL8,Individualised Budget,P03,Wellbeing,PHOENIX (SW) LTD,02/01/2015,76.2
Bath & North East Somerset Council,80420609,LL8,Individualised Budget,P03,Wellbeing,PHOENIX (SW) LTD,02/01/2015,81.6
Bath & North East Somerset Council,80420609,LL8,Individualised Budget,P03,Wellbeing,PHOENIX (SW) LTD,02/01/2015,81.6
Bath & North East Somerset Council,80420609,LL8,Individualised Budget,P03,Wellbeing,PHOENIX (SW) LTD,02/01/2015,81.6
Bath & North East Somerset Council,80420609,LL8,Individualised Budget,P03,Wellbeing,PHOENIX (SW) LTD,02/01/2015,81.6
Bath & North East Somerset Council,80420609,LL8,Individualised Budget,P03,Wellbeing,PHOENIX (SW) LTD,02/01/2015,90.28
Bath & North East Somerset Council,80420609,LL8,Individualised Budget,P03,Wellbeing,PHOENIX (SW) LTD,02/01/2015,90.28
Bath & North East Somerset Council,80420609,LL8,Individualised Budget,P03,Wellbeing,PHOENIX (SW) LTD,02/01/2015,111.25
Bath & North East Somerset Council,80420609,LL8,Individualised Budget,P03,Wellbeing,PHOENIX (SW) LTD,02/01/2015,111.25
Bath & North East Somerset Council,80420609,LL8,Individualised Budget,P03,Wellbeing,PHOENIX (SW) LTD,02/01/2015,145.5
Bath & North East Somerset Council,80420609,LL8,Individualised Budget,P03,Wellbeing,PHOENIX (SW) LTD,02/01/2015,145.5
Bath & North East Somerset Council,80420609,LL8,Individualised Budget,P03,Wellbeing,PHOENIX (SW) LTD,02/01/2015,168
Bath & North East Somerset Council,80420609,LL8,Individualised Budget,P03,Wellbeing,PHOENIX (SW) LTD,02/01/2015,175.06
Bath & North East Somerset Council,80420609,LL8,Individualised Budget,P03,Wellbeing,PHOENIX (SW) LTD,02/01/2015,175.06
Bath & North East Somerset Council,80420609,LL8,Individualised Budget,P03,Wellbeing,PHOENIX (SW) LTD,02/01/2015,183.48
Bath & North East Somerset Council,80420609,LL8,Individualised Budget,P03,Wellbeing,PHOENIX (SW) LTD,02/01/2015,183.48
Bath & North East Somerset Council,80420609,LL8,Individualised Budget,P03,Wellbeing,PHOENIX (SW) LTD,02/01/2015,203.11
Bath & North East Somerset Council,80420609,LL8,Individualised Budget,P03,Wellbeing,PHOENIX (SW) LTD,02/01/2015,203.11
Bath & North East Somerset Council,80420609,LL8,Individualised Budget,P03,Wellbeing,PHOENIX (SW) LTD,02/01/2015,207.78
Bath & North East Somerset Council,80420609,LL8,Individualised Budget,P03,Wellbeing,PHOENIX (SW) LTD,02/01/2015,207.78
Bath & North East Somerset Council,80420609,LL8,Individualised Budget,P03,Wellbeing,PHOENIX (SW) LTD,02/01/2015,234.09
Bath & North East Somerset Council,80420609,LL8,Individualised Budget,P03,Wellbeing,PHOENIX (SW) LTD,02/01/2015,234.09
Bath & North East Somerset Council,80420609,LL8,Individualised Budget,P03,Wellbeing,PHOENIX (SW) LTD,02/01/2015,245.2
Bath & North East Somerset Council,80420609,LL8,Individualised Budget,P03,Wellbeing,PHOENIX (SW) LTD,02/01/2015,245.2
Bath & North East Somerset Council,80420609,LL8,Individualised Budget,P03,Wellbeing,PHOENIX (SW) LTD,02/01/2015,250.72
Bath & North East Somerset Council,80420609,LL8,Individualised Budget,P03,Wellbeing,PHOENIX (SW) LTD,02/01/2015,250.72
Bath & North East Somerset Council,80420609,LL8,Individualised Budget,P03,Wellbeing,PHOENIX (SW) LTD,02/01/2015,263.92
Bath & North East Somerset Council,80420609,LL8,Individualised Budget,P03,Wellbeing,PHOENIX (SW) LTD,02/01/2015,263.92
Bath & North East Somerset Council,80420609,LL8,Individualised Budget,P03,Wellbeing,PHOENIX (SW) LTD,02/01/2015,276.34
Bath & North East Somerset Council,80420609,LL8,Individualised Budget,P03,Wellbeing,PHOENIX (SW) LTD,02/01/2015,276.34
Bath & North East Somerset Council,80420609,LL8,Individualised Budget,P03,Wellbeing,PHOENIX (SW) LTD,02/01/2015,281.63
Bath & North East Somerset Council,80420609,LL8,Individualised Budget,P03,Wellbeing,PHOENIX (SW) LTD,02/01/2015,281.63
Bath & North East Somerset Council,80420609,LL8,Individualised Budget,P03,Wellbeing,PHOENIX (SW) LTD,02/01/2015,322.5
Bath & North East Somerset Council,80420609,LL8,Individualised Budget,P03,Wellbeing,PHOENIX (SW) LTD,02/01/2015,322.5
Bath & North East Somerset Council,80420609,LL8,Individualised Budget,P03,Wellbeing,PHOENIX (SW) LTD,02/01/2015,364.72
Bath & North East Somerset Council,80420609,LL8,Individualised Budget,P03,Wellbeing,PHOENIX (SW) LTD,02/01/2015,364.72
Bath & North East Somerset Council,80420609,LL8,Individualised Budget,P03,Wellbeing,PHOENIX (SW) LTD,02/01/2015,372.74
Bath & North East Somerset Council,80420609,LL8,Individualised Budget,P03,Wellbeing,PHOENIX (SW) LTD,02/01/2015,372.74
Bath & North East Somerset Council,80420609,LL8,Individualised Budget,P03,Wellbeing,PHOENIX (SW) LTD,02/01/2015,372.74
Bath & North East Somerset Council,80420609,LL8,Individualised Budget,P03,Wellbeing,PHOENIX (SW) LTD,02/01/2015,372.74
Bath & North East Somerset Council,80420609,LL8,Individualised Budget,P03,Wellbeing,PHOENIX (SW) LTD,02/01/2015,415.91
Bath & North East Somerset Council,80420609,LL8,Individualised Budget,P03,Wellbeing,PHOENIX (SW) LTD,02/01/2015,415.91
Bath & North East Somerset Council,80420609,LL8,Individualised Budget,P03,Wellbeing,PHOENIX (SW) LTD,02/01/2015,415.91
Bath & North East Somerset Council,80420609,LL8,Individualised Budget,P03,Wellbeing,PHOENIX (SW) LTD,02/01/2015,447.32
Bath & North East Somerset Council,80420609,LL8,Individualised Budget,P03,Wellbeing,PHOENIX (SW) LTD,02/01/2015,447.32
Bath & North East Somerset Council,80420609,LL8,Individualised Budget,P03,Wellbeing,PHOENIX (SW) LTD,02/01/2015,457.14
Bath & North East Somerset Council,80420609,LL8,Individualised Budget,P03,Wellbeing,PHOENIX (SW) LTD,02/01/2015,457.14
Bath & North East Somerset Council,80420609,LL8,Individualised Budget,P03,Wellbeing,PHOENIX (SW) LTD,02/01/2015,506.98
Bath & North East Somerset Council,80420609,LL8,Individualised Budget,P03,Wellbeing,PHOENIX (SW) LTD,02/01/2015,506.98
Bath & North East Somerset Council,80420609,LL8,Individualised Budget,P03,Wellbeing,PHOENIX (SW) LTD,02/01/2015,618.8
Bath & North East Somerset Council,80420609,LL8,Individualised Budget,P03,Wellbeing,PHOENIX (SW) LTD,02/01/2015,618.8
Bath & North East Somerset Council,80420609,LL8,Individualised Budget,P03,Wellbeing,PHOENIX (SW) LTD,02/01/2015,634.98
Bath & North East Somerset Council,80420609,LL8,Individualised Budget,P03,Wellbeing,PHOENIX (SW) LTD,02/01/2015,634.98
Bath & North East Somerset Council,80420609,LL8,Individualised Budget,P03,Wellbeing,PHOENIX (SW) LTD,02/01/2015,650
Bath & North East Somerset Council,80420609,LL8,Individualised Budget,P03,Wellbeing,PHOENIX (SW) LTD,02/01/2015,650
Bath & North East Somerset Council,80420609,LL8,Individualised Budget,P03,Wellbeing,PHOENIX (SW) LTD,02/01/2015,650
Bath & North East Somerset Council,80420609,LL8,Individualised Budget,P03,Wellbeing,PHOENIX (SW) LTD,02/01/2015,650
Bath & North East Somerset Council,80420609,LL8,Individualised Budget,P03,Wellbeing,PHOENIX (SW) LTD,02/01/2015,921.05
Bath & North East Somerset Council,80420609,LL8,Individualised Budget,P03,Wellbeing,PHOENIX (SW) LTD,02/01/2015,921.05
Bath & North East Somerset Council,80420609,LL8,Individualised Budget,P03,Wellbeing,PHOENIX (SW) LTD,02/01/2015,1213.8
Bath & North East Somerset Council,80420609,LL8,Individualised Budget,P03,Wellbeing,PHOENIX (SW) LTD,02/01/2015,1213.8
Bath & North East Somerset Council,10762171,LM2,Foster Carer Allowances,P02,"Early Years, Children & Youth",SWIIS FOSTER CARE LTD,02/01/2015,765
Bath & North East Somerset Council,10762351,LM2,Foster Carer Allowances,P02,"Early Years, Children & Youth",SWIIS FOSTER CARE LTD,02/01/2015,765
Bath & North East Somerset Council,10762136,LW9,Other Expenses,P04,Leader,CYCLESCHEME LTD,02/01/2015,768.32
Bath & North East Somerset Council,80420740,LL3,Supported Living,P03,Wellbeing,PRESTIGE NURSING HEALTHCARE,02/01/2015,0.11
Bath & North East Somerset Council,80420744,LL3,Supported Living,P03,Wellbeing,PRESTIGE NURSING HEALTHCARE,02/01/2015,0.11
Bath & North East Somerset Council,80420748,LL3,Supported Living,P03,Wellbeing,PRESTIGE NURSING HEALTHCARE,02/01/2015,0.11
Bath & North East Somerset Council,80420567,LM8,Home Care,P03,Wellbeing,PRESTIGE NURSING HEALTHCARE,02/01/2015,59.96
Bath & North East Somerset Council,80420612,LL3,Supported Living,P03,Wellbeing,PRESTIGE NURSING HEALTHCARE,02/01/2015,2488.94
Bath & North East Somerset Council,80420742,LL3,Supported Living,P03,Wellbeing,PRESTIGE NURSING HEALTHCARE,02/01/2015,2488.94
Bath & North East Somerset Council,80420746,LL3,Supported Living,P03,Wellbeing,PRESTIGE NURSING HEALTHCARE,02/01/2015,2488.94
Bath & North East Somerset Council,80420740,LL3,Supported Living,P03,Wellbeing,PRESTIGE NURSING HEALTHCARE,02/01/2015,2590.45
Bath & North East Somerset Council,80420744,LL3,Supported Living,P03,Wellbeing,PRESTIGE NURSING HEALTHCARE,02/01/2015,2590.45
Bath & North East Somerset Council,80420748,LL3,Supported Living,P03,Wellbeing,PRESTIGE NURSING HEALTHCARE,02/01/2015,2590.45
Bath & North East Somerset Council,80420741,LL3,Supported Living,P03,Wellbeing,PRESTIGE NURSING HEALTHCARE,02/01/2015,2855.37
Bath & North East Somerset Council,80420745,LL3,Supported Living,P03,Wellbeing,PRESTIGE NURSING HEALTHCARE,02/01/2015,2855.37
Bath & North East Somerset Council,80420749,LL3,Supported Living,P03,Wellbeing,PRESTIGE NURSING HEALTHCARE,02/01/2015,2855.37
Bath & North East Somerset Council,80420566,LM8,Home Care,P03,Wellbeing,PRESTIGE NURSING HEALTHCARE,02/01/2015,4034
Bath & North East Somerset Council,80420567,LM8,Home Care,P03,Wellbeing,PRESTIGE NURSING HEALTHCARE,02/01/2015,4034
Bath & North East Somerset Council,80420645,LL3,Supported Living,P03,Wellbeing,PROSPECTS FPWLD MAIN,02/01/2015,694.75
Bath & North East Somerset Council,80420645,LL3,Supported Living,P03,Wellbeing,PROSPECTS FPWLD MAIN,02/01/2015,694.75
Bath & North East Somerset Council,80420645,LL3,Supported Living,P03,Wellbeing,PROSPECTS FPWLD MAIN,02/01/2015,694.75
Bath & North East Somerset Council,80420645,LL3,Supported Living,P03,Wellbeing,PROSPECTS FPWLD MAIN,02/01/2015,694.75
Bath & North East Somerset Council,80420642,LL3,Supported Living,P03,Wellbeing,PROSPECTS FPWLD MAIN,02/01/2015,756.75
Bath & North East Somerset Council,80420642,LL3,Supported Living,P03,Wellbeing,PROSPECTS FPWLD MAIN,02/01/2015,756.75
Bath & North East Somerset Council,80420642,LL3,Supported Living,P03,Wellbeing,PROSPECTS FPWLD MAIN,02/01/2015,756.75
Bath & North East Somerset Council,80420642,LL3,Supported Living,P03,Wellbeing,PROSPECTS FPWLD MAIN,02/01/2015,756.75
Bath & North East Somerset Council,80420643,LL3,Supported Living,P03,Wellbeing,PROSPECTS FPWLD MAIN,02/01/2015,834.25
Bath & North East Somerset Council,80420643,LL3,Supported Living,P03,Wellbeing,PROSPECTS FPWLD MAIN,02/01/2015,834.25
Bath & North East Somerset Council,80420643,LL3,Supported Living,P03,Wellbeing,PROSPECTS FPWLD MAIN,02/01/2015,834.25
Bath & North East Somerset Council,80420643,LL3,Supported Living,P03,Wellbeing,PROSPECTS FPWLD MAIN,02/01/2015,834.25
Bath & North East Somerset Council,10762600,LJ2,Legal Fees,P05,Neighbourhoods,BEVAN BRITTAN,02/01/2015,802
Bath & North East Somerset Council,80420737,LL3,Supported Living,P03,Wellbeing,QUARRIERS,02/01/2015,102.72
Bath & North East Somerset Council,80420738,LL3,Supported Living,P03,Wellbeing,QUARRIERS,02/01/2015,118.8
Bath & North East Somerset Council,80420738,LL3,Supported Living,P03,Wellbeing,QUARRIERS,02/01/2015,118.8
Bath & North East Somerset Council,80420738,LL3,Supported Living,P03,Wellbeing,QUARRIERS,02/01/2015,118.8
Bath & North East Somerset Council,80420738,LL3,Supported Living,P03,Wellbeing,QUARRIERS,02/01/2015,118.8
Bath & North East Somerset Council,80420738,LL3,Supported Living,P03,Wellbeing,QUARRIERS,02/01/2015,118.8
Bath & North East Somerset Council,80420737,LL3,Supported Living,P03,Wellbeing,QUARRIERS,02/01/2015,119.32
Bath & North East Somerset Council,80420737,LL3,Supported Living,P03,Wellbeing,QUARRIERS,02/01/2015,119.32
Bath & North East Somerset Council,80420737,LL3,Supported Living,P03,Wellbeing,QUARRIERS,02/01/2015,119.32
Bath & North East Somerset Council,80420737,LL3,Supported Living,P03,Wellbeing,QUARRIERS,02/01/2015,119.32
Bath & North East Somerset Council,80420569,LM8,Home Care,P03,Wellbeing,ROBERT SAGE LTD T/A PRESTIGE NURSING PAYROLL,02/01/2015,1338.4
Bath & North East Somerset Council,80420570,LM8,Home Care,P03,Wellbeing,ROBERT SAGE LTD T/A PRESTIGE NURSING PAYROLL,02/01/2015,1338.4
Bath & North East Somerset Council,80420571,LM8,Home Care,P03,Wellbeing,ROBERT SAGE LTD T/A PRESTIGE NURSING PAYROLL,02/01/2015,1338.4
Bath & North East Somerset Council,80420712,LL3,Supported Living,P03,Wellbeing,ROYAL MENCAP SOCIETY,02/01/2015,9.04
Bath & North East Somerset Council,80420722,LL3,Supported Living,P03,Wellbeing,ROYAL MENCAP SOCIETY,02/01/2015,134
Bath & North East Somerset Council,80420722,LL3,Supported Living,P03,Wellbeing,ROYAL MENCAP SOCIETY,02/01/2015,134
Bath & North East Somerset Council,80420722,LL3,Supported Living,P03,Wellbeing,ROYAL MENCAP SOCIETY,02/01/2015,134
Bath & North East Somerset Council,80420722,LL3,Supported Living,P03,Wellbeing,ROYAL MENCAP SOCIETY,02/01/2015,134
Bath & North East Somerset Council,80420719,LL3,Supported Living,P03,Wellbeing,ROYAL MENCAP SOCIETY,02/01/2015,150.75
Bath & North East Somerset Council,80420719,LL3,Supported Living,P03,Wellbeing,ROYAL MENCAP SOCIETY,02/01/2015,150.75
Bath & North East Somerset Council,80420719,LL3,Supported Living,P03,Wellbeing,ROYAL MENCAP SOCIETY,02/01/2015,150.75
Bath & North East Somerset Council,80420719,LL3,Supported Living,P03,Wellbeing,ROYAL MENCAP SOCIETY,02/01/2015,150.75
Bath & North East Somerset Council,80420720,LL3,Supported Living,P03,Wellbeing,ROYAL MENCAP SOCIETY,02/01/2015,259.63
Bath & North East Somerset Council,80420720,LL3,Supported Living,P03,Wellbeing,ROYAL MENCAP SOCIETY,02/01/2015,259.63
Bath & North East Somerset Council,80420720,LL3,Supported Living,P03,Wellbeing,ROYAL MENCAP SOCIETY,02/01/2015,259.63
Bath & North East Somerset Council,80420720,LL3,Supported Living,P03,Wellbeing,ROYAL MENCAP SOCIETY,02/01/2015,259.63
Bath & North East Somerset Council,80420712,LL3,Supported Living,P03,Wellbeing,ROYAL MENCAP SOCIETY,02/01/2015,411.33
Bath & North East Somerset Council,80420712,LL3,Supported Living,P03,Wellbeing,ROYAL MENCAP SOCIETY,02/01/2015,411.33
Bath & North East Somerset Council,80420712,LL3,Supported Living,P03,Wellbeing,ROYAL MENCAP SOCIETY,02/01/2015,411.33
Bath & North East Somerset Council,80420712,LL3,Supported Living,P03,Wellbeing,ROYAL MENCAP SOCIETY,02/01/2015,411.33
Bath & North East Somerset Council,80420718,LL3,Supported Living,P03,Wellbeing,ROYAL MENCAP SOCIETY,02/01/2015,488.96
Bath & North East Somerset Council,80420718,LL3,Supported Living,P03,Wellbeing,ROYAL MENCAP SOCIETY,02/01/2015,488.96
Bath & North East Somerset Council,80420718,LL3,Supported Living,P03,Wellbeing,ROYAL MENCAP SOCIETY,02/01/2015,488.96
Bath & North East Somerset Council,80420718,LL3,Supported Living,P03,Wellbeing,ROYAL MENCAP SOCIETY,02/01/2015,488.96
Bath & North East Somerset Council,80420711,LL3,Supported Living,P03,Wellbeing,ROYAL MENCAP SOCIETY,02/01/2015,497.34
Bath & North East Somerset Council,80420711,LL3,Supported Living,P03,Wellbeing,ROYAL MENCAP SOCIETY,02/01/2015,497.34
Bath & North East Somerset Council,80420711,LL3,Supported Living,P03,Wellbeing,ROYAL MENCAP SOCIETY,02/01/2015,497.34
Bath & North East Somerset Council,80420711,LL3,Supported Living,P03,Wellbeing,ROYAL MENCAP SOCIETY,02/01/2015,497.34
Bath & North East Somerset Council,80420715,LL3,Supported Living,P03,Wellbeing,ROYAL MENCAP SOCIETY,02/01/2015,513.76
Bath & North East Somerset Council,80420715,LL3,Supported Living,P03,Wellbeing,ROYAL MENCAP SOCIETY,02/01/2015,513.76
Bath & North East Somerset Council,80420715,LL3,Supported Living,P03,Wellbeing,ROYAL MENCAP SOCIETY,02/01/2015,513.76
Bath & North East Somerset Council,80420715,LL3,Supported Living,P03,Wellbeing,ROYAL MENCAP SOCIETY,02/01/2015,513.76
Bath & North East Somerset Council,80420714,LL3,Supported Living,P03,Wellbeing,ROYAL MENCAP SOCIETY,02/01/2015,1116.05
Bath & North East Somerset Council,80420714,LL3,Supported Living,P03,Wellbeing,ROYAL MENCAP SOCIETY,02/01/2015,1116.05
Bath & North East Somerset Council,80420714,LL3,Supported Living,P03,Wellbeing,ROYAL MENCAP SOCIETY,02/01/2015,1116.05
Bath & North East Somerset Council,80420713,LL3,Supported Living,P03,Wellbeing,ROYAL MENCAP SOCIETY,02/01/2015,1160.15
Bath & North East Somerset Council,80420713,LL3,Supported Living,P03,Wellbeing,ROYAL MENCAP SOCIETY,02/01/2015,1160.15
Bath & North East Somerset Council,80420713,LL3,Supported Living,P03,Wellbeing,ROYAL MENCAP SOCIETY,02/01/2015,1160.15
Bath & North East Somerset Council,80420713,LL3,Supported Living,P03,Wellbeing,ROYAL MENCAP SOCIETY,02/01/2015,1160.15
Bath & North East Somerset Council,80420716,LL3,Supported Living,P03,Wellbeing,ROYAL MENCAP SOCIETY,02/01/2015,1282.26
Bath & North East Somerset Council,80420716,LL3,Supported Living,P03,Wellbeing,ROYAL MENCAP SOCIETY,02/01/2015,1282.26
Bath & North East Somerset Council,80420716,LL3,Supported Living,P03,Wellbeing,ROYAL MENCAP SOCIETY,02/01/2015,1282.26
Bath & North East Somerset Council,80420729,LL3,Supported Living,P03,Wellbeing,S.W.A.L.L.O.W. LTD,02/01/2015,0.24
Bath & North East Somerset Council,80420730,LL3,Supported Living,P03,Wellbeing,S.W.A.L.L.O.W. LTD,02/01/2015,142.02
Bath & North East Somerset Council,80420730,LL3,Supported Living,P03,Wellbeing,S.W.A.L.L.O.W. LTD,02/01/2015,142.02
Bath & North East Somerset Council,80420730,LL3,Supported Living,P03,Wellbeing,S.W.A.L.L.O.W. LTD,02/01/2015,142.02
Bath & North East Somerset Council,80420730,LL3,Supported Living,P03,Wellbeing,S.W.A.L.L.O.W. LTD,02/01/2015,142.02
Bath & North East Somerset Council,80420729,LL3,Supported Living,P03,Wellbeing,S.W.A.L.L.O.W. LTD,02/01/2015,252.42
Bath & North East Somerset Council,80420729,LL3,Supported Living,P03,Wellbeing,S.W.A.L.L.O.W. LTD,02/01/2015,252.42
Bath & North East Somerset Council,80420729,LL3,Supported Living,P03,Wellbeing,S.W.A.L.L.O.W. LTD,02/01/2015,252.42
Bath & North East Somerset Council,80420729,LL3,Supported Living,P03,Wellbeing,S.W.A.L.L.O.W. LTD,02/01/2015,252.42
Bath & North East Somerset Council,10761591,3F7,External Fees,P01,Transport,BERRYMEAD PRODUCTIONS LTD,02/01/2015,843.75
Bath & North East Somerset Council,80420565,LM8,Home Care,P03,Wellbeing,SAFE & SOUND HOMECARE SERVICES,02/01/2015,221
Bath & North East Somerset Council,80420565,LM8,Home Care,P03,Wellbeing,SAFE & SOUND HOMECARE SERVICES,02/01/2015,221
Bath & North East Somerset Council,80420565,LM8,Home Care,P03,Wellbeing,SAFE & SOUND HOMECARE SERVICES,02/01/2015,221
Bath & North East Somerset Council,80420565,LM8,Home Care,P03,Wellbeing,SAFE & SOUND HOMECARE SERVICES,02/01/2015,221
Bath & North East Somerset Council,10762765,LH3,Publicity,P06,Sustainable Development,UBM INFORMATION LTD,02/01/2015,900
Bath & North East Somerset Council,80420565,LM8,Home Care,P03,Wellbeing,SAFE & SOUND HOMECARE SERVICES,02/01/2015,420
Bath & North East Somerset Council,80420565,LM8,Home Care,P03,Wellbeing,SAFE & SOUND HOMECARE SERVICES,02/01/2015,420
Bath & North East Somerset Council,80420565,LM8,Home Care,P03,Wellbeing,SAFE & SOUND HOMECARE SERVICES,02/01/2015,420
Bath & North East Somerset Council,80420565,LM8,Home Care,P03,Wellbeing,SAFE & SOUND HOMECARE SERVICES,02/01/2015,420
Bath & North East Somerset Council,80420564,LM8,Home Care,P03,Wellbeing,SAFE & SOUND HOMECARE SERVICES,02/01/2015,710
Bath & North East Somerset Council,10762580,LJ4,Contracts,P01,Transport,R E & V P JEFFRIES,02/01/2015,975.6
Bath & North East Somerset Council,80420619,LL3,Supported Living,P03,Wellbeing,SELBORNE CARE LTD,02/01/2015,448.5
Bath & North East Somerset Council,80420619,LL3,Supported Living,P03,Wellbeing,SELBORNE CARE LTD,02/01/2015,448.5
Bath & North East Somerset Council,80420619,LL3,Supported Living,P03,Wellbeing,SELBORNE CARE LTD,02/01/2015,448.5
Bath & North East Somerset Council,80420619,LL3,Supported Living,P03,Wellbeing,SELBORNE CARE LTD,02/01/2015,448.5
Bath & North East Somerset Council,80420620,LL3,Supported Living,P03,Wellbeing,SELBORNE CARE LTD,02/01/2015,530.7
Bath & North East Somerset Council,80420620,LL3,Supported Living,P03,Wellbeing,SELBORNE CARE LTD,02/01/2015,530.7
Bath & North East Somerset Council,80420620,LL3,Supported Living,P03,Wellbeing,SELBORNE CARE LTD,02/01/2015,530.7
Bath & North East Somerset Council,80420620,LL3,Supported Living,P03,Wellbeing,SELBORNE CARE LTD,02/01/2015,530.7
Bath & North East Somerset Council,10762414,LJ4,Contracts,P06,Sustainable Development,ACOUSTIGUIDE LTD,02/01/2015,1000
Bath & North East Somerset Council,10762286,DB1,Agency Staff,P01,Transport,WATERMAN ASPEN,02/01/2015,1040
Bath & North East Somerset Council,10762676,LJ4,Contracts,P01,Transport,RADSTOCK TAXIS,02/01/2015,1047.28
Bath & North East Somerset Council,80420640,LM3,Residential Care,P03,Wellbeing,SIRONA CARE & HEALTH C.I.C.,02/01/2015,23.04
Bath & North East Somerset Council,10762719,LJ3,Other Services to the Council,P07,Community Resources,MANN WILLIAMS LTD,02/01/2015,1075
Bath & North East Somerset Council,80420640,LM3,Residential Care,P03,Wellbeing,SIRONA CARE & HEALTH C.I.C.,02/01/2015,23.04
Bath & North East Somerset Council,80420640,LM3,Residential Care,P03,Wellbeing,SIRONA CARE & HEALTH C.I.C.,02/01/2015,23.04
Bath & North East Somerset Council,80420640,LM3,Residential Care,P03,Wellbeing,SIRONA CARE & HEALTH C.I.C.,02/01/2015,23.04
Bath & North East Somerset Council,80420640,LM3,Residential Care,P03,Wellbeing,SIRONA CARE & HEALTH C.I.C.,02/01/2015,23.04
Bath & North East Somerset Council,80420640,LM3,Residential Care,P03,Wellbeing,SIRONA CARE & HEALTH C.I.C.,02/01/2015,23.04
Bath & North East Somerset Council,80420640,LM3,Residential Care,P03,Wellbeing,SIRONA CARE & HEALTH C.I.C.,02/01/2015,23.04
Bath & North East Somerset Council,80420640,LM3,Residential Care,P03,Wellbeing,SIRONA CARE & HEALTH C.I.C.,02/01/2015,23.04
Bath & North East Somerset Council,80420640,LM3,Residential Care,P03,Wellbeing,SIRONA CARE & HEALTH C.I.C.,02/01/2015,23.04
Bath & North East Somerset Council,80420640,LM3,Residential Care,P03,Wellbeing,SIRONA CARE & HEALTH C.I.C.,02/01/2015,23.04
Bath & North East Somerset Council,80420640,LM3,Residential Care,P03,Wellbeing,SIRONA CARE & HEALTH C.I.C.,02/01/2015,23.04
Bath & North East Somerset Council,80420640,LM3,Residential Care,P03,Wellbeing,SIRONA CARE & HEALTH C.I.C.,02/01/2015,23.04
Bath & North East Somerset Council,80420640,LM3,Residential Care,P03,Wellbeing,SIRONA CARE & HEALTH C.I.C.,02/01/2015,23.04
Bath & North East Somerset Council,10761318,LP5,Software Support,P04,Leader,PARKEON LIMITED,02/01/2015,1100
Bath & North East Somerset Council,80420640,LM3,Residential Care,P03,Wellbeing,SIRONA CARE & HEALTH C.I.C.,02/01/2015,23.04
Bath & North East Somerset Council,80420640,LM3,Residential Care,P03,Wellbeing,SIRONA CARE & HEALTH C.I.C.,02/01/2015,23.04
Bath & North East Somerset Council,80420640,LM3,Residential Care,P03,Wellbeing,SIRONA CARE & HEALTH C.I.C.,02/01/2015,23.04
Bath & North East Somerset Council,80420640,LM3,Residential Care,P03,Wellbeing,SIRONA CARE & HEALTH C.I.C.,02/01/2015,23.04
Bath & North East Somerset Council,80420640,LM3,Residential Care,P03,Wellbeing,SIRONA CARE & HEALTH C.I.C.,02/01/2015,23.04
Bath & North East Somerset Council,80420640,LM3,Residential Care,P03,Wellbeing,SIRONA CARE & HEALTH C.I.C.,02/01/2015,23.04
Bath & North East Somerset Council,80420640,LM3,Residential Care,P03,Wellbeing,SIRONA CARE & HEALTH C.I.C.,02/01/2015,23.04
Bath & North East Somerset Council,80420640,LM3,Residential Care,P03,Wellbeing,SIRONA CARE & HEALTH C.I.C.,02/01/2015,23.04
Bath & North East Somerset Council,80420640,LM3,Residential Care,P03,Wellbeing,SIRONA CARE & HEALTH C.I.C.,02/01/2015,23.04
Bath & North East Somerset Council,80420640,LM3,Residential Care,P03,Wellbeing,SIRONA CARE & HEALTH C.I.C.,02/01/2015,23.04
Bath & North East Somerset Council,80420640,LM3,Residential Care,P03,Wellbeing,SIRONA CARE & HEALTH C.I.C.,02/01/2015,23.04
Bath & North East Somerset Council,80420640,LM3,Residential Care,P03,Wellbeing,SIRONA CARE & HEALTH C.I.C.,02/01/2015,23.04
Bath & North East Somerset Council,80420640,LM3,Residential Care,P03,Wellbeing,SIRONA CARE & HEALTH C.I.C.,02/01/2015,23.04
Bath & North East Somerset Council,80420640,LM3,Residential Care,P03,Wellbeing,SIRONA CARE & HEALTH C.I.C.,02/01/2015,23.04
Bath & North East Somerset Council,80420640,LM3,Residential Care,P03,Wellbeing,SIRONA CARE & HEALTH C.I.C.,02/01/2015,23.04
Bath & North East Somerset Council,80420636,LM3,Residential Care,P03,Wellbeing,SIRONA CARE & HEALTH C.I.C.,02/01/2015,89.52
Bath & North East Somerset Council,80420636,LM3,Residential Care,P03,Wellbeing,SIRONA CARE & HEALTH C.I.C.,02/01/2015,89.52
Bath & North East Somerset Council,80420636,LM3,Residential Care,P03,Wellbeing,SIRONA CARE & HEALTH C.I.C.,02/01/2015,89.52
Bath & North East Somerset Council,80420636,LM3,Residential Care,P03,Wellbeing,SIRONA CARE & HEALTH C.I.C.,02/01/2015,89.52
Bath & North East Somerset Council,80420636,LM3,Residential Care,P03,Wellbeing,SIRONA CARE & HEALTH C.I.C.,02/01/2015,89.52
Bath & North East Somerset Council,80420636,LM3,Residential Care,P03,Wellbeing,SIRONA CARE & HEALTH C.I.C.,02/01/2015,89.52
Bath & North East Somerset Council,80420636,LM3,Residential Care,P03,Wellbeing,SIRONA CARE & HEALTH C.I.C.,02/01/2015,89.52
Bath & North East Somerset Council,80420636,LM3,Residential Care,P03,Wellbeing,SIRONA CARE & HEALTH C.I.C.,02/01/2015,89.52
Bath & North East Somerset Council,80420636,LM3,Residential Care,P03,Wellbeing,SIRONA CARE & HEALTH C.I.C.,02/01/2015,89.52
Bath & North East Somerset Council,80420636,LM3,Residential Care,P03,Wellbeing,SIRONA CARE & HEALTH C.I.C.,02/01/2015,89.52
Bath & North East Somerset Council,80420636,LM3,Residential Care,P03,Wellbeing,SIRONA CARE & HEALTH C.I.C.,02/01/2015,89.52
Bath & North East Somerset Council,80420636,LM3,Residential Care,P03,Wellbeing,SIRONA CARE & HEALTH C.I.C.,02/01/2015,89.52
Bath & North East Somerset Council,80420636,LM3,Residential Care,P03,Wellbeing,SIRONA CARE & HEALTH C.I.C.,02/01/2015,89.52
Bath & North East Somerset Council,80420636,LM3,Residential Care,P03,Wellbeing,SIRONA CARE & HEALTH C.I.C.,02/01/2015,89.52
Bath & North East Somerset Council,80420636,LM3,Residential Care,P03,Wellbeing,SIRONA CARE & HEALTH C.I.C.,02/01/2015,89.52
Bath & North East Somerset Council,80420636,LM3,Residential Care,P03,Wellbeing,SIRONA CARE & HEALTH C.I.C.,02/01/2015,89.52
Bath & North East Somerset Council,80420636,LM3,Residential Care,P03,Wellbeing,SIRONA CARE & HEALTH C.I.C.,02/01/2015,89.52
Bath & North East Somerset Council,80420636,LM3,Residential Care,P03,Wellbeing,SIRONA CARE & HEALTH C.I.C.,02/01/2015,89.52
Bath & North East Somerset Council,80420636,LM3,Residential Care,P03,Wellbeing,SIRONA CARE & HEALTH C.I.C.,02/01/2015,89.52
Bath & North East Somerset Council,80420636,LM3,Residential Care,P03,Wellbeing,SIRONA CARE & HEALTH C.I.C.,02/01/2015,89.52
Bath & North East Somerset Council,80420636,LM3,Residential Care,P03,Wellbeing,SIRONA CARE & HEALTH C.I.C.,02/01/2015,89.52
Bath & North East Somerset Council,80420636,LM3,Residential Care,P03,Wellbeing,SIRONA CARE & HEALTH C.I.C.,02/01/2015,89.52
Bath & North East Somerset Council,80420636,LM3,Residential Care,P03,Wellbeing,SIRONA CARE & HEALTH C.I.C.,02/01/2015,89.52
Bath & North East Somerset Council,80420636,LM3,Residential Care,P03,Wellbeing,SIRONA CARE & HEALTH C.I.C.,02/01/2015,89.52
Bath & North East Somerset Council,80420636,LM3,Residential Care,P03,Wellbeing,SIRONA CARE & HEALTH C.I.C.,02/01/2015,89.52
Bath & North East Somerset Council,80420636,LM3,Residential Care,P03,Wellbeing,SIRONA CARE & HEALTH C.I.C.,02/01/2015,89.52
Bath & North East Somerset Council,80420634,LM3,Residential Care,P03,Wellbeing,SIRONA CARE & HEALTH C.I.C.,02/01/2015,94.05
Bath & North East Somerset Council,80420634,LM3,Residential Care,P03,Wellbeing,SIRONA CARE & HEALTH C.I.C.,02/01/2015,94.05
Bath & North East Somerset Council,80420634,LM3,Residential Care,P03,Wellbeing,SIRONA CARE & HEALTH C.I.C.,02/01/2015,94.05
Bath & North East Somerset Council,80420634,LM3,Residential Care,P03,Wellbeing,SIRONA CARE & HEALTH C.I.C.,02/01/2015,94.05
Bath & North East Somerset Council,80420634,LM3,Residential Care,P03,Wellbeing,SIRONA CARE & HEALTH C.I.C.,02/01/2015,94.05
Bath & North East Somerset Council,80420634,LM3,Residential Care,P03,Wellbeing,SIRONA CARE & HEALTH C.I.C.,02/01/2015,94.05
Bath & North East Somerset Council,80420634,LM3,Residential Care,P03,Wellbeing,SIRONA CARE & HEALTH C.I.C.,02/01/2015,94.05
Bath & North East Somerset Council,80420634,LM3,Residential Care,P03,Wellbeing,SIRONA CARE & HEALTH C.I.C.,02/01/2015,94.05
Bath & North East Somerset Council,80420634,LM3,Residential Care,P03,Wellbeing,SIRONA CARE & HEALTH C.I.C.,02/01/2015,94.05
Bath & North East Somerset Council,80420634,LM3,Residential Care,P03,Wellbeing,SIRONA CARE & HEALTH C.I.C.,02/01/2015,94.05
Bath & North East Somerset Council,80420634,LM3,Residential Care,P03,Wellbeing,SIRONA CARE & HEALTH C.I.C.,02/01/2015,94.05
Bath & North East Somerset Council,80420634,LM3,Residential Care,P03,Wellbeing,SIRONA CARE & HEALTH C.I.C.,02/01/2015,94.05
Bath & North East Somerset Council,80420634,LM3,Residential Care,P03,Wellbeing,SIRONA CARE & HEALTH C.I.C.,02/01/2015,94.05
Bath & North East Somerset Council,80420634,LM3,Residential Care,P03,Wellbeing,SIRONA CARE & HEALTH C.I.C.,02/01/2015,94.05
Bath & North East Somerset Council,80420634,LM3,Residential Care,P03,Wellbeing,SIRONA CARE & HEALTH C.I.C.,02/01/2015,94.05
Bath & North East Somerset Council,80420634,LM3,Residential Care,P03,Wellbeing,SIRONA CARE & HEALTH C.I.C.,02/01/2015,94.05
Bath & North East Somerset Council,10762590,LJ4,Contracts,P01,Transport,MR M L BRACEY T/A A B M MINIBUSES,02/01/2015,1152
Bath & North East Somerset Council,10762589,LJ4,Contracts,P01,Transport,MR M L BRACEY T/A A B M MINIBUSES,02/01/2015,1160.1
Bath & North East Somerset Council,80420634,LM3,Residential Care,P03,Wellbeing,SIRONA CARE & HEALTH C.I.C.,02/01/2015,94.05
Bath & North East Somerset Council,80420634,LM3,Residential Care,P03,Wellbeing,SIRONA CARE & HEALTH C.I.C.,02/01/2015,94.05
Bath & North East Somerset Council,80420634,LM3,Residential Care,P03,Wellbeing,SIRONA CARE & HEALTH C.I.C.,02/01/2015,94.05
Bath & North East Somerset Council,80420634,LM3,Residential Care,P03,Wellbeing,SIRONA CARE & HEALTH C.I.C.,02/01/2015,94.05
Bath & North East Somerset Council,80420634,LM3,Residential Care,P03,Wellbeing,SIRONA CARE & HEALTH C.I.C.,02/01/2015,94.05
Bath & North East Somerset Council,80420634,LM3,Residential Care,P03,Wellbeing,SIRONA CARE & HEALTH C.I.C.,02/01/2015,94.05
Bath & North East Somerset Council,80420634,LM3,Residential Care,P03,Wellbeing,SIRONA CARE & HEALTH C.I.C.,02/01/2015,94.05
Bath & North East Somerset Council,80420634,LM3,Residential Care,P03,Wellbeing,SIRONA CARE & HEALTH C.I.C.,02/01/2015,94.05
Bath & North East Somerset Council,80420634,LM3,Residential Care,P03,Wellbeing,SIRONA CARE & HEALTH C.I.C.,02/01/2015,94.05
Bath & North East Somerset Council,80420634,LM3,Residential Care,P03,Wellbeing,SIRONA CARE & HEALTH C.I.C.,02/01/2015,94.05
Bath & North East Somerset Council,80420638,LM3,Residential Care,P03,Wellbeing,SIRONA CARE & HEALTH C.I.C.,02/01/2015,98.02
Bath & North East Somerset Council,80420638,LM3,Residential Care,P03,Wellbeing,SIRONA CARE & HEALTH C.I.C.,02/01/2015,98.02
Bath & North East Somerset Council,80420638,LM3,Residential Care,P03,Wellbeing,SIRONA CARE & HEALTH C.I.C.,02/01/2015,98.02
Bath & North East Somerset Council,80420638,LM3,Residential Care,P03,Wellbeing,SIRONA CARE & HEALTH C.I.C.,02/01/2015,98.02
Bath & North East Somerset Council,80420638,LM3,Residential Care,P03,Wellbeing,SIRONA CARE & HEALTH C.I.C.,02/01/2015,98.02
Bath & North East Somerset Council,80420638,LM3,Residential Care,P03,Wellbeing,SIRONA CARE & HEALTH C.I.C.,02/01/2015,98.02
Bath & North East Somerset Council,80420638,LM3,Residential Care,P03,Wellbeing,SIRONA CARE & HEALTH C.I.C.,02/01/2015,98.02
Bath & North East Somerset Council,80420638,LM3,Residential Care,P03,Wellbeing,SIRONA CARE & HEALTH C.I.C.,02/01/2015,98.02
Bath & North East Somerset Council,80420638,LM3,Residential Care,P03,Wellbeing,SIRONA CARE & HEALTH C.I.C.,02/01/2015,98.02
Bath & North East Somerset Council,80420638,LM3,Residential Care,P03,Wellbeing,SIRONA CARE & HEALTH C.I.C.,02/01/2015,98.02
Bath & North East Somerset Council,80420638,LM3,Residential Care,P03,Wellbeing,SIRONA CARE & HEALTH C.I.C.,02/01/2015,98.02
Bath & North East Somerset Council,80420638,LM3,Residential Care,P03,Wellbeing,SIRONA CARE & HEALTH C.I.C.,02/01/2015,98.02
Bath & North East Somerset Council,80420638,LM3,Residential Care,P03,Wellbeing,SIRONA CARE & HEALTH C.I.C.,02/01/2015,98.02
Bath & North East Somerset Council,80420638,LM3,Residential Care,P03,Wellbeing,SIRONA CARE & HEALTH C.I.C.,02/01/2015,98.02
Bath & North East Somerset Council,80420638,LM3,Residential Care,P03,Wellbeing,SIRONA CARE & HEALTH C.I.C.,02/01/2015,98.02
Bath & North East Somerset Council,80420638,LM3,Residential Care,P03,Wellbeing,SIRONA CARE & HEALTH C.I.C.,02/01/2015,98.02
Bath & North East Somerset Council,80420638,LM3,Residential Care,P03,Wellbeing,SIRONA CARE & HEALTH C.I.C.,02/01/2015,98.02
Bath & North East Somerset Council,80420638,LM3,Residential Care,P03,Wellbeing,SIRONA CARE & HEALTH C.I.C.,02/01/2015,98.02
Bath & North East Somerset Council,80420638,LM3,Residential Care,P03,Wellbeing,SIRONA CARE & HEALTH C.I.C.,02/01/2015,98.02
Bath & North East Somerset Council,80420638,LM3,Residential Care,P03,Wellbeing,SIRONA CARE & HEALTH C.I.C.,02/01/2015,98.02
Bath & North East Somerset Council,80420638,LM3,Residential Care,P03,Wellbeing,SIRONA CARE & HEALTH C.I.C.,02/01/2015,98.02
Bath & North East Somerset Council,80420639,LM3,Residential Care,P03,Wellbeing,SIRONA CARE & HEALTH C.I.C.,02/01/2015,118.84
Bath & North East Somerset Council,10762654,EA1,Training,P07,Community Resources,MR JW PERRY,02/01/2015,1174.5
Bath & North East Somerset Council,80420639,LM3,Residential Care,P03,Wellbeing,SIRONA CARE & HEALTH C.I.C.,02/01/2015,118.84
Bath & North East Somerset Council,80420639,LM3,Residential Care,P03,Wellbeing,SIRONA CARE & HEALTH C.I.C.,02/01/2015,118.84
Bath & North East Somerset Council,80420639,LM3,Residential Care,P03,Wellbeing,SIRONA CARE & HEALTH C.I.C.,02/01/2015,118.84
Bath & North East Somerset Council,80420639,LM3,Residential Care,P03,Wellbeing,SIRONA CARE & HEALTH C.I.C.,02/01/2015,118.84
Bath & North East Somerset Council,80420639,LM3,Residential Care,P03,Wellbeing,SIRONA CARE & HEALTH C.I.C.,02/01/2015,118.84
Bath & North East Somerset Council,80420639,LM3,Residential Care,P03,Wellbeing,SIRONA CARE & HEALTH C.I.C.,02/01/2015,118.84
Bath & North East Somerset Council,80420639,LM3,Residential Care,P03,Wellbeing,SIRONA CARE & HEALTH C.I.C.,02/01/2015,118.84
Bath & North East Somerset Council,80420639,LM3,Residential Care,P03,Wellbeing,SIRONA CARE & HEALTH C.I.C.,02/01/2015,118.84
Bath & North East Somerset Council,80420639,LM3,Residential Care,P03,Wellbeing,SIRONA CARE & HEALTH C.I.C.,02/01/2015,118.84
Bath & North East Somerset Council,80420639,LM3,Residential Care,P03,Wellbeing,SIRONA CARE & HEALTH C.I.C.,02/01/2015,118.84
Bath & North East Somerset Council,80420639,LM3,Residential Care,P03,Wellbeing,SIRONA CARE & HEALTH C.I.C.,02/01/2015,118.84
Bath & North East Somerset Council,80420639,LM3,Residential Care,P03,Wellbeing,SIRONA CARE & HEALTH C.I.C.,02/01/2015,118.84
Bath & North East Somerset Council,80420639,LM3,Residential Care,P03,Wellbeing,SIRONA CARE & HEALTH C.I.C.,02/01/2015,118.84
Bath & North East Somerset Council,80420639,LM3,Residential Care,P03,Wellbeing,SIRONA CARE & HEALTH C.I.C.,02/01/2015,118.84
Bath & North East Somerset Council,80420639,LM3,Residential Care,P03,Wellbeing,SIRONA CARE & HEALTH C.I.C.,02/01/2015,118.84
Bath & North East Somerset Council,80420639,LM3,Residential Care,P03,Wellbeing,SIRONA CARE & HEALTH C.I.C.,02/01/2015,118.84
Bath & North East Somerset Council,80420639,LM3,Residential Care,P03,Wellbeing,SIRONA CARE & HEALTH C.I.C.,02/01/2015,118.84
Bath & North East Somerset Council,80420639,LM3,Residential Care,P03,Wellbeing,SIRONA CARE & HEALTH C.I.C.,02/01/2015,118.84
Bath & North East Somerset Council,80420635,LM3,Residential Care,P03,Wellbeing,SIRONA CARE & HEALTH C.I.C.,02/01/2015,129.63
Bath & North East Somerset Council,80420635,LM3,Residential Care,P03,Wellbeing,SIRONA CARE & HEALTH C.I.C.,02/01/2015,129.63
Bath & North East Somerset Council,80420635,LM3,Residential Care,P03,Wellbeing,SIRONA CARE & HEALTH C.I.C.,02/01/2015,129.63
Bath & North East Somerset Council,80420635,LM3,Residential Care,P03,Wellbeing,SIRONA CARE & HEALTH C.I.C.,02/01/2015,129.63
Bath & North East Somerset Council,80420635,LM3,Residential Care,P03,Wellbeing,SIRONA CARE & HEALTH C.I.C.,02/01/2015,129.63
Bath & North East Somerset Council,80420635,LM3,Residential Care,P03,Wellbeing,SIRONA CARE & HEALTH C.I.C.,02/01/2015,129.63
Bath & North East Somerset Council,80420635,LM3,Residential Care,P03,Wellbeing,SIRONA CARE & HEALTH C.I.C.,02/01/2015,129.63
Bath & North East Somerset Council,80420635,LM3,Residential Care,P03,Wellbeing,SIRONA CARE & HEALTH C.I.C.,02/01/2015,129.63
Bath & North East Somerset Council,80420635,LM3,Residential Care,P03,Wellbeing,SIRONA CARE & HEALTH C.I.C.,02/01/2015,129.63
Bath & North East Somerset Council,80420635,LM3,Residential Care,P03,Wellbeing,SIRONA CARE & HEALTH C.I.C.,02/01/2015,129.63
Bath & North East Somerset Council,80420635,LM3,Residential Care,P03,Wellbeing,SIRONA CARE & HEALTH C.I.C.,02/01/2015,129.63
Bath & North East Somerset Council,80420635,LM3,Residential Care,P03,Wellbeing,SIRONA CARE & HEALTH C.I.C.,02/01/2015,129.63
Bath & North East Somerset Council,80420635,LM3,Residential Care,P03,Wellbeing,SIRONA CARE & HEALTH C.I.C.,02/01/2015,129.63
Bath & North East Somerset Council,80420635,LM3,Residential Care,P03,Wellbeing,SIRONA CARE & HEALTH C.I.C.,02/01/2015,129.63
Bath & North East Somerset Council,80420635,LM3,Residential Care,P03,Wellbeing,SIRONA CARE & HEALTH C.I.C.,02/01/2015,129.63
Bath & North East Somerset Council,80420635,LM3,Residential Care,P03,Wellbeing,SIRONA CARE & HEALTH C.I.C.,02/01/2015,129.63
Bath & North East Somerset Council,80420635,LM3,Residential Care,P03,Wellbeing,SIRONA CARE & HEALTH C.I.C.,02/01/2015,129.63
Bath & North East Somerset Council,80420635,LM3,Residential Care,P03,Wellbeing,SIRONA CARE & HEALTH C.I.C.,02/01/2015,129.63
Bath & North East Somerset Council,80420635,LM3,Residential Care,P03,Wellbeing,SIRONA CARE & HEALTH C.I.C.,02/01/2015,129.63
Bath & North East Somerset Council,80420635,LM3,Residential Care,P03,Wellbeing,SIRONA CARE & HEALTH C.I.C.,02/01/2015,129.63
Bath & North East Somerset Council,80420635,LM3,Residential Care,P03,Wellbeing,SIRONA CARE & HEALTH C.I.C.,02/01/2015,129.63
Bath & North East Somerset Council,80420635,LM3,Residential Care,P03,Wellbeing,SIRONA CARE & HEALTH C.I.C.,02/01/2015,129.63
Bath & North East Somerset Council,80420635,LM3,Residential Care,P03,Wellbeing,SIRONA CARE & HEALTH C.I.C.,02/01/2015,129.63
Bath & North East Somerset Council,80420635,LM3,Residential Care,P03,Wellbeing,SIRONA CARE & HEALTH C.I.C.,02/01/2015,129.63
Bath & North East Somerset Council,80420635,LM3,Residential Care,P03,Wellbeing,SIRONA CARE & HEALTH C.I.C.,02/01/2015,129.63
Bath & North East Somerset Council,80420635,LM3,Residential Care,P03,Wellbeing,SIRONA CARE & HEALTH C.I.C.,02/01/2015,129.63
Bath & North East Somerset Council,10762442,LA1,Equipment Purchase (Non Medical),P03,Wellbeing,DRIVE MEDICAL LTD,02/01/2015,1216.64
Bath & North East Somerset Council,10762130,HA4,Responsive Maintenance PCB,P07,Community Resources,N K S CONTRACTS LTD,02/01/2015,1233.67
Bath & North East Somerset Council,80420585,LM8,Home Care,P03,Wellbeing,SOMERSET CARE AT HOME LTD,02/01/2015,38
Bath & North East Somerset Council,80420585,LM8,Home Care,P03,Wellbeing,SOMERSET CARE AT HOME LTD,02/01/2015,57
Bath & North East Somerset Council,80420585,LM8,Home Care,P03,Wellbeing,SOMERSET CARE AT HOME LTD,02/01/2015,228
Bath & North East Somerset Council,80420585,LM8,Home Care,P03,Wellbeing,SOMERSET CARE AT HOME LTD,02/01/2015,266
Bath & North East Somerset Council,80420585,LM8,Home Care,P03,Wellbeing,SOMERSET CARE AT HOME LTD,02/01/2015,342
Bath & North East Somerset Council,80420585,LM8,Home Care,P03,Wellbeing,SOMERSET CARE AT HOME LTD,02/01/2015,399
Bath & North East Somerset Council,80420583,LM8,Home Care,P03,Wellbeing,SOMERSET CARE AT HOME LTD,02/01/2015,684
Bath & North East Somerset Council,80420583,LM8,Home Care,P03,Wellbeing,SOMERSET CARE AT HOME LTD,02/01/2015,684
Bath & North East Somerset Council,10762738,LJ4,Contracts,P01,Transport,RIVERSIDE TAXIS,02/01/2015,1330
Bath & North East Somerset Council,10761364,LM2,Foster Carer Allowances,P02,"Early Years, Children & Youth",CHANNEL FOSTER CARE LTS,02/01/2015,1450
Bath & North East Somerset Council,10762567,LJ4,Contracts,P01,Transport,MR M L BRACEY T/A A B M MINIBUSES,02/01/2015,1459.2
Bath & North East Somerset Council,10762549,LJ4,Contracts,P01,Transport,MR M L BRACEY T/A A B M MINIBUSES,02/01/2015,1469.46
Bath & North East Somerset Council,80420524,LM8,Home Care,P03,Wellbeing,STAR HOME CARE SERVICES LIMITED,02/01/2015,524.03
Bath & North East Somerset Council,10762548,LE1,Education Payment (independent school),P02,"Early Years, Children & Youth",STONAR SCHOOL,02/01/2015,8115
Bath & North East Somerset Council,10762024,LJ2,Legal Fees,P02,"Early Years, Children & Youth",RESOLUTIONS CHILD PROTECTION CONSULTANCY,02/01/2015,1606.1
Bath & North East Somerset Council,80420693,LL3,Supported Living,P03,Wellbeing,SUPPORTED INDEPENDENCE,02/01/2015,0.04
Bath & North East Somerset Council,80420701,LL3,Supported Living,P03,Wellbeing,SUPPORTED INDEPENDENCE,02/01/2015,0.04
Bath & North East Somerset Council,80420690,LL3,Supported Living,P03,Wellbeing,SUPPORTED INDEPENDENCE,02/01/2015,0.5
Bath & North East Somerset Council,80420692,LL3,Supported Living,P03,Wellbeing,SUPPORTED INDEPENDENCE,02/01/2015,6.84
Bath & North East Somerset Council,80420701,LL3,Supported Living,P03,Wellbeing,SUPPORTED INDEPENDENCE,02/01/2015,133.41
Bath & North East Somerset Council,80420701,LL3,Supported Living,P03,Wellbeing,SUPPORTED INDEPENDENCE,02/01/2015,133.41
Bath & North East Somerset Council,80420701,LL3,Supported Living,P03,Wellbeing,SUPPORTED INDEPENDENCE,02/01/2015,133.41
Bath & North East Somerset Council,80420701,LL3,Supported Living,P03,Wellbeing,SUPPORTED INDEPENDENCE,02/01/2015,133.41
Bath & North East Somerset Council,80420692,LL3,Supported Living,P03,Wellbeing,SUPPORTED INDEPENDENCE,02/01/2015,169.83
Bath & North East Somerset Council,80420692,LL3,Supported Living,P03,Wellbeing,SUPPORTED INDEPENDENCE,02/01/2015,169.83
Bath & North East Somerset Council,80420692,LL3,Supported Living,P03,Wellbeing,SUPPORTED INDEPENDENCE,02/01/2015,169.83
Bath & North East Somerset Council,80420692,LL3,Supported Living,P03,Wellbeing,SUPPORTED INDEPENDENCE,02/01/2015,169.83
Bath & North East Somerset Council,80420698,LL3,Supported Living,P03,Wellbeing,SUPPORTED INDEPENDENCE,02/01/2015,190.6
Bath & North East Somerset Council,80420698,LL3,Supported Living,P03,Wellbeing,SUPPORTED INDEPENDENCE,02/01/2015,190.6
Bath & North East Somerset Council,80420698,LL3,Supported Living,P03,Wellbeing,SUPPORTED INDEPENDENCE,02/01/2015,190.6
Bath & North East Somerset Council,80420698,LL3,Supported Living,P03,Wellbeing,SUPPORTED INDEPENDENCE,02/01/2015,190.6
Bath & North East Somerset Council,80420693,LL3,Supported Living,P03,Wellbeing,SUPPORTED INDEPENDENCE,02/01/2015,359.75
Bath & North East Somerset Council,80420693,LL3,Supported Living,P03,Wellbeing,SUPPORTED INDEPENDENCE,02/01/2015,359.75
Bath & North East Somerset Council,10762529,DB1,Agency Staff,P03,Wellbeing,PRACTICUS LTD,02/01/2015,1755
Bath & North East Somerset Council,80420693,LL3,Supported Living,P03,Wellbeing,SUPPORTED INDEPENDENCE,02/01/2015,359.75
Bath & North East Somerset Council,80420693,LL3,Supported Living,P03,Wellbeing,SUPPORTED INDEPENDENCE,02/01/2015,359.75
Bath & North East Somerset Council,80420700,LL3,Supported Living,P03,Wellbeing,SUPPORTED INDEPENDENCE,02/01/2015,440.35
Bath & North East Somerset Council,80420700,LL3,Supported Living,P03,Wellbeing,SUPPORTED INDEPENDENCE,02/01/2015,440.35
Bath & North East Somerset Council,80420700,LL3,Supported Living,P03,Wellbeing,SUPPORTED INDEPENDENCE,02/01/2015,440.35
Bath & North East Somerset Council,80420700,LL3,Supported Living,P03,Wellbeing,SUPPORTED INDEPENDENCE,02/01/2015,440.35
Bath & North East Somerset Council,80420696,LL3,Supported Living,P03,Wellbeing,SUPPORTED INDEPENDENCE,02/01/2015,468.6
Bath & North East Somerset Council,10760230,3F7,External Fees,P06,Sustainable Development,VIEWPOINT PHOTOGRAPHY LTD,02/01/2015,1800
Bath & North East Somerset Council,80420690,LL3,Supported Living,P03,Wellbeing,SUPPORTED INDEPENDENCE,02/01/2015,522.1
Bath & North East Somerset Council,80420689,LL3,Supported Living,P03,Wellbeing,SUPPORTED INDEPENDENCE,02/01/2015,522.6
Bath & North East Somerset Council,80420689,LL3,Supported Living,P03,Wellbeing,SUPPORTED INDEPENDENCE,02/01/2015,545.04
Bath & North East Somerset Council,80420689,LL3,Supported Living,P03,Wellbeing,SUPPORTED INDEPENDENCE,02/01/2015,545.04
Bath & North East Somerset Council,80420689,LL3,Supported Living,P03,Wellbeing,SUPPORTED INDEPENDENCE,02/01/2015,545.04
Bath & North East Somerset Council,80420690,LL3,Supported Living,P03,Wellbeing,SUPPORTED INDEPENDENCE,02/01/2015,545.04
Bath & North East Somerset Council,80420690,LL3,Supported Living,P03,Wellbeing,SUPPORTED INDEPENDENCE,02/01/2015,545.04
Bath & North East Somerset Council,80420690,LL3,Supported Living,P03,Wellbeing,SUPPORTED INDEPENDENCE,02/01/2015,545.04
Bath & North East Somerset Council,80420696,LL3,Supported Living,P03,Wellbeing,SUPPORTED INDEPENDENCE,02/01/2015,573.43
Bath & North East Somerset Council,80420696,LL3,Supported Living,P03,Wellbeing,SUPPORTED INDEPENDENCE,02/01/2015,573.43
Bath & North East Somerset Council,80420696,LL3,Supported Living,P03,Wellbeing,SUPPORTED INDEPENDENCE,02/01/2015,573.43
Bath & North East Somerset Council,80420699,LL3,Supported Living,P03,Wellbeing,SUPPORTED INDEPENDENCE,02/01/2015,601.38
Bath & North East Somerset Council,80420699,LL3,Supported Living,P03,Wellbeing,SUPPORTED INDEPENDENCE,02/01/2015,601.38
Bath & North East Somerset Council,80420699,LL3,Supported Living,P03,Wellbeing,SUPPORTED INDEPENDENCE,02/01/2015,601.38
Bath & North East Somerset Council,80420699,LL3,Supported Living,P03,Wellbeing,SUPPORTED INDEPENDENCE,02/01/2015,601.38
Bath & North East Somerset Council,80420697,LL3,Supported Living,P03,Wellbeing,SUPPORTED INDEPENDENCE,02/01/2015,649.67
Bath & North East Somerset Council,80420697,LL3,Supported Living,P03,Wellbeing,SUPPORTED INDEPENDENCE,02/01/2015,649.67
Bath & North East Somerset Council,80420697,LL3,Supported Living,P03,Wellbeing,SUPPORTED INDEPENDENCE,02/01/2015,649.67
Bath & North East Somerset Council,80420697,LL3,Supported Living,P03,Wellbeing,SUPPORTED INDEPENDENCE,02/01/2015,649.67
Bath & North East Somerset Council,10762420,LJ4,Contracts,P01,Transport,HIGHWAY TAXIS & TRAVEL,02/01/2015,2013.45
Bath & North East Somerset Council,10762420,LJ4,Contracts,P01,Transport,HIGHWAY TAXIS & TRAVEL,02/01/2015,2040
Bath & North East Somerset Council,10762464,LJ4,Contracts,P01,Transport,BUGLERS COACHES LIMITED,02/01/2015,2070
Bath & North East Somerset Council,10762453,LJ4,Contracts,P01,Transport,BUGLERS COACHES LIMITED,02/01/2015,2145
Bath & North East Somerset Council,80420681,LL3,Supported Living,P03,Wellbeing,THE BRANDON TRUST,02/01/2015,117.06
Bath & North East Somerset Council,80420682,LL3,Supported Living,P03,Wellbeing,THE BRANDON TRUST,02/01/2015,165.64
Bath & North East Somerset Council,80420682,LL3,Supported Living,P03,Wellbeing,THE BRANDON TRUST,02/01/2015,165.64
Bath & North East Somerset Council,80420682,LL3,Supported Living,P03,Wellbeing,THE BRANDON TRUST,02/01/2015,165.64
Bath & North East Somerset Council,80420682,LL3,Supported Living,P03,Wellbeing,THE BRANDON TRUST,02/01/2015,165.64
Bath & North East Somerset Council,10761235,DB1,Agency Staff,P03,Wellbeing,PRACTICUS LTD,02/01/2015,2340
Bath & North East Somerset Council,80420681,LL3,Supported Living,P03,Wellbeing,THE BRANDON TRUST,02/01/2015,3275.21
Bath & North East Somerset Council,80420681,LL3,Supported Living,P03,Wellbeing,THE BRANDON TRUST,02/01/2015,3275.21
Bath & North East Somerset Council,80420681,LL3,Supported Living,P03,Wellbeing,THE BRANDON TRUST,02/01/2015,3275.21
Bath & North East Somerset Council,80420681,LL3,Supported Living,P03,Wellbeing,THE BRANDON TRUST,02/01/2015,3275.21
Bath & North East Somerset Council,80420681,LL3,Supported Living,P03,Wellbeing,THE BRANDON TRUST,02/01/2015,3275.21
Bath & North East Somerset Council,80420681,LL3,Supported Living,P03,Wellbeing,THE BRANDON TRUST,02/01/2015,3275.21
Bath & North East Somerset Council,80420681,LL3,Supported Living,P03,Wellbeing,THE BRANDON TRUST,02/01/2015,3275.21
Bath & North East Somerset Council,80420681,LL3,Supported Living,P03,Wellbeing,THE BRANDON TRUST,02/01/2015,3275.21
Bath & North East Somerset Council,80420681,LL3,Supported Living,P03,Wellbeing,THE BRANDON TRUST,02/01/2015,3275.21
Bath & North East Somerset Council,80420681,LL3,Supported Living,P03,Wellbeing,THE BRANDON TRUST,02/01/2015,3275.21
Bath & North East Somerset Council,80420681,LL3,Supported Living,P03,Wellbeing,THE BRANDON TRUST,02/01/2015,3275.21
Bath & North East Somerset Council,80420681,LL3,Supported Living,P03,Wellbeing,THE BRANDON TRUST,02/01/2015,3275.21
Bath & North East Somerset Council,80420681,LL3,Supported Living,P03,Wellbeing,THE BRANDON TRUST,02/01/2015,3275.21
Bath & North East Somerset Council,10762601,LJ2,Legal Fees,P05,Neighbourhoods,BEVAN BRITTAN,02/01/2015,2850
Bath & North East Somerset Council,10761342,HA6,Planned Maintenance PCB,P07,Community Resources,AWP SERVICES LTD,02/01/2015,2863
Bath & North East Somerset Council,10762569,LN5,Data Lines,P04,Leader,BRITISH TELECOMMUNICATIONS PLC,02/01/2015,3021.5
Bath & North East Somerset Council,10762527,LJ4,Contracts,P02,"Early Years, Children & Youth",SOUTHSIDE FAMILY PROJECT,02/01/2015,3326.38
Bath & North East Somerset Council,10762538,LJ4,Contracts,P02,"Early Years, Children & Youth",SOUTHSIDE FAMILY PROJECT,02/01/2015,3326.38
Bath & North East Somerset Council,10762658,LJ4,Contracts,P02,"Early Years, Children & Youth",SOUTHSIDE FAMILY PROJECT,02/01/2015,3326.38
Bath & North East Somerset Council,10762599,LJ2,Legal Fees,P05,Neighbourhoods,BEVAN BRITTAN,02/01/2015,3854
Bath & North East Somerset Council,10762676,LJ4,Contracts,P01,Transport,RADSTOCK TAXIS,02/01/2015,5089.2
Bath & North East Somerset Council,10762566,LJ4,Contracts,P01,Transport,S. J. & J M MUNDEN T/A GUYAN MINI BUSES,02/01/2015,6308.55
Bath & North East Somerset Council,10762410,LJ4,Contracts,P01,Transport,FILERS COACHES,02/01/2015,6451.2
Bath & North East Somerset Council,10762706,LE1,Education Payment (independent school),P02,"Early Years, Children & Youth",MORE HOUSE SCHOOL,02/01/2015,8050
Bath & North East Somerset Council,10762502,LJ4,Contracts,P01,Transport,MINIBUS TRAVEL,02/01/2015,8295.9
Bath & North East Somerset Council,10762597,LJ2,Legal Fees,P05,Neighbourhoods,BEVAN BRITTAN,02/01/2015,8656.5
Bath & North East Somerset Council,10762738,LJ4,Contracts,P01,Transport,RIVERSIDE TAXIS,02/01/2015,11812.96
Bath & North East Somerset Council,10762592,LJ2,Legal Fees,P05,Neighbourhoods,BEVAN BRITTAN,02/01/2015,18605.5
Bath & North East Somerset Council,80420626,LL3,Supported Living,P03,Wellbeing,WJ SOLUTIONS LTD,02/01/2015,288.75
Bath & North East Somerset Council,80420626,LL3,Supported Living,P03,Wellbeing,WJ SOLUTIONS LTD,02/01/2015,288.75
Bath & North East Somerset Council,80420626,LL3,Supported Living,P03,Wellbeing,WJ SOLUTIONS LTD,02/01/2015,288.75
Bath & North East Somerset Council,10761128,3F7,External Fees,P01,Transport,ERH COMMUNICATIONS LTD,02/01/2015,51493
Bath & North East Somerset Council,10761985,3F7,External Fees,P01,Transport,M J CHURCH PLANT LTD,02/01/2015,63084.8
Bath & North East Somerset Council,10762802,LK1,Fees,P04,Leader,AGE UK BATH & N E SOMERSET,05/01/2015,5000
Bath & North East Somerset Council,10762820,LJ4,Contracts,P01,Transport,STEVE WARREN TRANSPORT SERVICES LTD,05/01/2015,77
Bath & North East Somerset Council,10762094,LV2,Contributions to Organisations,Z98,West of England Partnership,BELLE AND BOO LTD,05/01/2015,4638.52
Bath & North East Somerset Council,10762664,LK1,Fees,P07,Community Resources,BNES RE: LAND REGISTRY VDD,05/01/2015,1539
Bath & North East Somerset Council,10762199,3F7,External Fees,P07,Community Resources,MR J WHITTOCK,05/01/2015,120
Bath & North East Somerset Council,10762820,LJ4,Contracts,P01,Transport,STEVE WARREN TRANSPORT SERVICES LTD,05/01/2015,195
Bath & North East Somerset Council,10762794,LK1,Fees,P06,Sustainable Development,WESTMINSTER EDUCATION FORUM,05/01/2015,420
Bath & North East Somerset Council,10762255,LV2,Contributions to Organisations,Z98,West of England Partnership,FOOTDOWN LTD,05/01/2015,16835
Bath & North East Somerset Council,10762859,LH2,Advertising,P09,Homes & Planning,LOCAL WORLD LTD,05/01/2015,469.74
Bath & North East Somerset Council,10762084,LA1,Equipment Purchase (Non Medical),P04,Leader,OISC NO 2 ACCOUNT,05/01/2015,479.17
Bath & North East Somerset Council,10762510,LW9,Other Expenses,P04,Leader,INFORMATION COMMISSIONER,05/01/2015,1575
Bath & North East Somerset Council,10762608,HA3,Planned Maintenance,P09,Homes & Planning,ZENITH INTERNATIONAL LTD,05/01/2015,550
Bath & North East Somerset Council,10760751,HA6,Planned Maintenance PCB,P07,Community Resources,R A & R J WILLIAMS,05/01/2015,595
Bath & North East Somerset Council,10762620,LV2,Contributions to Organisations,Z98,West of England Partnership,NESSY LEARNING LTD,05/01/2015,13385.25
Bath & North East Somerset Council,10762199,3F7,External Fees,P07,Community Resources,MR J WHITTOCK,05/01/2015,660
Bath & North East Somerset Council,10762142,3F7,External Fees,P06,Sustainable Development,MDA CONSULTING LTD,05/01/2015,737
Bath & North East Somerset Council,10762256,LV2,Contributions to Organisations,Z98,West of England Partnership,POLY STROP LTD,05/01/2015,4983
Bath & North East Somerset Council,10762822,DB1,Agency Staff,P01,Transport,CEEMA LTD,05/01/2015,805
Bath & North East Somerset Council,10761295,LK1,Fees,P02,"Early Years, Children & Youth",WANSDYKE PLAY ASSOCIATION,05/01/2015,894.86
Bath & North East Somerset Council,10762279,LK1,Fees,P02,"Early Years, Children & Youth",SUE RAYNER LTD,05/01/2015,1000
Bath & North East Somerset Council,10761432,LJ4,Contracts,P01,Transport,MENDIP COMMUNITY TRANSPORT,05/01/2015,1146.88
Bath & North East Somerset Council,10762072,3F7,External Fees,P02,"Early Years, Children & Youth",HOARE LEA CONSULTING ENGINEERS,05/01/2015,1150
Bath & North East Somerset Council,10762729,DB1,Agency Staff,P01,Transport,WESSEX RECRUITMENT LTD,05/01/2015,1221.6
Bath & North East Somerset Council,10762662,LV2,Contributions to Organisations,Z98,West of England Partnership,SPLASH & RIPPLE LTD,05/01/2015,13328.51
Bath & North East Somerset Council,10762383,HP6,Water Charges,P06,Sustainable Development,BWBSL,05/01/2015,1344.03
Bath & North East Somerset Council,10757760,3C4,Building Works,P02,"Early Years, Children & Youth",CENTRAL ROOFING & BUILDING SERVICES LTD,05/01/2015,1366.02
Bath & North East Somerset Council,10762198,3F7,External Fees,P07,Community Resources,MR J WHITTOCK,05/01/2015,1415
Bath & North East Somerset Council,10760133,LJ4,Contracts,P01,Transport,BBFI LTD,05/01/2015,1897
Bath & North East Somerset Council,10762607,HA3,Planned Maintenance,P09,Homes & Planning,ZENITH INTERNATIONAL LTD,05/01/2015,2000
Bath & North East Somerset Council,10761424,LJ4,Contracts,P01,Transport,MENDIP COMMUNITY TRANSPORT,05/01/2015,2000
Bath & North East Somerset Council,10762723,LP5,Software Support,P04,Leader,NORTHGATE INFORMATION SOLUTIONS UK LTD,05/01/2015,2200
Bath & North East Somerset Council,10762223,HA4,Responsive Maintenance PCB,P07,Community Resources,DORMA UK LTD,05/01/2015,2390.69
Bath & North East Somerset Council,10762820,LJ4,Contracts,P01,Transport,STEVE WARREN TRANSPORT SERVICES LTD,05/01/2015,2412
Bath & North East Somerset Council,10762630,HN1,Electricity,P01,Transport,AQUATERRA LEISURE LIMITED,05/01/2015,2700
Bath & North East Somerset Council,10762341,LJ1,Consultants Fees,P07,Community Resources,NEPRO LTD,05/01/2015,2880
Bath & North East Somerset Council,10762775,LM2,Foster Carer Allowances,P02,"Early Years, Children & Youth",CHILDRENS FAMILY TRUST,05/01/2015,2956.16
Bath & North East Somerset Council,10762260,LV2,Contributions to Organisations,Z98,West of England Partnership,TOBACCO FACTORY,05/01/2015,14852.37
Bath & North East Somerset Council,10762770,LM2,Foster Carer Allowances,P02,"Early Years, Children & Youth",CHILDRENS FAMILY TRUST,05/01/2015,3306.15
Bath & North East Somerset Council,10760857,LM2,Foster Carer Allowances,P02,"Early Years, Children & Youth",THE FOSTERING FOUNDATION (SOUTH WEST) LIMITED,05/01/2015,3366
Bath & North East Somerset Council,10762823,LP4,Software Purchase,P04,Leader,NORTHGATE INFORMATION SOLUTIONS UK LTD,05/01/2015,4000
Bath & North East Somerset Council,10762614,LV1,Grants to Voluntary Bodies,P06,Sustainable Development,THE BATH BID (BUSINESS IMPROVEMENT DISTRICT) COMPANY,05/01/2015,4000
Bath & North East Somerset Council,10759836,LJ4,Contracts,P03,Wellbeing,UNIVERSITY HOSPITALS BRISTOL,05/01/2015,4859.91
Bath & North East Somerset Council,10762604,LK1,Fees,P06,Sustainable Development,MACKEREL SKY EVENTS LTD,05/01/2015,5000
Bath & North East Somerset Council,10762503,LE1,Education Payment (independent school),P02,"Early Years, Children & Youth",MARY HARE SCHOOLS,05/01/2015,10102
Bath & North East Somerset Council,10762507,LE1,Education Payment (independent school),P02,"Early Years, Children & Youth",MARY HARE SCHOOLS,05/01/2015,10102
Bath & North East Somerset Council,10761570,HA6,Planned Maintenance PCB,P07,Community Resources,OGIER ELECTRONICS LTD,05/01/2015,12787.5
Bath & North East Somerset Council,10760529,HP3,Room Hire Charges,P07,Community Resources,ELIOR UK PLC,05/01/2015,15168.05
Bath & North East Somerset Council,10762610,LK1,Fees,P06,Sustainable Development,BATH TOURISM PLUS,05/01/2015,59000
Bath & North East Somerset Council,10762609,LJ4,Contracts,P06,Sustainable Development,BATH TOURISM PLUS,05/01/2015,87310.5
Bath & North East Somerset Council,10762742,LJ4,Contracts,P02,"Early Years, Children & Youth",ASPIRE ACADEMY,05/01/2015,296500
Bath & North East Somerset Council,80420985,PG1,Rent Allowances,P07,Community Resources,ADVANCE HOUSING SUPPORT & SUPPOR,07/01/2015,2321.76
Bath & North East Somerset Council,10763148,LV2,Contributions to Organisations,Z98,West of England Partnership,AGENDA SALON CONCEPTS,07/01/2015,66000
Bath & North East Somerset Council,10762245,3L7,Land/Buildings - Acquisitions,P07,Community Resources,BEVAN BRITTAN,07/01/2015,16.59
Bath & North East Somerset Council,10762633,PB4,Payments to Private Contractors,P05,Neighbourhoods,HILLS WASTE SOLUTIONS LTD,07/01/2015,71.28
Bath & North East Somerset Council,10761141,LT2,Hospitality,P07,Community Resources,G4S ASSESSMENT SERVICES (UK) LTD,07/01/2015,110
Bath & North East Somerset Council,10762669,LW9,Other Expenses,P02,"Early Years, Children & Youth",BATH & NORTH EAST SOMERSET COUNCIL - OFFICE SERVIC,07/01/2015,20
Bath & North East Somerset Council,10762669,LW9,Other Expenses,P02,"Early Years, Children & Youth",BATH & NORTH EAST SOMERSET COUNCIL - OFFICE SERVIC,07/01/2015,5428.8
Bath & North East Somerset Council,80420986,PG1,Rent Allowances,P07,Community Resources,BATH AND NORTH EAST SOMERSET COU,07/01/2015,770.71
Bath & North East Somerset Council,80420991,PG1,Rent Allowances,P07,Community Resources,BATH AND NORTH EAST SOMERSET COU,07/01/2015,2167.23
Bath & North East Somerset Council,80420983,PG1,Rent Allowances,P07,Community Resources,BATH CHRISTIAN TRUST,07/01/2015,1199.44
Bath & North East Somerset Council,80417540,LM6,Nursing Care,P03,Wellbeing,CARE HOMES UK LTD,07/01/2015,564
Bath & North East Somerset Council,80417540,LM6,Nursing Care,P03,Wellbeing,CARE HOMES UK LTD,07/01/2015,564
Bath & North East Somerset Council,10763108,EA1,Training,P05,Neighbourhoods,AVALON ASSESSMENTS,07/01/2015,285
Bath & North East Somerset Council,10763108,EA1,Training,P05,Neighbourhoods,AVALON ASSESSMENTS,07/01/2015,285
Bath & North East Somerset Council,10762407,PB4,Payments to Private Contractors,P05,Neighbourhoods,VIRIDOR WASTE MANAGEMENT LTD,07/01/2015,305.18
Bath & North East Somerset Council,80421009,LK4,Nursery/Childcare Vouchers,P02,"Early Years, Children & Youth",REDACTED,07/01/2015,729
Bath & North East Somerset Council,10763152,LV2,Contributions to Organisations,Z98,West of England Partnership,DIGITAL TV LABS LTD,07/01/2015,8815.73
Bath & North East Somerset Council,10762633,LW6,Tax,P05,Neighbourhoods,HILLS WASTE SOLUTIONS LTD,07/01/2015,422.4
Bath & North East Somerset Council,10762454,LA5,Materials,P05,Neighbourhoods,PETERS LTD,07/01/2015,440
Bath & North East Somerset Council,10763093,LD4,Uniforms,P06,Sustainable Development,WATERFRONT MANUFACTURING LTD,07/01/2015,476.81
Bath & North East Somerset Council,10762901,3N7,Misc. Costs,P01,Transport,TMP (UK) LTD,07/01/2015,481.23
Bath & North East Somerset Council,10762095,3N7,Misc. Costs,P01,Transport,IMTECH TRAFFIC & INFRA UK LTD,07/01/2015,484.89
Bath & North East Somerset Council,80417903,LL4,Direct Payments,P03,Wellbeing,REDACTED,07/01/2015,993.53
Bath & North East Somerset Council,80417903,LL4,Direct Payments,P03,Wellbeing,REDACTED,07/01/2015,993.53
Bath & North East Somerset Council,10763147,LV2,Contributions to Organisations,Z98,West of England Partnership,HIMLO TRAINING CENTRE,07/01/2015,9342.89
Bath & North East Somerset Council,10762624,LK1,Fees,P06,Sustainable Development,REDACTED,07/01/2015,7888
Bath & North East Somerset Council,10763124,LX5,Concessionary Fares,P01,Transport,KEYNSHAM & DISTRICT DIAL-A-RIDE,07/01/2015,1742.15
Bath & North East Somerset Council,10763167,LL1,Services to/for Clients,P02,"Early Years, Children & Youth",DAVE'S VAN REMOVALS,07/01/2015,500
Bath & North East Somerset Council,10763250,LJ4,Contracts,P01,Transport,SOMERSET TRANSPORT SERVICES LTD,07/01/2015,506.24
Bath & North East Somerset Council,10758648,LM2,Foster Carer Allowances,P02,"Early Years, Children & Youth",THE LEAVING CARE COMPANY LTD,07/01/2015,513.71
Bath & North East Somerset Council,10763110,LK6,Photography/Artworks/Graphics,P06,Sustainable Development,MAYOR OF BATH'S CORPS OF HONORARY GUIDES,07/01/2015,514.08
Bath & North East Somerset Council,10761686,LT2,Hospitality,P04,Leader,ENOTRIA WINECELLARS LTD,07/01/2015,518.1
Bath & North East Somerset Council,10761676,LF4,Stationery,P07,Community Resources,TWOFOLD LTD,07/01/2015,553.25
Bath & North East Somerset Council,10763162,LV2,Contributions to Organisations,Z98,West of England Partnership,LOGISTICS JOB SHOP LTD,07/01/2015,3487.6
Bath & North East Somerset Council,10763063,LL8,Individualised Budget,P03,Wellbeing,REDACTED,07/01/2015,6109.03
Bath & North East Somerset Council,10762806,LJ2,Legal Fees,P03,Wellbeing,REDACTED,07/01/2015,1150
Bath & North East Somerset Council,10762693,LJ2,Legal Fees,P03,Wellbeing,REDACTED,07/01/2015,5916.96
Bath & North East Somerset Council,80420984,PG1,Rent Allowances,P07,Community Resources,REDACTED,07/01/2015,1104
Bath & North East Somerset Council,10761412,KE3,Transport & Travel,P07,Community Resources,REDACTED,07/01/2015,1020
Bath & North East Somerset Council,80420982,PG1,Rent Allowances,P07,Community Resources,REDACTED,07/01/2015,535.4
Bath & North East Somerset Council,10762127,LL1,Services to/for Clients,P03,Wellbeing,GUINNESS HOUSING ASSOCIATION,07/01/2015,580.62
Bath & North East Somerset Council,10763116,LK1,Fees,P06,Sustainable Development,REDACTED,07/01/2015,1592
Bath & North East Somerset Council,80420954,LM2,Foster Carer Allowances,P02,"Early Years, Children & Youth",REDACTED,07/01/2015,50
Bath & North East Somerset Council,80420954,LL2,Personal Needs of Clients,P02,"Early Years, Children & Youth",REDACTED,07/01/2015,65
Bath & North East Somerset Council,80420954,LM2,Foster Carer Allowances,P02,"Early Years, Children & Youth",REDACTED,07/01/2015,125
Bath & North East Somerset Council,80420954,LM2,Foster Carer Allowances,P02,"Early Years, Children & Youth",REDACTED,07/01/2015,199
Bath & North East Somerset Council,80420954,LL2,Personal Needs of Clients,P02,"Early Years, Children & Youth",REDACTED,07/01/2015,278.56
Bath & North East Somerset Council,10763115,LK1,Fees,P06,Sustainable Development,BRITISH MUSEUM GREAT COURT LTD,07/01/2015,600
Bath & North East Somerset Council,10761141,LT2,Hospitality,P07,Community Resources,G4S ASSESSMENT SERVICES (UK) LTD,07/01/2015,610
Bath & North East Somerset Council,10762818,DB1,Agency Staff,P01,Transport,CEEMA LTD,07/01/2015,617.25
Bath & North East Somerset Council,10763150,LV2,Contributions to Organisations,Z98,West of England Partnership,NEW WORLD BUSINESS CENTRE,07/01/2015,6869.6
Bath & North East Somerset Council,10763180,3F7,External Fees,P06,Sustainable Development,MICHAEL WOODS ASSOCIATES,07/01/2015,650
Bath & North East Somerset Council,10761963,LJ1,Consultants Fees,P04,Leader,WORKOUT LTD,07/01/2015,665.6
Bath & North East Somerset Council,80420928,LL2,Personal Needs of Clients,P02,"Early Years, Children & Youth",REDACTED,07/01/2015,222.86
Bath & North East Somerset Council,80420928,LL2,Personal Needs of Clients,P02,"Early Years, Children & Youth",REDACTED,07/01/2015,702.24
Bath & North East Somerset Council,10763076,LV1,Grants to Voluntary Bodies,P05,Neighbourhoods,PAROCHIAL CHURCH COUNCIL,07/01/2015,592
Bath & North East Somerset Council,10763264,LJ4,Contracts,P01,Transport,KEYNSHAM CARS,07/01/2015,720
Bath & North East Somerset Council,10763083,LK1,Fees,P06,Sustainable Development,RS SECURITY LTD,07/01/2015,730
Bath & North East Somerset Council,10763255,LJ4,Contracts,P01,Transport,1ST AVENUE TRAVEL,07/01/2015,739.5
Bath & North East Somerset Council,10762767,LW8,Conservation,P06,Sustainable Development,CAROLINE HARRISON CONSERVATION,07/01/2015,750
Bath & North East Somerset Council,10763066,LV3,Commissioned Services,P07,Community Resources,INTEGRAL ENGINEERING DESIGN LTD,07/01/2015,754
Bath & North East Somerset Council,80421007,LK4,Nursery/Childcare Vouchers,P02,"Early Years, Children & Youth",SILVERHILL SCHOOL T/A CAREERNATURE LTD,07/01/2015,770.95
Bath & North East Somerset Council,10762936,HA5,Service Contract PCB,P07,Community Resources,BUILDING AUTOMATION SOLUTIONS LTD,07/01/2015,780
Bath & North East Somerset Council,10763253,LJ4,Contracts,P01,Transport,KEYNSHAM CARS,07/01/2015,798.6
Bath & North East Somerset Council,10763265,LJ4,Contracts,P01,Transport,KEYNSHAM CARS,07/01/2015,860.16
Bath & North East Somerset Council,10762245,3L7,Land/Buildings - Acquisitions,P07,Community Resources,BEVAN BRITTAN,07/01/2015,864
Bath & North East Somerset Council,10762304,LJ1,Consultants Fees,P07,Community Resources,BEVAN BRITTAN,07/01/2015,864
Bath & North East Somerset Council,10761069,PB4,Payments to Private Contractors,P05,Neighbourhoods,HILLS WASTE SOLUTIONS LTD,07/01/2015,881.16
Bath & North East Somerset Council,10762872,KA3,Fuel,P05,Neighbourhoods,ALLSTAR BUSINESS SOLUTIONS LTD,07/01/2015,889.44
Bath & North East Somerset Council,10763257,LJ4,Contracts,P01,Transport,NEED TO GET HOME? TAXI COMPANY,07/01/2015,889.5
Bath & North East Somerset Council,10762917,LH5,Marketing,P06,Sustainable Development,KALAMAZOO SECURITY PRINT PLC,07/01/2015,905
Bath & North East Somerset Council,10762930,LA3,Equipment Maintenance (Non Medical),P05,Neighbourhoods,TELESHORE UK LTD,07/01/2015,910.1
Bath & North East Somerset Council,10763069,LV1,Grants to Voluntary Bodies,P05,Neighbourhoods,SOUTHSTOKE PARISH COUNCIL,07/01/2015,918
Bath & North East Somerset Council,10762003,3N7,Misc. Costs,P05,Neighbourhoods,BROXAP LIMITED,07/01/2015,938
Bath & North East Somerset Council,10763052,LV1,Grants to Voluntary Bodies,P05,Neighbourhoods,PAULTON PAROCHIAL CHURCH COUNCIL,07/01/2015,943
Bath & North East Somerset Council,10763084,LK1,Fees,P06,Sustainable Development,RS SECURITY LTD,07/01/2015,976
Bath & North East Somerset Council,10763153,LV2,Contributions to Organisations,Z98,West of England Partnership,SERAPHIM HOME CARE LTD,07/01/2015,3323.64
Bath & North East Somerset Council,10758444,LF1,Printing/Design,P07,Community Resources,APPLE LITHO (BRISTOL) LTD,07/01/2015,1050
Bath & North East Somerset Council,10763172,3F7,External Fees,P01,Transport,HALCROW GROUP LTD,07/01/2015,1144.49
Bath & North East Somerset Council,10757726,HK3,Sewerage & Land Drainage Maint,P01,Transport,JEREMY BENN ASSOCIATES LTD,07/01/2015,1182.43
Bath & North East Somerset Council,10762342,3F7,External Fees,P07,Community Resources,BURGES SALMON,07/01/2015,1231.9
Bath & North East Somerset Council,10758671,3F7,External Fees,P07,Community Resources,C K GIBBONS LTD,07/01/2015,1244.5
Bath & North East Somerset Council,10762226,LK2,Licences (non IT),P05,Neighbourhoods,CTS TRAFFIC AND TRANSPORTATION LTD,07/01/2015,1275
Bath & North East Somerset Council,10763240,LA5,Materials,P05,Neighbourhoods,SOMERSET COUNTY COUNCIL,07/01/2015,2800
Bath & North East Somerset Council,10763240,LA5,Materials,P05,Neighbourhoods,SOMERSET COUNTY COUNCIL,07/01/2015,10900
Bath & North East Somerset Council,10762334,HP1,Rent Payable,P01,Transport,MUTLEY PROPERTIES (HOLDINGS) LTD,07/01/2015,1349.15
Bath & North East Somerset Council,10763030,LH4,Consultation,P01,Transport,KELLY BROS SOLAR SIGNS LTD,07/01/2015,1434
Bath & North East Somerset Council,10762266,LJ1,Consultants Fees,Z98,West of England Partnership,GWE BUSINESS WEST LTD,07/01/2015,1504.37
Bath & North East Somerset Council,10762935,HA5,Service Contract PCB,P07,Community Resources,BUILDING AUTOMATION SOLUTIONS LTD,07/01/2015,1510
Bath & North East Somerset Council,10762980,HE1,General Maintenance,P01,Transport,VIX TECHNOLOGY LIMITED,07/01/2015,1510.72
Bath & North East Somerset Council,10761943,HK1,Highway Maintenance,P01,Transport,ATV FIELD SERVICES,07/01/2015,1576.26
Bath & North East Somerset Council,10762443,LA1,Equipment Purchase (Non Medical),P03,Wellbeing,DRIVE MEDICAL LTD,07/01/2015,1761.65
Bath & North East Somerset Council,10755554,3E5,IT Hardware,P07,Community Resources,ORANGE PCS,07/01/2015,1813
Bath & North East Somerset Council,10762619,3G1,Grants/Advances,P03,Wellbeing,MARK NASH LTD,07/01/2015,1820
Bath & North East Somerset Council,10763256,LJ4,Contracts,P01,Transport,SOMERBUS LTD,07/01/2015,1843.2
Bath & North East Somerset Council,10762631,PB4,Payments to Private Contractors,P05,Neighbourhoods,HILLS WASTE SOLUTIONS LTD,07/01/2015,1874.04
Bath & North East Somerset Council,10762944,LF5,Postages,P07,Community Resources,WHISTL,07/01/2015,1921.8
Bath & North East Somerset Council,10761561,LA1,Equipment Purchase (Non Medical),P03,Wellbeing,LIFTECH.ORG LTD,07/01/2015,1969
Bath & North East Somerset Council,10763255,LJ4,Contracts,P01,Transport,1ST AVENUE TRAVEL,07/01/2015,1969.8
Bath & North East Somerset Council,10761268,LK1,Fees,P07,Community Resources,HMCS,07/01/2015,1977
Bath & North East Somerset Council,10762508,3G1,Grants/Advances,P03,Wellbeing,1ST CHOICE STAIRLIFTS LIMITED,07/01/2015,2010
Bath & North East Somerset Council,10761782,3F7,External Fees,P02,"Early Years, Children & Youth",BT OPENREACH,07/01/2015,2021.85
Bath & North East Somerset Council,10762934,HE1,General Maintenance,P01,Transport,E W HOBBS,07/01/2015,2121
Bath & North East Somerset Council,10761969,LA1,Equipment Purchase (Non Medical),P03,Wellbeing,GENIE CARE LTD,07/01/2015,2149
Bath & North East Somerset Council,10763149,LV2,Contributions to Organisations,Z98,West of England Partnership,REDACTED,07/01/2015,4132.55
Bath & North East Somerset Council,10763187,LF5,Postages,P07,Community Resources,FACILITIES & CORPORATE SOLUTIONS,07/01/2015,2220.43
Bath & North East Somerset Council,10762125,LJ1,Consultants Fees,P03,Wellbeing,ROBIN COWEN CONSULTANCY LTD,07/01/2015,2262.4
Bath & North East Somerset Council,10763122,LX5,Concessionary Fares,P01,Transport,MIDSOMER NORTON & RADSTOCK RING & RIDE,07/01/2015,2297
Bath & North East Somerset Council,10761943,HK1,Highway Maintenance,P01,Transport,ATV FIELD SERVICES,07/01/2015,2312.13
Bath & North East Somerset Council,10762867,EA1,Training,P05,Neighbourhoods,SPARTAN RESCUE LTD,07/01/2015,2361.2
Bath & North East Somerset Council,10761634,DB1,Agency Staff,P04,Leader,AMEO LTD,07/01/2015,2600
Bath & North East Somerset Council,10763089,HP1,Rent Payable,P06,Sustainable Development,THE NATIONAL TRUST,07/01/2015,3750
Bath & North East Somerset Council,10759447,LX5,Concessionary Fares,P01,Transport,MIDSOMER NORTON & RADSTOCK RING & RIDE,07/01/2015,2722.5
Bath & North East Somerset Council,10763163,LK1,Fees,P02,"Early Years, Children & Youth",BARNARDO SERVICES LTD,07/01/2015,2813.7
Bath & North East Somerset Council,10762773,LA1,Equipment Purchase (Non Medical),P05,Neighbourhoods,GARDNER TAXI EQUIPMENT SALES L,07/01/2015,2830
Bath & North East Somerset Council,10762384,HN2,Gas,P07,Community Resources,AQUATERRA LEISURE,07/01/2015,2853.09
Bath & North East Somerset Council,10762990,LW9,Other Expenses,P01,Transport,SAFE & SOUND UK LTD,07/01/2015,2940
Bath & North East Somerset Council,10763144,3F7,External Fees,P09,Homes & Planning,G C P CHARTERED ARCHITECTS,07/01/2015,3117
Bath & North East Somerset Council,10763129,LM2,Foster Carer Allowances,P02,"Early Years, Children & Youth",FOSTERING SOLUTIONS LTD,07/01/2015,3346.21
Bath & North East Somerset Council,10763151,LV2,Contributions to Organisations,Z98,West of England Partnership,URBANE ECO LTD,07/01/2015,1343.25
Bath & North East Somerset Council,10763271,LJ4,Contracts,P01,Transport,V CARS,07/01/2015,473.02
Bath & North East Somerset Council,10763158,LV2,Contributions to Organisations,Z98,West of England Partnership,VIPER SUBSEA TECHNOLOGY LTD,07/01/2015,10180
Bath & North East Somerset Council,10763158,LV2,Contributions to Organisations,Z98,West of England Partnership,VIPER SUBSEA TECHNOLOGY LTD,07/01/2015,14490
Bath & North East Somerset Council,10763255,LJ4,Contracts,P01,Transport,1ST AVENUE TRAVEL,07/01/2015,3622.61
Bath & North East Somerset Council,10762395,PB4,Payments to Private Contractors,P05,Neighbourhoods,HILLS WASTE SOLUTIONS LTD,07/01/2015,3703.8
Bath & North East Somerset Council,10763134,HP1,Rent Payable,P06,Sustainable Development,WEST WILTSHIRE & EAST SOMERSET AREA MEETING,07/01/2015,1220.5
Bath & North East Somerset Council,10761971,LA1,Equipment Purchase (Non Medical),P05,Neighbourhoods,EGBERT H TAYLOR & CO LTD,07/01/2015,4646.52
Bath & North East Somerset Council,10762818,DB1,Agency Staff,P01,Transport,CEEMA LTD,07/01/2015,4966.8
Bath & North East Somerset Council,80420981,PG1,Rent Allowances,P07,Community Resources,WESTGATE (2) HOUSING ASSOCIATION,07/01/2015,522.84
Bath & North East Somerset Council,10762204,LF1,Printing/Design,P07,Community Resources,CABOT NEON SIGNS,07/01/2015,7832
Bath & North East Somerset Council,10763006,LC1,Provisions,P02,"Early Years, Children & Youth",SCHOOL MILK SERVICES LTD,07/01/2015,9157.25
Bath & North East Somerset Council,10763140,LJ4,Contracts,P05,Neighbourhoods,ENVIRO TECHNOLOGY SERVICES PLC,07/01/2015,10692.85
Bath & North East Somerset Council,10762268,LF5,Postages,P07,Community Resources,RICS BOOKS,07/01/2015,11351
Bath & North East Somerset Council,10762631,PB4,Payments to Private Contractors,P05,Neighbourhoods,HILLS WASTE SOLUTIONS LTD,07/01/2015,12071.97
Bath & North East Somerset Council,10762407,LW6,Tax,P05,Neighbourhoods,VIRIDOR WASTE MANAGEMENT LTD,07/01/2015,12545.86
Bath & North East Somerset Council,10761228,3F7,External Fees,P06,Sustainable Development,GREENMAN ENVIRONMENTAL MANAGEMENT,07/01/2015,15096
Bath & North East Somerset Council,10763255,LJ4,Contracts,P01,Transport,1ST AVENUE TRAVEL,07/01/2015,18571
Bath & North East Somerset Council,80421010,RR8,Internal Schools Transfers Paid,P02,"Early Years, Children & Youth",ASPIRE ACADEMY,07/01/2015,18952.26
Bath & North East Somerset Council,10761515,LJ4,Contracts,P01,Transport,1ST AVENUE TRAVEL,07/01/2015,21763.5
Bath & North East Somerset Council,10763250,LJ4,Contracts,P01,Transport,SOMERSET TRANSPORT SERVICES LTD,07/01/2015,22147.88
Bath & North East Somerset Council,10763145,LN1,Telephones,P04,Leader,BRITISH TELECOM,07/01/2015,29812.49
Bath & North East Somerset Council,80421011,LK1,Fees,P02,"Early Years, Children & Youth",FOSSE WAY SCHOOL,07/01/2015,31520.25
Bath & North East Somerset Council,10763145,LN1,Telephones,P04,Leader,BRITISH TELECOM,07/01/2015,49247.07
Bath & North East Somerset Council,10762631,LW6,Tax,P05,Neighbourhoods,HILLS WASTE SOLUTIONS LTD,07/01/2015,71537.61
Bath & North East Somerset Council,10762697,LM1,Volunt Homes Placements Top/Up,P02,"Early Years, Children & Youth",SHEILING SCHOOL THORNBURY GENERAL ACCOUNT,07/01/2015,78997
Bath & North East Somerset Council,10762119,3F7,External Fees,P01,Transport,BALFOUR BEATTY CIVIL ENGINEERING LTD,07/01/2015,131606.63
Bath & North East Somerset Council,80421430,PG1,Rent Allowances,P07,Community Resources,REDACTED,08/01/2015,537.6
Bath & North East Somerset Council,10763227,LV1,Grants to Voluntary Bodies,P01,Transport,AGE UK BATH & N E SOMERSET,08/01/2015,1925
Bath & North East Somerset Council,80421431,PG1,Rent Allowances,P07,Community Resources,ALLEN RESIDENTIAL LETTINGS,08/01/2015,4237.4
Bath & North East Somerset Council,10763195,LA5,Materials,P05,Neighbourhoods,BONINGALE NURSERIES,08/01/2015,62.8
Bath & North East Somerset Council,10761292,HK1,Highway Maintenance,P01,Transport,SAKNEL HIGHWAYS STRUCTURES CONTRACTOR,08/01/2015,101.15
Bath & North East Somerset Council,80421353,PG1,Rent Allowances,P07,Community Resources,BARONS PROPERTY AGENTS,08/01/2015,1623.96
Bath & North East Somerset Council,80421459,PG1,Rent Allowances,P07,Community Resources,BARTLETT WARD LTD,08/01/2015,516.92
Bath & North East Somerset Council,80421507,PG1,Rent Allowances,P07,Community Resources,BATH & DISTRICT LIFE CARE,08/01/2015,3195.4
Bath & North East Somerset Council,80421434,PG1,Rent Allowances,P07,Community Resources,BATH PROPERTY LETTING,08/01/2015,979.82
Bath & North East Somerset Council,80421414,PG1,Rent Allowances,P07,Community Resources,BLACKMAN AND JAMES,08/01/2015,715.18
Bath & North East Somerset Council,80421457,PG1,Rent Allowances,P07,Community Resources,C F LETTINGS (BATH) LTD T/A DOVE,08/01/2015,1086.88
Bath & North East Somerset Council,80421379,PG1,Rent Allowances,P07,Community Resources,CENTRIX PROPERTIES LTD,08/01/2015,625.12
Bath & North East Somerset Council,10763230,LV1,Grants to Voluntary Bodies,P01,Transport,CHEW VALLEY COMMUNITY TRANSPORT,08/01/2015,1162.5
Bath & North East Somerset Council,10763195,LA5,Materials,P05,Neighbourhoods,BONINGALE NURSERIES,08/01/2015,143.66
Bath & North East Somerset Council,80420976,PG1,Rent Allowances,P07,Community Resources,CURO,08/01/2015,1000
Bath & North East Somerset Council,80421357,PG1,Rent Allowances,P07,Community Resources,CURO PLACES BRISTOL,08/01/2015,19156.28
Bath & North East Somerset Council,10763195,LA5,Materials,P05,Neighbourhoods,BONINGALE NURSERIES,08/01/2015,236.12
Bath & North East Somerset Council,10763195,LA5,Materials,P05,Neighbourhoods,BONINGALE NURSERIES,08/01/2015,311.28
Bath & North East Somerset Council,80421350,PG1,Rent Allowances,P07,Community Resources,DIMENSIONS (UK) LTD,08/01/2015,525.52
Bath & North East Somerset Council,80421461,PG1,Rent Allowances,P07,Community Resources,DRUGS & HOMELESS INTIATIVE HTL P,08/01/2015,509.52
Bath & North East Somerset Council,10763014,LA1,Equipment Purchase (Non Medical),P06,Sustainable Development,KINNARPS (UK) LTD,08/01/2015,461.1
Bath & North East Somerset Council,80421341,PG1,Rent Allowances,P07,Community Resources,GUINNESS HOUSING ASSOCIATION,08/01/2015,3451.54
Bath & North East Somerset Council,80421361,PG1,Rent Allowances,P07,Community Resources,HANOVER HOUSING ASSOCIATION,08/01/2015,738.92
Bath & North East Somerset Council,80421359,PG1,Rent Allowances,P07,Community Resources,HANOVER HOUSING ASSOCIATION,08/01/2015,1528.28
Bath & North East Somerset Council,10761877,3V1,Vehicle Purchase,P05,Neighbourhoods,CO-CHANNEL ELECTRONICS LIMITED,08/01/2015,480
Bath & North East Somerset Council,80421343,PG1,Rent Allowances,P07,Community Resources,HERMVALE LTD,08/01/2015,720
Bath & North East Somerset Council,80421340,PG1,Rent Allowances,P07,Community Resources,REDACTED,08/01/2015,613.36
Bath & North East Somerset Council,10763232,LV1,Grants to Voluntary Bodies,P01,Transport,KEYNSHAM & DISTRICT DIAL-A-RIDE,08/01/2015,18898.25
Bath & North East Somerset Council,10761702,LJ1,Consultants Fees,P09,Homes & Planning,RICHARD ANSTIS,08/01/2015,500
Bath & North East Somerset Council,80421338,PG1,Rent Allowances,P07,Community Resources,KNIGHTSTONE HOUSING ASSOCIATION,08/01/2015,2200.09
Bath & North East Somerset Council,80421332,PG1,Rent Allowances,P07,Community Resources,KNIGHTSTONE HOUSING ASSOCIATION,08/01/2015,11984.45
Bath & North East Somerset Council,80421354,PG1,Rent Allowances,P07,Community Resources,KNIGHTSTONE HOUSING ASSOCIATION,08/01/2015,15337.31
Bath & North East Somerset Council,10763211,HP6,Water Charges,P05,Neighbourhoods,BWBSL,08/01/2015,504.24
Bath & North East Somerset Council,10762573,LJ4,Contracts,P01,Transport,JASON KING LTD,08/01/2015,506
Bath & North East Somerset Council,80421149,LJ4,Contracts,P03,Wellbeing,St Marys Surgery,08/01/2015,511
Bath & North East Somerset Council,80421249,LJ4,Contracts,P03,Wellbeing,"DR ROLLS,TILLEY,STAGG,WILES, S",08/01/2015,519
Bath & North East Somerset Council,10761300,LN4,Mobile Phones,P04,Leader,O2 (UK) LTD,08/01/2015,539.34
Bath & North East Somerset Council,10761299,LH3,Publicity,P04,Leader,HELLO STUDIO LTD,08/01/2015,550
Bath & North East Somerset Council,80421351,PG1,Rent Allowances,P07,Community Resources,MICHAEL GOULD LETTINGS,08/01/2015,1649.44
Bath & North East Somerset Council,80421363,PG1,Rent Allowances,P07,Community Resources,REDACTED,08/01/2015,662.28
Bath & North East Somerset Council,80421333,PG1,Rent Allowances,P07,Community Resources,REDACTED,08/01/2015,529.13
Bath & North East Somerset Council,80421473,PG1,Rent Allowances,P07,Community Resources,REDACTED,08/01/2015,764.6
Bath & North East Somerset Council,80421375,PG1,Rent Allowances,P07,Community Resources,REDACTED,08/01/2015,1049.92
Bath & North East Somerset Council,80421362,PG1,Rent Allowances,P07,Community Resources,REDACTED,08/01/2015,521.52
Bath & North East Somerset Council,80421382,PG1,Rent Allowances,P07,Community Resources,REDACTED,08/01/2015,507.68
Bath & North East Somerset Council,80421396,PG1,Rent Allowances,P07,Community Resources,REDACTED,08/01/2015,507.68
Bath & North East Somerset Council,80421453,PG1,Rent Allowances,P07,Community Resources,REDACTED,08/01/2015,1391.32
Bath & North East Somerset Council,80421298,PG1,Rent Allowances,P07,Community Resources,REDACTED,08/01/2015,520.2
Bath & North East Somerset Council,80421365,PG1,Rent Allowances,P07,Community Resources,REDACTED,08/01/2015,1015.36
Bath & North East Somerset Council,80421469,PG1,Rent Allowances,P07,Community Resources,REDACTED,08/01/2015,537.6
Bath & North East Somerset Council,80421460,PG1,Rent Allowances,P07,Community Resources,REDACTED,08/01/2015,807.68
Bath & North East Somerset Council,80421465,PG1,Rent Allowances,P07,Community Resources,REDACTED,08/01/2015,1015.36
Bath & North East Somerset Council,80421475,PG1,Rent Allowances,P07,Community Resources,REDACTED,08/01/2015,565.4
Bath & North East Somerset Council,80421468,PG1,Rent Allowances,P07,Community Resources,REDACTED,08/01/2015,830.76
Bath & North East Somerset Council,80421449,PG1,Rent Allowances,P07,Community Resources,REDACTED,08/01/2015,600
Bath & North East Somerset Council,80421386,PG1,Rent Allowances,P07,Community Resources,REDACTED,08/01/2015,1351.13
Bath & North East Somerset Council,80421464,PG1,Rent Allowances,P07,Community Resources,REDACTED,08/01/2015,661.84
Bath & North East Somerset Council,80421413,PG1,Rent Allowances,P07,Community Resources,REDACTED,08/01/2015,565.4
Bath & North East Somerset Council,80421394,PG1,Rent Allowances,P07,Community Resources,REDACTED,08/01/2015,4402.32
Bath & North East Somerset Council,80421281,PG1,Rent Allowances,P07,Community Resources,REDACTED,08/01/2015,600.3
Bath & North East Somerset Council,80420988,PG1,Rent Allowances,P07,Community Resources,REDACTED,08/01/2015,554.4
Bath & North East Somerset Council,80421462,PG1,Rent Allowances,P07,Community Resources,REDACTED,08/01/2015,621.52
Bath & North East Somerset Council,80421450,PG1,Rent Allowances,P07,Community Resources,REDACTED,08/01/2015,1899.8
Bath & North East Somerset Council,80421463,PG1,Rent Allowances,P07,Community Resources,REDACTED,08/01/2015,615.12
Bath & North East Somerset Council,80421383,PG1,Rent Allowances,P07,Community Resources,REDACTED,08/01/2015,763.2
Bath & North East Somerset Council,80421405,PG1,Rent Allowances,P07,Community Resources,REDACTED,08/01/2015,981.09
Bath & North East Somerset Council,80421355,PG1,Rent Allowances,P07,Community Resources,REDACTED,08/01/2015,661.84
Bath & North East Somerset Council,80421385,PG1,Rent Allowances,P07,Community Resources,REDACTED,08/01/2015,641.52
Bath & North East Somerset Council,80421435,PG1,Rent Allowances,P07,Community Resources,REDACTED,08/01/2015,535.4
Bath & North East Somerset Council,80421392,PG1,Rent Allowances,P07,Community Resources,REDACTED,08/01/2015,662.28
Bath & North East Somerset Council,80421369,PG1,Rent Allowances,P07,Community Resources,REDACTED,08/01/2015,500
Bath & North East Somerset Council,80421193,LJ4,Contracts,P03,Wellbeing,DR ROY & PARTNERS T/A ELM HAYES SURGERY,08/01/2015,569
Bath & North East Somerset Council,80421324,PG1,Rent Allowances,P07,Community Resources,REDACTED,08/01/2015,629.06
Bath & North East Somerset Council,80421292,PG1,Rent Allowances,P07,Community Resources,REDACTED,08/01/2015,530.76
Bath & North East Somerset Council,80421443,PG1,Rent Allowances,P07,Community Resources,REDACTED,08/01/2015,600
Bath & North East Somerset Council,10762058,HA5,Service Contract PCB,P07,Community Resources,FACULTATIEVE TECHNOLOGIES LTD,08/01/2015,580.2
Bath & North East Somerset Council,80421232,LJ4,Contracts,P03,Wellbeing,"Drs Wharton, Cooper, Grabham & Brooks",08/01/2015,584
Bath & North East Somerset Council,80421371,PG1,Rent Allowances,P07,Community Resources,REDACTED,08/01/2015,500
Bath & North East Somerset Council,80421407,PG1,Rent Allowances,P07,Community Resources,REDACTED,08/01/2015,600
Bath & North East Somerset Council,80421440,PG1,Rent Allowances,P07,Community Resources,REDACTED,08/01/2015,932.24
Bath & North East Somerset Council,80421471,PG1,Rent Allowances,P07,Community Resources,REDACTED,08/01/2015,763.2
Bath & North East Somerset Council,80421347,PG1,Rent Allowances,P07,Community Resources,REDACTED,08/01/2015,641.52
Bath & North East Somerset Council,80421397,PG1,Rent Allowances,P07,Community Resources,REDACTED,08/01/2015,507.68
Bath & North East Somerset Council,80421304,PG1,Rent Allowances,P07,Community Resources,REDACTED,08/01/2015,507.7
Bath & North East Somerset Council,10761579,LW7,Intestate Costs,P05,Neighbourhoods,DIGNITY,08/01/2015,590
Bath & North East Somerset Council,80421393,PG1,Rent Allowances,P07,Community Resources,REDACTED,08/01/2015,549.24
Bath & North East Somerset Council,80421410,PG1,Rent Allowances,P07,Community Resources,REDACTED,08/01/2015,1476.88
Bath & North East Somerset Council,80421402,PG1,Rent Allowances,P07,Community Resources,REDACTED,08/01/2015,537.6
Bath & North East Somerset Council,80421439,PG1,Rent Allowances,P07,Community Resources,REDACTED,08/01/2015,675.92
Bath & North East Somerset Council,80421280,PG1,Rent Allowances,P07,Community Resources,REDACTED,08/01/2015,1730.7
Bath & North East Somerset Council,80421441,PG1,Rent Allowances,P07,Community Resources,REDACTED,08/01/2015,692.32
Bath & North East Somerset Council,80421458,PG1,Rent Allowances,P07,Community Resources,REDACTED,08/01/2015,537.6
Bath & North East Somerset Council,80421406,PG1,Rent Allowances,P07,Community Resources,REDACTED,08/01/2015,738.48
Bath & North East Somerset Council,80421388,PG1,Rent Allowances,P07,Community Resources,REDACTED,08/01/2015,507.68
Bath & North East Somerset Council,80421409,PG1,Rent Allowances,P07,Community Resources,REDACTED,08/01/2015,2649.6
Bath & North East Somerset Council,80421416,PG1,Rent Allowances,P07,Community Resources,REDACTED,08/01/2015,553.84
Bath & North East Somerset Council,80421381,PG1,Rent Allowances,P07,Community Resources,REDACTED,08/01/2015,692.32
Bath & North East Somerset Council,80421466,PG1,Rent Allowances,P07,Community Resources,REDACTED,08/01/2015,661.84
Bath & North East Somerset Council,80421412,PG1,Rent Allowances,P07,Community Resources,REDACTED,08/01/2015,767.8
Bath & North East Somerset Council,80421446,PG1,Rent Allowances,P07,Community Resources,REDACTED,08/01/2015,659.25
Bath & North East Somerset Council,80421424,PG1,Rent Allowances,P07,Community Resources,REDACTED,08/01/2015,578.08
Bath & North East Somerset Council,10762343,LJ2,Legal Fees,P09,Homes & Planning,LANDMARK CHAMBERS LTD,08/01/2015,635
Bath & North East Somerset Council,80421259,LJ4,Contracts,P03,Wellbeing,Somerton House Surgery,08/01/2015,642.3
Bath & North East Somerset Council,80421182,LJ4,Contracts,P03,Wellbeing,"Drs Jackson, Chapman, Hodson & Speed",08/01/2015,644
Bath & North East Somerset Council,10762185,HK1,Highway Maintenance,P01,Transport,GREEN MANTLE (ECOSOPHY) LIMITED,08/01/2015,650
Bath & North East Somerset Council,80421419,PG1,Rent Allowances,P07,Community Resources,NEXT LINK,08/01/2015,4545.8
Bath & North East Somerset Council,80421164,LJ4,Contracts,P03,Wellbeing,University Medical Centre,08/01/2015,652
Bath & North East Somerset Council,80421210,LJ4,Contracts,P03,Wellbeing,Drs T J Gollin W A Coppock & P Guy,08/01/2015,657
Bath & North East Somerset Council,10763004,HA2,Servicing,P06,Sustainable Development,HORDERS,08/01/2015,658.26
Bath & North East Somerset Council,10763313,LD1,Protective & Safety Clothing,P05,Neighbourhoods,P F CUSACK (TOOLS SUPPLIES) LTD,08/01/2015,670
Bath & North East Somerset Council,10762879,LA1,Equipment Purchase (Non Medical),P03,Wellbeing,INVACARE (UK) LTD,08/01/2015,674.05
Bath & North East Somerset Council,80421420,PG1,Rent Allowances,P07,Community Resources,OPTIONS FOR LIVING LTD,08/01/2015,2378.95
Bath & North East Somerset Council,80421404,PG1,Rent Allowances,P07,Community Resources,P.E.O.P.L.E.,08/01/2015,1278.41
Bath & North East Somerset Council,80421337,PG1,Rent Allowances,P07,Community Resources,PEGASUS PROPERTIES,08/01/2015,2642.24
Bath & North East Somerset Council,10762108,LN5,Data Lines,P04,Leader,BT GLOBAL SERVICES,08/01/2015,718.53
Bath & North East Somerset Council,80421157,LJ4,Contracts,P03,Wellbeing,Chew Medical Practice,08/01/2015,728.8
Bath & North East Somerset Council,10763208,HP6,Water Charges,P05,Neighbourhoods,BWBSL,08/01/2015,743.06
Bath & North East Somerset Council,10762675,LJ1,Consultants Fees,P09,Homes & Planning,CARTER JONAS LLP,08/01/2015,750
Bath & North East Somerset Council,80421199,LJ4,Contracts,P03,Wellbeing,Fairfield Park Health Centre,08/01/2015,765
Bath & North East Somerset Council,10763312,LD1,Protective & Safety Clothing,P05,Neighbourhoods,P F CUSACK (TOOLS SUPPLIES) LTD,08/01/2015,780
Bath & North East Somerset Council,80421344,PG1,Rent Allowances,P07,Community Resources,PLACES FOR PEOPLE,08/01/2015,1170.2
Bath & North East Somerset Council,80421358,PG1,Rent Allowances,P07,Community Resources,PLACES FOR PEOPLE HOMES,08/01/2015,5885.68
Bath & North East Somerset Council,80421423,PG1,Rent Allowances,P07,Community Resources,PREMIER LETTINGS,08/01/2015,530.76
Bath & North East Somerset Council,80421254,LJ4,Contracts,P03,Wellbeing,Rush Hill and Weston Surgeries Practice Account,08/01/2015,808
Bath & North East Somerset Council,80421194,LJ4,Contracts,P03,Wellbeing,DR ROY & PARTNERS T/A ELM HAYES SURGERY,08/01/2015,824
Bath & North East Somerset Council,10761877,3V1,Vehicle Purchase,P05,Neighbourhoods,CO-CHANNEL ELECTRONICS LIMITED,08/01/2015,825
Bath & North East Somerset Council,10762977,HA2,Servicing,P06,Sustainable Development,AVON FIRE SYSTEMS LTD,08/01/2015,825
Bath & North East Somerset Council,80421160,LJ4,Contracts,P03,Wellbeing,Temple House Practice,08/01/2015,941
Bath & North East Somerset Council,10763053,LV1,Grants to Voluntary Bodies,P05,Neighbourhoods,TIMSBURY PAROCHIAL CHURCH COUNCIL,08/01/2015,959.41
Bath & North East Somerset Council,10762409,PB4,Payments to Private Contractors,P05,Neighbourhoods,M J CHURCH PLANT LTD,08/01/2015,960.7
Bath & North East Somerset Council,80421346,PG1,Rent Allowances,P07,Community Resources,SANCTUARY HOUSING ASSOCIATION,08/01/2015,1314.36
Bath & North East Somerset Council,10762081,LA8,Purchase of Medical Equipment,P04,Leader,THE COMMUNITY HEARTBEAT TRUST,08/01/2015,975
Bath & North East Somerset Council,80421265,LJ4,Contracts,P03,Wellbeing,Dr Blackwell & Partners,08/01/2015,976
Bath & North East Somerset Council,80421271,LJ4,Contracts,P03,Wellbeing,Dr G Jacson & Partners,08/01/2015,997
Bath & North East Somerset Council,10761877,3V1,Vehicle Purchase,P05,Neighbourhoods,CO-CHANNEL ELECTRONICS LIMITED,08/01/2015,1000
Bath & North East Somerset Council,80421243,LJ4,Contracts,P03,Wellbeing,Oldfield Surgery,08/01/2015,1020
Bath & North East Somerset Council,80421221,LJ4,Contracts,P03,Wellbeing,Hopehouse Surgery,08/01/2015,1029
Bath & North East Somerset Council,80421455,PG1,Rent Allowances,P07,Community Resources,SHELAND LTD,08/01/2015,1223.08
Bath & North East Somerset Council,10761953,3C4,Building Works,P01,Transport,D B GIBBONS (CONSTRUCTION) LTD,08/01/2015,1150
Bath & North East Somerset Council,80421171,LJ4,Contracts,P03,Wellbeing,WEST VIEW SURGERY,08/01/2015,1158
Bath & North East Somerset Council,80421168,LJ4,Contracts,P03,Wellbeing,Chew Medical Practice,08/01/2015,1167
Bath & North East Somerset Council,10761877,3V1,Vehicle Purchase,P05,Neighbourhoods,CO-CHANNEL ELECTRONICS LIMITED,08/01/2015,1237.5
Bath & North East Somerset Council,80421432,PG1,Rent Allowances,P07,Community Resources,SOMER COMMUNITY HOUSING TRUST,08/01/2015,553.84
Bath & North East Somerset Council,10762166,3C4,Building Works,P02,"Early Years, Children & Youth",BBA ARCHITECTS,08/01/2015,1305
Bath & North East Somerset Council,10763212,HP6,Water Charges,P05,Neighbourhoods,BWBSL,08/01/2015,1342.07
Bath & North East Somerset Council,10763235,LV1,Grants to Voluntary Bodies,P01,Transport,ST PHILLIPS COMMUNITY MINIBUS,08/01/2015,1243.5
Bath & North East Somerset Council,10762463,LJ4,Contracts,P01,Transport,JASON KING LTD,08/01/2015,1352.4
Bath & North East Somerset Council,10762996,HA3,Planned Maintenance,P06,Sustainable Development,HORDERS,08/01/2015,1380.2
Bath & North East Somerset Council,10763013,HE1,General Maintenance,P06,Sustainable Development,HORDERS,08/01/2015,1419.49
Bath & North East Somerset Council,10761951,LK1,Fees,P07,Community Resources,LOGOTECH SYSTEMS,08/01/2015,1500
Bath & North East Somerset Council,10762494,LJ4,Contracts,P01,Transport,JASON KING LTD,08/01/2015,1540
Bath & North East Somerset Council,10762426,LJ4,Contracts,P01,Transport,JASON KING LTD,08/01/2015,1680
Bath & North East Somerset Council,10763219,HP6,Water Charges,P05,Neighbourhoods,BWBSL,08/01/2015,1760.26
Bath & North East Somerset Council,10763326,LK1,Fees,P02,"Early Years, Children & Youth",TRINITY COLLEGE LONDON,08/01/2015,1873.38
Bath & North East Somerset Council,10763234,LV1,Grants to Voluntary Bodies,P01,Transport,SWAN ADVICE NETWORK,08/01/2015,3950
Bath & North East Somerset Council,10762956,LJ4,Contracts,P01,Transport,JASON KING LTD,08/01/2015,1996.8
Bath & North East Somerset Council,10761292,HK1,Highway Maintenance,P01,Transport,SAKNEL HIGHWAYS STRUCTURES CONTRACTOR,08/01/2015,2100
Bath & North East Somerset Council,10761877,3V1,Vehicle Purchase,P05,Neighbourhoods,CO-CHANNEL ELECTRONICS LIMITED,08/01/2015,2145
Bath & North East Somerset Council,80421426,PG1,Rent Allowances,P07,Community Resources,REDACTED,08/01/2015,4425.48
Bath & North East Somerset Council,80421366,PG1,Rent Allowances,P07,Community Resources,THE BATH PROPERTY SHOP,08/01/2015,1638.48
Bath & North East Somerset Council,10761217,LH3,Publicity,P05,Neighbourhoods,TOM LEDBURY,08/01/2015,2430
Bath & North East Somerset Council,10761700,3C4,Building Works,P07,Community Resources,M D BUILDING SERVICES LTD,08/01/2015,2462.6
Bath & North East Somerset Council,10763332,LH5,Marketing,P06,Sustainable Development,BATH TOURISM PLUS,08/01/2015,2579.75
Bath & North East Somerset Council,80421342,PG1,Rent Allowances,P07,Community Resources,THE GUINNESS TRUST,08/01/2015,4027.42
Bath & North East Somerset Council,10762343,LJ2,Legal Fees,P09,Homes & Planning,LANDMARK CHAMBERS LTD,08/01/2015,3175
Bath & North East Somerset Council,80421384,PG1,Rent Allowances,P07,Community Resources,TRUSTEASE PROPERTY MANAGEMENT LT,08/01/2015,2624.88
Bath & North East Somerset Council,10763362,EA1,Training,P01,Transport,UNIVERSITY OF THE WEST OF ENGL,08/01/2015,3300
Bath & North East Somerset Council,10763333,LK1,Fees,P03,Wellbeing,NHS BATH & NORTH EAST SOMERSET CCG,08/01/2015,3400
Bath & North East Somerset Council,80421408,PG1,Rent Allowances,P07,Community Resources,UG PROPERTY MANAGEMENT COMPANY,08/01/2015,662.28
Bath & North East Somerset Council,10761741,HN1,Electricity,P07,Community Resources,SOUTHERN ELECTRIC CONTRACTING LTD,08/01/2015,3984.83
Bath & North East Somerset Council,10763117,LJ1,Consultants Fees,P06,Sustainable Development,METAPHOR COMMUNICATIONS LTD,08/01/2015,6666
Bath & North East Somerset Council,10761286,LJ1,Consultants Fees,P01,Transport,BLACK & VEATCH LIMITED,08/01/2015,7296
Bath & North East Somerset Council,10761877,3V1,Vehicle Purchase,P05,Neighbourhoods,CO-CHANNEL ELECTRONICS LIMITED,08/01/2015,8000
Bath & North East Somerset Council,10762991,LF1,Printing/Design,P07,Community Resources,TOPLINK ENVELOPES LTD,08/01/2015,8043
Bath & North East Somerset Council,10752549,LJ1,Consultants Fees,P04,Leader,ACHIEVE BREAKTHROUGH LTD,08/01/2015,10000
Bath & North East Somerset Council,10763228,LV1,Grants to Voluntary Bodies,P01,Transport,BATH COMMUNITY TRANSPORT,08/01/2015,12262
Bath & North East Somerset Council,10761877,3V1,Vehicle Purchase,P05,Neighbourhoods,CO-CHANNEL ELECTRONICS LIMITED,08/01/2015,12375
Bath & North East Somerset Council,10762097,LA1,Equipment Purchase (Non Medical),P01,Transport,IMTECH TRAFFIC & INFRA UK LTD,08/01/2015,20633.38
Bath & North East Somerset Council,10763359,HE5,Security of Premises,P01,Transport,SAFE AND SOUND UK LIMITED,08/01/2015,21742.5
Bath & North East Somerset Council,10761741,HN1,Electricity,P07,Community Resources,SOUTHERN ELECTRIC CONTRACTING LTD,08/01/2015,24864.77
Bath & North East Somerset Council,10763233,LV1,Grants to Voluntary Bodies,P01,Transport,MIDSOMER NORTON & RADSTOCK RING & RIDE,08/01/2015,25614.75
Bath & North East Somerset Council,10762375,3F7,External Fees,P02,"Early Years, Children & Youth",H MEALING & SONS LTD,08/01/2015,73647
Bath & North East Somerset Council,10763428,LJ1,Consultants Fees,P03,Wellbeing,JANE LAWSON CONSULTANCY,09/01/2015,0.74
Bath & North East Somerset Council,80421742,LM8,Home Care,P03,Wellbeing,ACTIVE ASSISTANCE,09/01/2015,1300
Bath & North East Somerset Council,80421693,LM8,Home Care,P03,Wellbeing,AGINCARE LIVE IN CARE SERVICES LTD,09/01/2015,0.06
Bath & North East Somerset Council,80421694,LM8,Home Care,P03,Wellbeing,AGINCARE LIVE IN CARE SERVICES LTD,09/01/2015,0.06
Bath & North East Somerset Council,80421695,LM8,Home Care,P03,Wellbeing,AGINCARE LIVE IN CARE SERVICES LTD,09/01/2015,0.06
Bath & North East Somerset Council,80421692,LM8,Home Care,P03,Wellbeing,AGINCARE LIVE IN CARE SERVICES LTD,09/01/2015,437.14
Bath & North East Somerset Council,80421696,LM8,Home Care,P03,Wellbeing,AGINCARE LIVE IN CARE SERVICES LTD,09/01/2015,700
Bath & North East Somerset Council,80421696,LM8,Home Care,P03,Wellbeing,AGINCARE LIVE IN CARE SERVICES LTD,09/01/2015,700
Bath & North East Somerset Council,80421692,LM8,Home Care,P03,Wellbeing,AGINCARE LIVE IN CARE SERVICES LTD,09/01/2015,765
Bath & North East Somerset Council,80421693,LM8,Home Care,P03,Wellbeing,AGINCARE LIVE IN CARE SERVICES LTD,09/01/2015,765
Bath & North East Somerset Council,80421693,LM8,Home Care,P03,Wellbeing,AGINCARE LIVE IN CARE SERVICES LTD,09/01/2015,765
Bath & North East Somerset Council,80421694,LM8,Home Care,P03,Wellbeing,AGINCARE LIVE IN CARE SERVICES LTD,09/01/2015,765
Bath & North East Somerset Council,80421694,LM8,Home Care,P03,Wellbeing,AGINCARE LIVE IN CARE SERVICES LTD,09/01/2015,765
Bath & North East Somerset Council,80421695,LM8,Home Care,P03,Wellbeing,AGINCARE LIVE IN CARE SERVICES LTD,09/01/2015,765
Bath & North East Somerset Council,80421695,LM8,Home Care,P03,Wellbeing,AGINCARE LIVE IN CARE SERVICES LTD,09/01/2015,765
Bath & North East Somerset Council,80421689,LM8,Home Care,P03,Wellbeing,AMBER HOMECARE LTD,09/01/2015,1
Bath & North East Somerset Council,80421689,LM8,Home Care,P03,Wellbeing,AMBER HOMECARE LTD,09/01/2015,81.08
Bath & North East Somerset Council,80421733,LM8,Home Care,P03,Wellbeing,AMBER HOMECARE LTD,09/01/2015,88.75
Bath & North East Somerset Council,80421733,LM8,Home Care,P03,Wellbeing,AMBER HOMECARE LTD,09/01/2015,88.75
Bath & North East Somerset Council,80421733,LM8,Home Care,P03,Wellbeing,AMBER HOMECARE LTD,09/01/2015,88.75
Bath & North East Somerset Council,80421733,LM8,Home Care,P03,Wellbeing,AMBER HOMECARE LTD,09/01/2015,88.75
Bath & North East Somerset Council,80421687,LM8,Home Care,P03,Wellbeing,AMBER HOMECARE LTD,09/01/2015,91.26
Bath & North East Somerset Council,80421732,LM8,Home Care,P03,Wellbeing,AMBER HOMECARE LTD,09/01/2015,106.5
Bath & North East Somerset Council,80421732,LM8,Home Care,P03,Wellbeing,AMBER HOMECARE LTD,09/01/2015,117.84
Bath & North East Somerset Council,80421732,LM8,Home Care,P03,Wellbeing,AMBER HOMECARE LTD,09/01/2015,117.84
Bath & North East Somerset Council,80421732,LM8,Home Care,P03,Wellbeing,AMBER HOMECARE LTD,09/01/2015,117.84
Bath & North East Somerset Council,80421732,LM8,Home Care,P03,Wellbeing,AMBER HOMECARE LTD,09/01/2015,117.84
Bath & North East Somerset Council,80421689,LM8,Home Care,P03,Wellbeing,AMBER HOMECARE LTD,09/01/2015,292.78
Bath & North East Somerset Council,80421689,LM8,Home Care,P03,Wellbeing,AMBER HOMECARE LTD,09/01/2015,292.78
Bath & North East Somerset Council,80421689,LM8,Home Care,P03,Wellbeing,AMBER HOMECARE LTD,09/01/2015,292.78
Bath & North East Somerset Council,80421689,LM8,Home Care,P03,Wellbeing,AMBER HOMECARE LTD,09/01/2015,292.78
Bath & North East Somerset Council,80421687,LM8,Home Care,P03,Wellbeing,AMBER HOMECARE LTD,09/01/2015,315.61
Bath & North East Somerset Council,80421687,LM8,Home Care,P03,Wellbeing,AMBER HOMECARE LTD,09/01/2015,315.61
Bath & North East Somerset Council,80421687,LM8,Home Care,P03,Wellbeing,AMBER HOMECARE LTD,09/01/2015,315.61
Bath & North East Somerset Council,80421687,LM8,Home Care,P03,Wellbeing,AMBER HOMECARE LTD,09/01/2015,315.61
Bath & North East Somerset Council,80421733,LM8,Home Care,P03,Wellbeing,AMBER HOMECARE LTD,09/01/2015,334.62
Bath & North East Somerset Council,80421733,LM8,Home Care,P03,Wellbeing,AMBER HOMECARE LTD,09/01/2015,334.62
Bath & North East Somerset Council,80421733,LM8,Home Care,P03,Wellbeing,AMBER HOMECARE LTD,09/01/2015,334.62
Bath & North East Somerset Council,80421733,LM8,Home Care,P03,Wellbeing,AMBER HOMECARE LTD,09/01/2015,334.62
Bath & North East Somerset Council,10763077,LK6,Photography/Artworks/Graphics,P06,Sustainable Development,PROPORTION LONDON LTD,09/01/2015,50
Bath & North East Somerset Council,10763077,LK6,Photography/Artworks/Graphics,P06,Sustainable Development,PROPORTION LONDON LTD,09/01/2015,100
Bath & North East Somerset Council,10752275,LV1,Grants to Voluntary Bodies,P04,Leader,BATH & NORTH EAST SOMERSET SOCIAL CLUB,09/01/2015,2000
Bath & North East Somerset Council,80421601,LM8,Home Care,P03,Wellbeing,BATHHAL,09/01/2015,109.28
Bath & North East Somerset Council,80421601,LM8,Home Care,P03,Wellbeing,BATHHAL,09/01/2015,154
Bath & North East Somerset Council,80421601,LM8,Home Care,P03,Wellbeing,BATHHAL,09/01/2015,154
Bath & North East Somerset Council,80421601,LM8,Home Care,P03,Wellbeing,BATHHAL,09/01/2015,154
Bath & North East Somerset Council,80421601,LM8,Home Care,P03,Wellbeing,BATHHAL,09/01/2015,154
Bath & North East Somerset Council,80421748,LM8,Home Care,P03,Wellbeing,BLUEBIRD CARE (BATH),09/01/2015,40
Bath & North East Somerset Council,80421748,LM8,Home Care,P03,Wellbeing,BLUEBIRD CARE (BATH),09/01/2015,467.1
Bath & North East Somerset Council,80421746,LM8,Home Care,P03,Wellbeing,BLUEBIRD CARE (BATH),09/01/2015,950
Bath & North East Somerset Council,80421747,LM8,Home Care,P03,Wellbeing,BLUEBIRD CARE (BATH),09/01/2015,1089.9
Bath & North East Somerset Council,80421748,LM8,Home Care,P03,Wellbeing,BLUEBIRD CARE (BATH),09/01/2015,1089.9
Bath & North East Somerset Council,10761464,EA1,Training,P09,Homes & Planning,CHRIS CROFT TRAINING LTD,09/01/2015,120
Bath & North East Somerset Council,10763077,LK6,Photography/Artworks/Graphics,P06,Sustainable Development,PROPORTION LONDON LTD,09/01/2015,140
Bath & North East Somerset Council,10763077,LK6,Photography/Artworks/Graphics,P06,Sustainable Development,PROPORTION LONDON LTD,09/01/2015,140
Bath & North East Somerset Council,80421587,LA7,Purchases for Resale,P06,Sustainable Development,F H SWIFT,09/01/2015,142.8
Bath & North East Somerset Council,80421760,PG1,Rent Allowances,P07,Community Resources,CURO,09/01/2015,677.9
Bath & North East Somerset Council,80421763,PG1,Rent Allowances,P07,Community Resources,CURO,09/01/2015,737.06
Bath & North East Somerset Council,80421765,PG1,Rent Allowances,P07,Community Resources,CURO,09/01/2015,18116.02
Bath & North East Somerset Council,80421764,PG1,Rent Allowances,P07,Community Resources,CURO,09/01/2015,90612.2
Bath & North East Somerset Council,10763290,LA6,Tools,P05,Neighbourhoods,K.I.T. CO,09/01/2015,420
Bath & North East Somerset Council,10763238,KE2,Payment to Parents/Students,P02,"Early Years, Children & Youth",REDACTED,09/01/2015,648
Bath & North East Somerset Council,80421700,LM9,Day Care,P03,Wellbeing,FREEWAYS TRUST LTD,09/01/2015,341.8
Bath & North East Somerset Council,80421700,LM9,Day Care,P03,Wellbeing,FREEWAYS TRUST LTD,09/01/2015,341.8
Bath & North East Somerset Council,80421700,LM9,Day Care,P03,Wellbeing,FREEWAYS TRUST LTD,09/01/2015,341.8
Bath & North East Somerset Council,80421700,LM9,Day Care,P03,Wellbeing,FREEWAYS TRUST LTD,09/01/2015,341.8
Bath & North East Somerset Council,10763289,DB1,Agency Staff,P01,Transport,C R DAWSON LTD,09/01/2015,450.3
Bath & North East Somerset Council,10763012,LV2,Contributions to Organisations,P04,Leader,FINE PINES,09/01/2015,455
Bath & North East Somerset Council,10759900,KB2,Vehicle Leasing,P04,Leader,LEX AUTOLEASE LTD,09/01/2015,456.27
Bath & North East Somerset Council,10762403,KB2,Vehicle Leasing,P04,Leader,LEX AUTOLEASE LTD,09/01/2015,456.27
Bath & North East Somerset Council,80421754,LM8,Home Care,P03,Wellbeing,I & S DUTTON LTD T/A CAREWATCH,09/01/2015,18
Bath & North East Somerset Council,80421738,LM8,Home Care,P03,Wellbeing,I & S DUTTON LTD T/A CAREWATCH,09/01/2015,117
Bath & North East Somerset Council,80421738,LM8,Home Care,P03,Wellbeing,I & S DUTTON LTD T/A CAREWATCH,09/01/2015,117
Bath & North East Somerset Council,80421738,LM8,Home Care,P03,Wellbeing,I & S DUTTON LTD T/A CAREWATCH,09/01/2015,117
Bath & North East Somerset Council,80421738,LM8,Home Care,P03,Wellbeing,I & S DUTTON LTD T/A CAREWATCH,09/01/2015,117
Bath & North East Somerset Council,80421749,LM8,Home Care,P03,Wellbeing,I & S DUTTON LTD T/A CAREWATCH,09/01/2015,126
Bath & North East Somerset Council,80421749,LM8,Home Care,P03,Wellbeing,I & S DUTTON LTD T/A CAREWATCH,09/01/2015,126
Bath & North East Somerset Council,80421753,LM8,Home Care,P03,Wellbeing,I & S DUTTON LTD T/A CAREWATCH,09/01/2015,126
Bath & North East Somerset Council,80421753,LM8,Home Care,P03,Wellbeing,I & S DUTTON LTD T/A CAREWATCH,09/01/2015,126
Bath & North East Somerset Council,80421727,LM8,Home Care,P03,Wellbeing,I & S DUTTON LTD T/A CAREWATCH,09/01/2015,180
Bath & North East Somerset Council,80421727,LM8,Home Care,P03,Wellbeing,I & S DUTTON LTD T/A CAREWATCH,09/01/2015,180
Bath & North East Somerset Council,80421727,LM8,Home Care,P03,Wellbeing,I & S DUTTON LTD T/A CAREWATCH,09/01/2015,180
Bath & North East Somerset Council,80421727,LM8,Home Care,P03,Wellbeing,I & S DUTTON LTD T/A CAREWATCH,09/01/2015,180
Bath & North East Somerset Council,80421753,LM8,Home Care,P03,Wellbeing,I & S DUTTON LTD T/A CAREWATCH,09/01/2015,252
Bath & North East Somerset Council,80421753,LM8,Home Care,P03,Wellbeing,I & S DUTTON LTD T/A CAREWATCH,09/01/2015,252
Bath & North East Somerset Council,80421753,LM8,Home Care,P03,Wellbeing,I & S DUTTON LTD T/A CAREWATCH,09/01/2015,252
Bath & North East Somerset Council,80421753,LM8,Home Care,P03,Wellbeing,I & S DUTTON LTD T/A CAREWATCH,09/01/2015,252
Bath & North East Somerset Council,80421738,LM8,Home Care,P03,Wellbeing,I & S DUTTON LTD T/A CAREWATCH,09/01/2015,504
Bath & North East Somerset Council,80421738,LM8,Home Care,P03,Wellbeing,I & S DUTTON LTD T/A CAREWATCH,09/01/2015,504
Bath & North East Somerset Council,80421738,LM8,Home Care,P03,Wellbeing,I & S DUTTON LTD T/A CAREWATCH,09/01/2015,504
Bath & North East Somerset Council,80421738,LM8,Home Care,P03,Wellbeing,I & S DUTTON LTD T/A CAREWATCH,09/01/2015,504
Bath & North East Somerset Council,80421749,LM8,Home Care,P03,Wellbeing,I & S DUTTON LTD T/A CAREWATCH,09/01/2015,504
Bath & North East Somerset Council,80421749,LM8,Home Care,P03,Wellbeing,I & S DUTTON LTD T/A CAREWATCH,09/01/2015,504
Bath & North East Somerset Council,80421749,LM8,Home Care,P03,Wellbeing,I & S DUTTON LTD T/A CAREWATCH,09/01/2015,504
Bath & North East Somerset Council,10763524,3N7,Misc. Costs,P01,Transport,VIX TECHNOLOGY LIMITED,09/01/2015,487.5
Bath & North East Somerset Council,80421754,LM8,Home Care,P03,Wellbeing,I & S DUTTON LTD T/A CAREWATCH,09/01/2015,810
Bath & North East Somerset Council,80421754,LM8,Home Care,P03,Wellbeing,I & S DUTTON LTD T/A CAREWATCH,09/01/2015,810
Bath & North East Somerset Council,80421754,LM8,Home Care,P03,Wellbeing,I & S DUTTON LTD T/A CAREWATCH,09/01/2015,810
Bath & North East Somerset Council,80421754,LM8,Home Care,P03,Wellbeing,I & S DUTTON LTD T/A CAREWATCH,09/01/2015,810
Bath & North East Somerset Council,10761656,3C4,Building Works,P05,Neighbourhoods,ANTHONY BROOKES SURVEYS LTD,09/01/2015,490
Bath & North East Somerset Council,80421586,LA7,Purchases for Resale,P06,Sustainable Development,UNEX DESIGNS LTD,09/01/2015,491.78
Bath & North East Somerset Council,10761737,LA4,Equipment Hire/Rent,P05,Neighbourhoods,RENTEQ TM (SOUTH WEST) LTD,09/01/2015,500
Bath & North East Somerset Council,80421711,LM8,Home Care,P03,Wellbeing,KUMARI HOMECARE SERVICE,09/01/2015,0.02
Bath & North East Somerset Council,80421707,LM8,Home Care,P03,Wellbeing,KUMARI HOMECARE SERVICE,09/01/2015,2
Bath & North East Somerset Council,80421708,LM8,Home Care,P03,Wellbeing,KUMARI HOMECARE SERVICE,09/01/2015,2
Bath & North East Somerset Council,80421712,LM8,Home Care,P03,Wellbeing,KUMARI HOMECARE SERVICE,09/01/2015,2
Bath & North East Somerset Council,80421713,LM8,Home Care,P03,Wellbeing,KUMARI HOMECARE SERVICE,09/01/2015,2
Bath & North East Somerset Council,80421715,LM8,Home Care,P03,Wellbeing,KUMARI HOMECARE SERVICE,09/01/2015,2
Bath & North East Somerset Council,80421718,LM8,Home Care,P03,Wellbeing,KUMARI HOMECARE SERVICE,09/01/2015,2
Bath & North East Somerset Council,80421719,LM8,Home Care,P03,Wellbeing,KUMARI HOMECARE SERVICE,09/01/2015,2
Bath & North East Somerset Council,80421721,LM8,Home Care,P03,Wellbeing,KUMARI HOMECARE SERVICE,09/01/2015,2
Bath & North East Somerset Council,80421724,LM8,Home Care,P03,Wellbeing,KUMARI HOMECARE SERVICE,09/01/2015,2
Bath & North East Somerset Council,80421755,LM8,Home Care,P03,Wellbeing,KUMARI HOMECARE SERVICE,09/01/2015,2
Bath & North East Somerset Council,80421756,LM8,Home Care,P03,Wellbeing,KUMARI HOMECARE SERVICE,09/01/2015,2
Bath & North East Somerset Council,80421720,LM8,Home Care,P03,Wellbeing,KUMARI HOMECARE SERVICE,09/01/2015,6.76
Bath & North East Somerset Council,80421714,LM8,Home Care,P03,Wellbeing,KUMARI HOMECARE SERVICE,09/01/2015,48.88
Bath & North East Somerset Council,80421709,LM8,Home Care,P03,Wellbeing,KUMARI HOMECARE SERVICE,09/01/2015,49.88
Bath & North East Somerset Council,80421717,LM8,Home Care,P03,Wellbeing,KUMARI HOMECARE SERVICE,09/01/2015,77.8
Bath & North East Somerset Council,80421755,LM8,Home Care,P03,Wellbeing,KUMARI HOMECARE SERVICE,09/01/2015,94.25
Bath & North East Somerset Council,10763533,LM2,Foster Carer Allowances,P02,"Early Years, Children & Youth",THE LEAVING CARE COMPANY LTD,09/01/2015,513.71
Bath & North East Somerset Council,80421722,LM8,Home Care,P03,Wellbeing,KUMARI HOMECARE SERVICE,09/01/2015,122.89
Bath & North East Somerset Council,80421706,LM8,Home Care,P03,Wellbeing,KUMARI HOMECARE SERVICE,09/01/2015,123.89
Bath & North East Somerset Council,80421611,LM8,Home Care,P03,Wellbeing,KUMARI HOMECARE SERVICE,09/01/2015,188.5
Bath & North East Somerset Council,80421706,LM8,Home Care,P03,Wellbeing,KUMARI HOMECARE SERVICE,09/01/2015,195.44
Bath & North East Somerset Council,80421707,LM8,Home Care,P03,Wellbeing,KUMARI HOMECARE SERVICE,09/01/2015,195.44
Bath & North East Somerset Council,80421708,LM8,Home Care,P03,Wellbeing,KUMARI HOMECARE SERVICE,09/01/2015,195.44
Bath & North East Somerset Council,80421711,LM8,Home Care,P03,Wellbeing,KUMARI HOMECARE SERVICE,09/01/2015,195.44
Bath & North East Somerset Council,80421712,LM8,Home Care,P03,Wellbeing,KUMARI HOMECARE SERVICE,09/01/2015,195.44
Bath & North East Somerset Council,80421713,LM8,Home Care,P03,Wellbeing,KUMARI HOMECARE SERVICE,09/01/2015,195.44
Bath & North East Somerset Council,80421715,LM8,Home Care,P03,Wellbeing,KUMARI HOMECARE SERVICE,09/01/2015,195.44
Bath & North East Somerset Council,80421718,LM8,Home Care,P03,Wellbeing,KUMARI HOMECARE SERVICE,09/01/2015,195.44
Bath & North East Somerset Council,80421719,LM8,Home Care,P03,Wellbeing,KUMARI HOMECARE SERVICE,09/01/2015,195.44
Bath & North East Somerset Council,80421720,LM8,Home Care,P03,Wellbeing,KUMARI HOMECARE SERVICE,09/01/2015,195.44
Bath & North East Somerset Council,80421721,LM8,Home Care,P03,Wellbeing,KUMARI HOMECARE SERVICE,09/01/2015,195.44
Bath & North East Somerset Council,80421722,LM8,Home Care,P03,Wellbeing,KUMARI HOMECARE SERVICE,09/01/2015,195.44
Bath & North East Somerset Council,80421724,LM8,Home Care,P03,Wellbeing,KUMARI HOMECARE SERVICE,09/01/2015,195.44
Bath & North East Somerset Council,80421755,LM8,Home Care,P03,Wellbeing,KUMARI HOMECARE SERVICE,09/01/2015,195.44
Bath & North East Somerset Council,80421756,LM8,Home Care,P03,Wellbeing,KUMARI HOMECARE SERVICE,09/01/2015,195.44
Bath & North East Somerset Council,80421706,LM8,Home Care,P03,Wellbeing,KUMARI HOMECARE SERVICE,09/01/2015,353.64
Bath & North East Somerset Council,80421707,LM8,Home Care,P03,Wellbeing,KUMARI HOMECARE SERVICE,09/01/2015,353.64
Bath & North East Somerset Council,80421708,LM8,Home Care,P03,Wellbeing,KUMARI HOMECARE SERVICE,09/01/2015,353.64
Bath & North East Somerset Council,80421711,LM8,Home Care,P03,Wellbeing,KUMARI HOMECARE SERVICE,09/01/2015,353.64
Bath & North East Somerset Council,80421712,LM8,Home Care,P03,Wellbeing,KUMARI HOMECARE SERVICE,09/01/2015,353.64
Bath & North East Somerset Council,80421713,LM8,Home Care,P03,Wellbeing,KUMARI HOMECARE SERVICE,09/01/2015,353.64
Bath & North East Somerset Council,80421715,LM8,Home Care,P03,Wellbeing,KUMARI HOMECARE SERVICE,09/01/2015,353.64
Bath & North East Somerset Council,80421718,LM8,Home Care,P03,Wellbeing,KUMARI HOMECARE SERVICE,09/01/2015,353.64
Bath & North East Somerset Council,80421719,LM8,Home Care,P03,Wellbeing,KUMARI HOMECARE SERVICE,09/01/2015,353.64
Bath & North East Somerset Council,80421720,LM8,Home Care,P03,Wellbeing,KUMARI HOMECARE SERVICE,09/01/2015,353.64
Bath & North East Somerset Council,80421721,LM8,Home Care,P03,Wellbeing,KUMARI HOMECARE SERVICE,09/01/2015,353.64
Bath & North East Somerset Council,80421722,LM8,Home Care,P03,Wellbeing,KUMARI HOMECARE SERVICE,09/01/2015,353.64
Bath & North East Somerset Council,80421724,LM8,Home Care,P03,Wellbeing,KUMARI HOMECARE SERVICE,09/01/2015,353.64
Bath & North East Somerset Council,80421725,LM8,Home Care,P03,Wellbeing,KUMARI HOMECARE SERVICE,09/01/2015,353.64
Bath & North East Somerset Council,80421755,LM8,Home Care,P03,Wellbeing,KUMARI HOMECARE SERVICE,09/01/2015,353.64
Bath & North East Somerset Council,80421756,LM8,Home Care,P03,Wellbeing,KUMARI HOMECARE SERVICE,09/01/2015,353.64
Bath & North East Somerset Council,80421611,LM8,Home Care,P03,Wellbeing,KUMARI HOMECARE SERVICE,09/01/2015,471.25
Bath & North East Somerset Council,80421706,LM8,Home Care,P03,Wellbeing,KUMARI HOMECARE SERVICE,09/01/2015,471.25
Bath & North East Somerset Council,80421707,LM8,Home Care,P03,Wellbeing,KUMARI HOMECARE SERVICE,09/01/2015,471.25
Bath & North East Somerset Council,80421708,LM8,Home Care,P03,Wellbeing,KUMARI HOMECARE SERVICE,09/01/2015,471.25
Bath & North East Somerset Council,80421711,LM8,Home Care,P03,Wellbeing,KUMARI HOMECARE SERVICE,09/01/2015,471.25
Bath & North East Somerset Council,80421712,LM8,Home Care,P03,Wellbeing,KUMARI HOMECARE SERVICE,09/01/2015,471.25
Bath & North East Somerset Council,80421713,LM8,Home Care,P03,Wellbeing,KUMARI HOMECARE SERVICE,09/01/2015,471.25
Bath & North East Somerset Council,80421715,LM8,Home Care,P03,Wellbeing,KUMARI HOMECARE SERVICE,09/01/2015,471.25
Bath & North East Somerset Council,80421718,LM8,Home Care,P03,Wellbeing,KUMARI HOMECARE SERVICE,09/01/2015,471.25
Bath & North East Somerset Council,80421719,LM8,Home Care,P03,Wellbeing,KUMARI HOMECARE SERVICE,09/01/2015,471.25
Bath & North East Somerset Council,80421720,LM8,Home Care,P03,Wellbeing,KUMARI HOMECARE SERVICE,09/01/2015,471.25
Bath & North East Somerset Council,80421721,LM8,Home Care,P03,Wellbeing,KUMARI HOMECARE SERVICE,09/01/2015,471.25
Bath & North East Somerset Council,80421722,LM8,Home Care,P03,Wellbeing,KUMARI HOMECARE SERVICE,09/01/2015,471.25
Bath & North East Somerset Council,80421724,LM8,Home Care,P03,Wellbeing,KUMARI HOMECARE SERVICE,09/01/2015,471.25
Bath & North East Somerset Council,80421725,LM8,Home Care,P03,Wellbeing,KUMARI HOMECARE SERVICE,09/01/2015,471.25
Bath & North East Somerset Council,80421755,LM8,Home Care,P03,Wellbeing,KUMARI HOMECARE SERVICE,09/01/2015,471.25
Bath & North East Somerset Council,80421756,LM8,Home Care,P03,Wellbeing,KUMARI HOMECARE SERVICE,09/01/2015,471.25
Bath & North East Somerset Council,80421610,LM8,Home Care,P03,Wellbeing,KUMARI HOMECARE SERVICE,09/01/2015,565.5
Bath & North East Somerset Council,80421603,LM8,Home Care,P03,Wellbeing,KUMARI HOMECARE SERVICE,09/01/2015,659.75
Bath & North East Somerset Council,80421604,LM8,Home Care,P03,Wellbeing,KUMARI HOMECARE SERVICE,09/01/2015,659.75
Bath & North East Somerset Council,80421609,LM8,Home Care,P03,Wellbeing,KUMARI HOMECARE SERVICE,09/01/2015,659.75
Bath & North East Somerset Council,80421622,LM8,Home Care,P03,Wellbeing,KUMARI HOMECARE SERVICE,09/01/2015,659.75
Bath & North East Somerset Council,80421633,LM8,Home Care,P03,Wellbeing,KUMARI HOMECARE SERVICE,09/01/2015,659.75
Bath & North East Somerset Council,80421644,LM8,Home Care,P03,Wellbeing,KUMARI HOMECARE SERVICE,09/01/2015,659.75
Bath & North East Somerset Council,80421655,LM8,Home Care,P03,Wellbeing,KUMARI HOMECARE SERVICE,09/01/2015,659.75
Bath & North East Somerset Council,80421666,LM8,Home Care,P03,Wellbeing,KUMARI HOMECARE SERVICE,09/01/2015,659.75
Bath & North East Somerset Council,80421677,LM8,Home Care,P03,Wellbeing,KUMARI HOMECARE SERVICE,09/01/2015,659.75
Bath & North East Somerset Council,80421709,LM8,Home Care,P03,Wellbeing,KUMARI HOMECARE SERVICE,09/01/2015,781.76
Bath & North East Somerset Council,80421714,LM8,Home Care,P03,Wellbeing,KUMARI HOMECARE SERVICE,09/01/2015,781.76
Bath & North East Somerset Council,80421717,LM8,Home Care,P03,Wellbeing,KUMARI HOMECARE SERVICE,09/01/2015,781.76
Bath & North East Somerset Council,80421606,LM8,Home Care,P03,Wellbeing,KUMARI HOMECARE SERVICE,09/01/2015,816.38
Bath & North East Somerset Council,10763421,LX1,Educational Activity,P02,"Early Years, Children & Youth",MR JONATHAN R GILMURRAY,09/01/2015,555
Bath & North East Somerset Council,10763314,LJ1,Consultants Fees,P09,Homes & Planning,LONGBOARD CONSULTING,09/01/2015,3000
Bath & North East Somerset Council,10759201,LF3,Books & Publications,P04,Leader,MIDSOMER NORTON COMMUNITY TRUST,09/01/2015,899
Bath & North East Somerset Council,10763388,3C4,Building Works,P01,Transport,NICHOLAS PEARSON ASSOCIATES,09/01/2015,575
Bath & North East Somerset Council,10763428,LJ1,Consultants Fees,P03,Wellbeing,JANE LAWSON CONSULTANCY,09/01/2015,587
Bath & North East Somerset Council,10762252,LH3,Publicity,P05,Neighbourhoods,FREESTYLE DESIGNS BATH LTD,09/01/2015,597.08
Bath & North East Somerset Council,10762246,3F4,Legal Fees,P07,Community Resources,BNP PARIBAS REAL ESTATE ADVISORY,09/01/2015,612
Bath & North East Somerset Council,10762945,LF5,Postages,P07,Community Resources,WHISTL,09/01/2015,618.52
Bath & North East Somerset Council,80421630,LL3,Supported Living,P03,Wellbeing,NATIONAL AUTISTIC SOCIETY,09/01/2015,0.12
Bath & North East Somerset Council,80421627,LL3,Supported Living,P03,Wellbeing,NATIONAL AUTISTIC SOCIETY,09/01/2015,5.4
Bath & North East Somerset Council,80421616,LL3,Supported Living,P03,Wellbeing,NATIONAL AUTISTIC SOCIETY,09/01/2015,66.23
Bath & North East Somerset Council,80421621,LL3,Supported Living,P03,Wellbeing,NATIONAL AUTISTIC SOCIETY,09/01/2015,261
Bath & North East Somerset Council,80421621,LL3,Supported Living,P03,Wellbeing,NATIONAL AUTISTIC SOCIETY,09/01/2015,261
Bath & North East Somerset Council,80421621,LL3,Supported Living,P03,Wellbeing,NATIONAL AUTISTIC SOCIETY,09/01/2015,261
Bath & North East Somerset Council,80421621,LL3,Supported Living,P03,Wellbeing,NATIONAL AUTISTIC SOCIETY,09/01/2015,261
Bath & North East Somerset Council,80421629,LL3,Supported Living,P03,Wellbeing,NATIONAL AUTISTIC SOCIETY,09/01/2015,284.55
Bath & North East Somerset Council,80421629,LL3,Supported Living,P03,Wellbeing,NATIONAL AUTISTIC SOCIETY,09/01/2015,284.55
Bath & North East Somerset Council,80421629,LL3,Supported Living,P03,Wellbeing,NATIONAL AUTISTIC SOCIETY,09/01/2015,284.55
Bath & North East Somerset Council,80421629,LL3,Supported Living,P03,Wellbeing,NATIONAL AUTISTIC SOCIETY,09/01/2015,284.55
Bath & North East Somerset Council,80421623,LL3,Supported Living,P03,Wellbeing,NATIONAL AUTISTIC SOCIETY,09/01/2015,319.5
Bath & North East Somerset Council,80421623,LL3,Supported Living,P03,Wellbeing,NATIONAL AUTISTIC SOCIETY,09/01/2015,319.5
Bath & North East Somerset Council,80421623,LL3,Supported Living,P03,Wellbeing,NATIONAL AUTISTIC SOCIETY,09/01/2015,319.5
Bath & North East Somerset Council,80421623,LL3,Supported Living,P03,Wellbeing,NATIONAL AUTISTIC SOCIETY,09/01/2015,319.5
Bath & North East Somerset Council,80421628,LL3,Supported Living,P03,Wellbeing,NATIONAL AUTISTIC SOCIETY,09/01/2015,387.76
Bath & North East Somerset Council,80421628,LL3,Supported Living,P03,Wellbeing,NATIONAL AUTISTIC SOCIETY,09/01/2015,387.76
Bath & North East Somerset Council,80421628,LL3,Supported Living,P03,Wellbeing,NATIONAL AUTISTIC SOCIETY,09/01/2015,387.76
Bath & North East Somerset Council,80421628,LL3,Supported Living,P03,Wellbeing,NATIONAL AUTISTIC SOCIETY,09/01/2015,387.76
Bath & North East Somerset Council,80421616,LL3,Supported Living,P03,Wellbeing,NATIONAL AUTISTIC SOCIETY,09/01/2015,548.7
Bath & North East Somerset Council,80421616,LL3,Supported Living,P03,Wellbeing,NATIONAL AUTISTIC SOCIETY,09/01/2015,548.7
Bath & North East Somerset Council,80421616,LL3,Supported Living,P03,Wellbeing,NATIONAL AUTISTIC SOCIETY,09/01/2015,548.7
Bath & North East Somerset Council,80421616,LL3,Supported Living,P03,Wellbeing,NATIONAL AUTISTIC SOCIETY,09/01/2015,548.7
Bath & North East Somerset Council,80421616,LL3,Supported Living,P03,Wellbeing,NATIONAL AUTISTIC SOCIETY,09/01/2015,548.7
Bath & North East Somerset Council,80421616,LL3,Supported Living,P03,Wellbeing,NATIONAL AUTISTIC SOCIETY,09/01/2015,548.7
Bath & North East Somerset Council,80421616,LL3,Supported Living,P03,Wellbeing,NATIONAL AUTISTIC SOCIETY,09/01/2015,548.7
Bath & North East Somerset Council,80421616,LL3,Supported Living,P03,Wellbeing,NATIONAL AUTISTIC SOCIETY,09/01/2015,548.7
Bath & North East Somerset Council,80421616,LL3,Supported Living,P03,Wellbeing,NATIONAL AUTISTIC SOCIETY,09/01/2015,548.7
Bath & North East Somerset Council,80421616,LL3,Supported Living,P03,Wellbeing,NATIONAL AUTISTIC SOCIETY,09/01/2015,548.7
Bath & North East Somerset Council,80421616,LL3,Supported Living,P03,Wellbeing,NATIONAL AUTISTIC SOCIETY,09/01/2015,548.7
Bath & North East Somerset Council,80421616,LL3,Supported Living,P03,Wellbeing,NATIONAL AUTISTIC SOCIETY,09/01/2015,548.7
Bath & North East Somerset Council,80421616,LL3,Supported Living,P03,Wellbeing,NATIONAL AUTISTIC SOCIETY,09/01/2015,548.7
Bath & North East Somerset Council,80421616,LL3,Supported Living,P03,Wellbeing,NATIONAL AUTISTIC SOCIETY,09/01/2015,548.7
Bath & North East Somerset Council,80421616,LL3,Supported Living,P03,Wellbeing,NATIONAL AUTISTIC SOCIETY,09/01/2015,548.7
Bath & North East Somerset Council,80421616,LL3,Supported Living,P03,Wellbeing,NATIONAL AUTISTIC SOCIETY,09/01/2015,548.7
Bath & North East Somerset Council,80421616,LL3,Supported Living,P03,Wellbeing,NATIONAL AUTISTIC SOCIETY,09/01/2015,548.7
Bath & North East Somerset Council,80421616,LL3,Supported Living,P03,Wellbeing,NATIONAL AUTISTIC SOCIETY,09/01/2015,548.7
Bath & North East Somerset Council,80421619,LL3,Supported Living,P03,Wellbeing,NATIONAL AUTISTIC SOCIETY,09/01/2015,548.7
Bath & North East Somerset Council,80421619,LL3,Supported Living,P03,Wellbeing,NATIONAL AUTISTIC SOCIETY,09/01/2015,548.7
Bath & North East Somerset Council,80421619,LL3,Supported Living,P03,Wellbeing,NATIONAL AUTISTIC SOCIETY,09/01/2015,548.7
Bath & North East Somerset Council,80421619,LL3,Supported Living,P03,Wellbeing,NATIONAL AUTISTIC SOCIETY,09/01/2015,548.7
Bath & North East Somerset Council,80421619,LL3,Supported Living,P03,Wellbeing,NATIONAL AUTISTIC SOCIETY,09/01/2015,548.7
Bath & North East Somerset Council,80421619,LL3,Supported Living,P03,Wellbeing,NATIONAL AUTISTIC SOCIETY,09/01/2015,548.7
Bath & North East Somerset Council,80421619,LL3,Supported Living,P03,Wellbeing,NATIONAL AUTISTIC SOCIETY,09/01/2015,548.7
Bath & North East Somerset Council,80421619,LL3,Supported Living,P03,Wellbeing,NATIONAL AUTISTIC SOCIETY,09/01/2015,548.7
Bath & North East Somerset Council,80421619,LL3,Supported Living,P03,Wellbeing,NATIONAL AUTISTIC SOCIETY,09/01/2015,548.7
Bath & North East Somerset Council,80421619,LL3,Supported Living,P03,Wellbeing,NATIONAL AUTISTIC SOCIETY,09/01/2015,548.7
Bath & North East Somerset Council,80421619,LL3,Supported Living,P03,Wellbeing,NATIONAL AUTISTIC SOCIETY,09/01/2015,548.7
Bath & North East Somerset Council,80421619,LL3,Supported Living,P03,Wellbeing,NATIONAL AUTISTIC SOCIETY,09/01/2015,548.7
Bath & North East Somerset Council,80421619,LL3,Supported Living,P03,Wellbeing,NATIONAL AUTISTIC SOCIETY,09/01/2015,548.7
Bath & North East Somerset Council,80421619,LL3,Supported Living,P03,Wellbeing,NATIONAL AUTISTIC SOCIETY,09/01/2015,548.7
Bath & North East Somerset Council,80421619,LL3,Supported Living,P03,Wellbeing,NATIONAL AUTISTIC SOCIETY,09/01/2015,548.7
Bath & North East Somerset Council,80421619,LL3,Supported Living,P03,Wellbeing,NATIONAL AUTISTIC SOCIETY,09/01/2015,548.7
Bath & North East Somerset Council,80421619,LL3,Supported Living,P03,Wellbeing,NATIONAL AUTISTIC SOCIETY,09/01/2015,548.7
Bath & North East Somerset Council,80421619,LL3,Supported Living,P03,Wellbeing,NATIONAL AUTISTIC SOCIETY,09/01/2015,548.7
Bath & North East Somerset Council,80421630,LL3,Supported Living,P03,Wellbeing,NATIONAL AUTISTIC SOCIETY,09/01/2015,1049.41
Bath & North East Somerset Council,80421630,LL3,Supported Living,P03,Wellbeing,NATIONAL AUTISTIC SOCIETY,09/01/2015,1049.41
Bath & North East Somerset Council,80421630,LL3,Supported Living,P03,Wellbeing,NATIONAL AUTISTIC SOCIETY,09/01/2015,1049.41
Bath & North East Somerset Council,80421630,LL3,Supported Living,P03,Wellbeing,NATIONAL AUTISTIC SOCIETY,09/01/2015,1049.41
Bath & North East Somerset Council,80421614,LL3,Supported Living,P03,Wellbeing,NATIONAL AUTISTIC SOCIETY,09/01/2015,1120.15
Bath & North East Somerset Council,80421614,LL3,Supported Living,P03,Wellbeing,NATIONAL AUTISTIC SOCIETY,09/01/2015,1120.15
Bath & North East Somerset Council,80421614,LL3,Supported Living,P03,Wellbeing,NATIONAL AUTISTIC SOCIETY,09/01/2015,1120.15
Bath & North East Somerset Council,80421614,LL3,Supported Living,P03,Wellbeing,NATIONAL AUTISTIC SOCIETY,09/01/2015,1120.15
Bath & North East Somerset Council,80421631,LL3,Supported Living,P03,Wellbeing,NATIONAL AUTISTIC SOCIETY,09/01/2015,1120.15
Bath & North East Somerset Council,80421631,LL3,Supported Living,P03,Wellbeing,NATIONAL AUTISTIC SOCIETY,09/01/2015,1120.15
Bath & North East Somerset Council,80421631,LL3,Supported Living,P03,Wellbeing,NATIONAL AUTISTIC SOCIETY,09/01/2015,1120.15
Bath & North East Somerset Council,80421631,LL3,Supported Living,P03,Wellbeing,NATIONAL AUTISTIC SOCIETY,09/01/2015,1120.15
Bath & North East Somerset Council,80421627,LL3,Supported Living,P03,Wellbeing,NATIONAL AUTISTIC SOCIETY,09/01/2015,1133.53
Bath & North East Somerset Council,80421627,LL3,Supported Living,P03,Wellbeing,NATIONAL AUTISTIC SOCIETY,09/01/2015,1133.53
Bath & North East Somerset Council,80421627,LL3,Supported Living,P03,Wellbeing,NATIONAL AUTISTIC SOCIETY,09/01/2015,1133.53
Bath & North East Somerset Council,80421627,LL3,Supported Living,P03,Wellbeing,NATIONAL AUTISTIC SOCIETY,09/01/2015,1133.53
Bath & North East Somerset Council,80421615,LL3,Supported Living,P03,Wellbeing,NATIONAL AUTISTIC SOCIETY,09/01/2015,1170.15
Bath & North East Somerset Council,80421615,LL3,Supported Living,P03,Wellbeing,NATIONAL AUTISTIC SOCIETY,09/01/2015,1170.15
Bath & North East Somerset Council,80421615,LL3,Supported Living,P03,Wellbeing,NATIONAL AUTISTIC SOCIETY,09/01/2015,1170.15
Bath & North East Somerset Council,80421615,LL3,Supported Living,P03,Wellbeing,NATIONAL AUTISTIC SOCIETY,09/01/2015,1170.15
Bath & North East Somerset Council,80421626,LL3,Supported Living,P03,Wellbeing,NATIONAL AUTISTIC SOCIETY,09/01/2015,1170.15
Bath & North East Somerset Council,80421626,LL3,Supported Living,P03,Wellbeing,NATIONAL AUTISTIC SOCIETY,09/01/2015,1170.15
Bath & North East Somerset Council,80421626,LL3,Supported Living,P03,Wellbeing,NATIONAL AUTISTIC SOCIETY,09/01/2015,1170.15
Bath & North East Somerset Council,80421626,LL3,Supported Living,P03,Wellbeing,NATIONAL AUTISTIC SOCIETY,09/01/2015,1170.15
Bath & North East Somerset Council,80421618,LL3,Supported Living,P03,Wellbeing,NATIONAL AUTISTIC SOCIETY,09/01/2015,1192.99
Bath & North East Somerset Council,80421620,LL3,Supported Living,P03,Wellbeing,NATIONAL AUTISTIC SOCIETY,09/01/2015,1496.59
Bath & North East Somerset Council,80421620,LL3,Supported Living,P03,Wellbeing,NATIONAL AUTISTIC SOCIETY,09/01/2015,1496.59
Bath & North East Somerset Council,80421620,LL3,Supported Living,P03,Wellbeing,NATIONAL AUTISTIC SOCIETY,09/01/2015,1496.59
Bath & North East Somerset Council,80421620,LL3,Supported Living,P03,Wellbeing,NATIONAL AUTISTIC SOCIETY,09/01/2015,1496.59
Bath & North East Somerset Council,80421617,LL3,Supported Living,P03,Wellbeing,NATIONAL AUTISTIC SOCIETY,09/01/2015,1670.19
Bath & North East Somerset Council,80421617,LL3,Supported Living,P03,Wellbeing,NATIONAL AUTISTIC SOCIETY,09/01/2015,1670.19
Bath & North East Somerset Council,80421617,LL3,Supported Living,P03,Wellbeing,NATIONAL AUTISTIC SOCIETY,09/01/2015,1670.19
Bath & North East Somerset Council,80421617,LL3,Supported Living,P03,Wellbeing,NATIONAL AUTISTIC SOCIETY,09/01/2015,1670.19
Bath & North East Somerset Council,80421617,LL3,Supported Living,P03,Wellbeing,NATIONAL AUTISTIC SOCIETY,09/01/2015,1670.19
Bath & North East Somerset Council,80421617,LL3,Supported Living,P03,Wellbeing,NATIONAL AUTISTIC SOCIETY,09/01/2015,1670.19
Bath & North East Somerset Council,80421617,LL3,Supported Living,P03,Wellbeing,NATIONAL AUTISTIC SOCIETY,09/01/2015,1670.19
Bath & North East Somerset Council,80421617,LL3,Supported Living,P03,Wellbeing,NATIONAL AUTISTIC SOCIETY,09/01/2015,1670.19
Bath & North East Somerset Council,80421617,LL3,Supported Living,P03,Wellbeing,NATIONAL AUTISTIC SOCIETY,09/01/2015,1670.19
Bath & North East Somerset Council,80421617,LL3,Supported Living,P03,Wellbeing,NATIONAL AUTISTIC SOCIETY,09/01/2015,1670.19
Bath & North East Somerset Council,80421617,LL3,Supported Living,P03,Wellbeing,NATIONAL AUTISTIC SOCIETY,09/01/2015,1670.19
Bath & North East Somerset Council,80421617,LL3,Supported Living,P03,Wellbeing,NATIONAL AUTISTIC SOCIETY,09/01/2015,1670.19
Bath & North East Somerset Council,80421617,LL3,Supported Living,P03,Wellbeing,NATIONAL AUTISTIC SOCIETY,09/01/2015,1670.19
Bath & North East Somerset Council,80421617,LL3,Supported Living,P03,Wellbeing,NATIONAL AUTISTIC SOCIETY,09/01/2015,1670.19
Bath & North East Somerset Council,80421617,LL3,Supported Living,P03,Wellbeing,NATIONAL AUTISTIC SOCIETY,09/01/2015,1670.19
Bath & North East Somerset Council,80421617,LL3,Supported Living,P03,Wellbeing,NATIONAL AUTISTIC SOCIETY,09/01/2015,1670.19
Bath & North East Somerset Council,80421617,LL3,Supported Living,P03,Wellbeing,NATIONAL AUTISTIC SOCIETY,09/01/2015,1670.19
Bath & North East Somerset Council,80421617,LL3,Supported Living,P03,Wellbeing,NATIONAL AUTISTIC SOCIETY,09/01/2015,1670.19
Bath & North East Somerset Council,80421618,LL3,Supported Living,P03,Wellbeing,NATIONAL AUTISTIC SOCIETY,09/01/2015,1670.19
Bath & North East Somerset Council,80421618,LL3,Supported Living,P03,Wellbeing,NATIONAL AUTISTIC SOCIETY,09/01/2015,1670.19
Bath & North East Somerset Council,80421618,LL3,Supported Living,P03,Wellbeing,NATIONAL AUTISTIC SOCIETY,09/01/2015,1670.19
Bath & North East Somerset Council,80421618,LL3,Supported Living,P03,Wellbeing,NATIONAL AUTISTIC SOCIETY,09/01/2015,1670.19
Bath & North East Somerset Council,80421618,LL3,Supported Living,P03,Wellbeing,NATIONAL AUTISTIC SOCIETY,09/01/2015,1670.19
Bath & North East Somerset Council,80421618,LL3,Supported Living,P03,Wellbeing,NATIONAL AUTISTIC SOCIETY,09/01/2015,1670.19
Bath & North East Somerset Council,80421618,LL3,Supported Living,P03,Wellbeing,NATIONAL AUTISTIC SOCIETY,09/01/2015,1670.19
Bath & North East Somerset Council,80421618,LL3,Supported Living,P03,Wellbeing,NATIONAL AUTISTIC SOCIETY,09/01/2015,1670.19
Bath & North East Somerset Council,80421618,LL3,Supported Living,P03,Wellbeing,NATIONAL AUTISTIC SOCIETY,09/01/2015,1670.19
Bath & North East Somerset Council,80421618,LL3,Supported Living,P03,Wellbeing,NATIONAL AUTISTIC SOCIETY,09/01/2015,1670.19
Bath & North East Somerset Council,80421618,LL3,Supported Living,P03,Wellbeing,NATIONAL AUTISTIC SOCIETY,09/01/2015,1670.19
Bath & North East Somerset Council,80421618,LL3,Supported Living,P03,Wellbeing,NATIONAL AUTISTIC SOCIETY,09/01/2015,1670.19
Bath & North East Somerset Council,80421618,LL3,Supported Living,P03,Wellbeing,NATIONAL AUTISTIC SOCIETY,09/01/2015,1670.19
Bath & North East Somerset Council,80421618,LL3,Supported Living,P03,Wellbeing,NATIONAL AUTISTIC SOCIETY,09/01/2015,1670.19
Bath & North East Somerset Council,80421618,LL3,Supported Living,P03,Wellbeing,NATIONAL AUTISTIC SOCIETY,09/01/2015,1670.19
Bath & North East Somerset Council,80421618,LL3,Supported Living,P03,Wellbeing,NATIONAL AUTISTIC SOCIETY,09/01/2015,1670.19
Bath & North East Somerset Council,80421618,LL3,Supported Living,P03,Wellbeing,NATIONAL AUTISTIC SOCIETY,09/01/2015,1670.19
Bath & North East Somerset Council,80421625,LL3,Supported Living,P03,Wellbeing,NATIONAL AUTISTIC SOCIETY,09/01/2015,2192.59
Bath & North East Somerset Council,80421625,LL3,Supported Living,P03,Wellbeing,NATIONAL AUTISTIC SOCIETY,09/01/2015,2192.59
Bath & North East Somerset Council,80421625,LL3,Supported Living,P03,Wellbeing,NATIONAL AUTISTIC SOCIETY,09/01/2015,2192.59
Bath & North East Somerset Council,80421625,LL3,Supported Living,P03,Wellbeing,NATIONAL AUTISTIC SOCIETY,09/01/2015,2192.59
Bath & North East Somerset Council,80421624,LL3,Supported Living,P03,Wellbeing,NATIONAL AUTISTIC SOCIETY,09/01/2015,2923.2
Bath & North East Somerset Council,80421624,LL3,Supported Living,P03,Wellbeing,NATIONAL AUTISTIC SOCIETY,09/01/2015,2923.2
Bath & North East Somerset Council,80421624,LL3,Supported Living,P03,Wellbeing,NATIONAL AUTISTIC SOCIETY,09/01/2015,2923.2
Bath & North East Somerset Council,80421624,LL3,Supported Living,P03,Wellbeing,NATIONAL AUTISTIC SOCIETY,09/01/2015,2923.2
Bath & North East Somerset Council,80421613,LL3,Supported Living,P03,Wellbeing,NATIONAL AUTISTIC SOCIETY,09/01/2015,4480.6
Bath & North East Somerset Council,80421728,LM8,Home Care,P03,Wellbeing,NURSING SOLUTIONS LIMITED,09/01/2015,71.32
Bath & North East Somerset Council,80421728,LM8,Home Care,P03,Wellbeing,NURSING SOLUTIONS LIMITED,09/01/2015,116
Bath & North East Somerset Council,80421729,LM8,Home Care,P03,Wellbeing,NURSING SOLUTIONS LIMITED,09/01/2015,116
Bath & North East Somerset Council,80421728,LM8,Home Care,P03,Wellbeing,NURSING SOLUTIONS LIMITED,09/01/2015,1552
Bath & North East Somerset Council,80421729,LM8,Home Care,P03,Wellbeing,NURSING SOLUTIONS LIMITED,09/01/2015,1552
Bath & North East Somerset Council,10761613,4M1,Committee Workshops,,,HILTON BATH CITY,09/01/2015,678.13
Bath & North East Somerset Council,80421580,LA7,Purchases for Resale,P06,Sustainable Development,ROMAN CANDLES OF BATH LTD,09/01/2015,718.56
Bath & North East Somerset Council,80421582,LA7,Purchases for Resale,P06,Sustainable Development,SOMERSET TOILETRY COMPANY LTD,09/01/2015,738
Bath & North East Somerset Council,10763519,LJ4,Contracts,P01,Transport,MARIAN CALINOIU,09/01/2015,750
Bath & North East Somerset Council,10762352,LM2,Foster Carer Allowances,P02,"Early Years, Children & Youth",SWIIS FOSTER CARE LTD,09/01/2015,765
Bath & North East Somerset Council,10762847,LJ4,Contracts,P01,Transport,MR C A HIGGS T/A LIBRA TRAVEL,09/01/2015,774.2
Bath & North East Somerset Council,80421660,LL3,Supported Living,P03,Wellbeing,PRESTIGE NURSING HEALTHCARE,09/01/2015,0.11
Bath & North East Somerset Council,80421730,LM8,Home Care,P03,Wellbeing,PRESTIGE NURSING HEALTHCARE,09/01/2015,139.82
Bath & North East Somerset Council,80421661,LL3,Supported Living,P03,Wellbeing,PRESTIGE NURSING HEALTHCARE,09/01/2015,250.33
Bath & North East Somerset Council,80421662,LL3,Supported Living,P03,Wellbeing,PRESTIGE NURSING HEALTHCARE,09/01/2015,2488.94
Bath & North East Somerset Council,80421660,LL3,Supported Living,P03,Wellbeing,PRESTIGE NURSING HEALTHCARE,09/01/2015,2590.45
Bath & North East Somerset Council,80421661,LL3,Supported Living,P03,Wellbeing,PRESTIGE NURSING HEALTHCARE,09/01/2015,2855.37
Bath & North East Somerset Council,80421730,LM8,Home Care,P03,Wellbeing,PRESTIGE NURSING HEALTHCARE,09/01/2015,4034
Bath & North East Somerset Council,80421731,LM8,Home Care,P03,Wellbeing,PRESTIGE NURSING HEALTHCARE,09/01/2015,4034
Bath & North East Somerset Council,80421698,LL3,Supported Living,P03,Wellbeing,PULSE HEALTHCARE LTD,09/01/2015,20
Bath & North East Somerset Council,80421698,LL3,Supported Living,P03,Wellbeing,PULSE HEALTHCARE LTD,09/01/2015,622.83
Bath & North East Somerset Council,80421657,LL3,Supported Living,P03,Wellbeing,QUARRIERS,09/01/2015,232.01
Bath & North East Somerset Council,80421657,LL3,Supported Living,P03,Wellbeing,QUARRIERS,09/01/2015,232.01
Bath & North East Somerset Council,80421657,LL3,Supported Living,P03,Wellbeing,QUARRIERS,09/01/2015,232.01
Bath & North East Somerset Council,80421657,LL3,Supported Living,P03,Wellbeing,QUARRIERS,09/01/2015,853.97
Bath & North East Somerset Council,80421736,LM8,Home Care,P03,Wellbeing,ROBERT SAGE LTD T/A PRESTIGE NURSING PAYROLL,09/01/2015,1338.4
Bath & North East Somerset Council,10762848,LJ4,Contracts,P01,Transport,MR C A HIGGS T/A LIBRA TRAVEL,09/01/2015,810
Bath & North East Somerset Council,80421634,LM8,Home Care,P03,Wellbeing,SAFE & SOUND HOMECARE SERVICES,09/01/2015,30.5
Bath & North East Somerset Council,10762825,LJ4,Contracts,P01,Transport,MR C A HIGGS T/A LIBRA TRAVEL,09/01/2015,891
Bath & North East Somerset Council,80421632,LM8,Home Care,P03,Wellbeing,SAFE & SOUND HOMECARE SERVICES,09/01/2015,273.5
Bath & North East Somerset Council,80421632,LM8,Home Care,P03,Wellbeing,SAFE & SOUND HOMECARE SERVICES,09/01/2015,273.5
Bath & North East Somerset Council,80421632,LM8,Home Care,P03,Wellbeing,SAFE & SOUND HOMECARE SERVICES,09/01/2015,273.5
Bath & North East Somerset Council,80421632,LM8,Home Care,P03,Wellbeing,SAFE & SOUND HOMECARE SERVICES,09/01/2015,273.5
Bath & North East Somerset Council,80421632,LM8,Home Care,P03,Wellbeing,SAFE & SOUND HOMECARE SERVICES,09/01/2015,273.5
Bath & North East Somerset Council,80421635,LM8,Home Care,P03,Wellbeing,SAFE & SOUND HOMECARE SERVICES,09/01/2015,273.5
Bath & North East Somerset Council,80421635,LM8,Home Care,P03,Wellbeing,SAFE & SOUND HOMECARE SERVICES,09/01/2015,273.5
Bath & North East Somerset Council,80421635,LM8,Home Care,P03,Wellbeing,SAFE & SOUND HOMECARE SERVICES,09/01/2015,273.5
Bath & North East Somerset Council,80421635,LM8,Home Care,P03,Wellbeing,SAFE & SOUND HOMECARE SERVICES,09/01/2015,273.5
Bath & North East Somerset Council,80421634,LM8,Home Care,P03,Wellbeing,SAFE & SOUND HOMECARE SERVICES,09/01/2015,299
Bath & North East Somerset Council,80421634,LM8,Home Care,P03,Wellbeing,SAFE & SOUND HOMECARE SERVICES,09/01/2015,299
Bath & North East Somerset Council,80421634,LM8,Home Care,P03,Wellbeing,SAFE & SOUND HOMECARE SERVICES,09/01/2015,299
Bath & North East Somerset Council,80421634,LM8,Home Care,P03,Wellbeing,SAFE & SOUND HOMECARE SERVICES,09/01/2015,299
Bath & North East Somerset Council,80421634,LM8,Home Care,P03,Wellbeing,SAFE & SOUND HOMECARE SERVICES,09/01/2015,299
Bath & North East Somerset Council,10760475,LJ1,Consultants Fees,P07,Community Resources,V1 LTD,09/01/2015,950
Bath & North East Somerset Council,10761464,EA1,Training,P09,Homes & Planning,CHRIS CROFT TRAINING LTD,09/01/2015,960
Bath & North East Somerset Council,80421638,LL3,Supported Living,P03,Wellbeing,SENSE,09/01/2015,120.6
Bath & North East Somerset Council,80421638,LL3,Supported Living,P03,Wellbeing,SENSE,09/01/2015,120.6
Bath & North East Somerset Council,80421638,LL3,Supported Living,P03,Wellbeing,SENSE,09/01/2015,120.6
Bath & North East Somerset Council,80421638,LL3,Supported Living,P03,Wellbeing,SENSE,09/01/2015,120.6
Bath & North East Somerset Council,80421638,LL3,Supported Living,P03,Wellbeing,SENSE,09/01/2015,120.6
Bath & North East Somerset Council,10762425,DB1,Agency Staff,P01,Transport,WATERMAN ASPEN,09/01/2015,1040
Bath & North East Somerset Council,80421587,LA7,Purchases for Resale,P06,Sustainable Development,F H SWIFT,09/01/2015,1078.8
Bath & North East Somerset Council,10761780,HA4,Responsive Maintenance PCB,P07,Community Resources,N K S CONTRACTS LTD,09/01/2015,1108.14
Bath & North East Somerset Council,10763480,EA1,Training,P03,Wellbeing,UNIVERSITY OF THE WEST OF ENGL,09/01/2015,1130
Bath & North East Somerset Council,10762826,LJ4,Contracts,P01,Transport,MR C A HIGGS T/A LIBRA TRAVEL,09/01/2015,1226.1
Bath & North East Somerset Council,10763305,LX1,Educational Activity,P02,"Early Years, Children & Youth",JESSICA GREGORY,09/01/2015,1260
Bath & North East Somerset Council,10762229,DB1,Agency Staff,P04,Leader,RITA E STEWART,09/01/2015,1413.33
Bath & North East Somerset Council,80421577,LA7,Purchases for Resale,P06,Sustainable Development,FIKKERTS LTD,09/01/2015,1455
Bath & North East Somerset Council,80421705,LM8,Home Care,P03,Wellbeing,STAR HOME CARE SERVICES LIMITED,09/01/2015,89.35
Bath & North East Somerset Council,80421705,LM8,Home Care,P03,Wellbeing,STAR HOME CARE SERVICES LIMITED,09/01/2015,524.03
Bath & North East Somerset Council,80421752,LM8,Home Care,P03,Wellbeing,REDACTED,09/01/2015,120.05
Bath & North East Somerset Council,80421752,LM8,Home Care,P03,Wellbeing,REDACTED,09/01/2015,120.05
Bath & North East Somerset Council,80421752,LM8,Home Care,P03,Wellbeing,REDACTED,09/01/2015,120.05
Bath & North East Somerset Council,80421752,LM8,Home Care,P03,Wellbeing,REDACTED,09/01/2015,120.05
Bath & North East Somerset Council,80421752,LM8,Home Care,P03,Wellbeing,REDACTED,09/01/2015,120.05
Bath & North East Somerset Council,10762123,HA6,Planned Maintenance PCB,P07,Community Resources,N K S CONTRACTS LTD,09/01/2015,1569.26
Bath & North East Somerset Council,10762776,LM1,Volunt Homes Placements Top/Up,P02,"Early Years, Children & Youth",AMICUS FOSTER CARE LIMITED,09/01/2015,1571.57
Bath & North East Somerset Council,80421583,LA7,Purchases for Resale,P06,Sustainable Development,SUPERIOR CREATIVE,09/01/2015,1600
Bath & North East Somerset Council,10761740,3J2,Consultants,P09,Homes & Planning,E3 CONSULTING ENGINEERS LLP,09/01/2015,1662.5
Bath & North East Somerset Council,10762824,LJ4,Contracts,P01,Transport,MR C A HIGGS T/A LIBRA TRAVEL,09/01/2015,1666.8
Bath & North East Somerset Council,10762827,LJ4,Contracts,P01,Transport,MR C A HIGGS T/A LIBRA TRAVEL,09/01/2015,1689.6
Bath & North East Somerset Council,80421648,LL3,Supported Living,P03,Wellbeing,SUPPORTED INDEPENDENCE,09/01/2015,468.59
Bath & North East Somerset Council,80421648,LL3,Supported Living,P03,Wellbeing,SUPPORTED INDEPENDENCE,09/01/2015,468.59
Bath & North East Somerset Council,80421648,LL3,Supported Living,P03,Wellbeing,SUPPORTED INDEPENDENCE,09/01/2015,468.59
Bath & North East Somerset Council,80421648,LL3,Supported Living,P03,Wellbeing,SUPPORTED INDEPENDENCE,09/01/2015,468.59
Bath & North East Somerset Council,10762763,3J2,Consultants,P07,Community Resources,DIANA HATTON,09/01/2015,2000
Bath & North East Somerset Council,10763420,LJ1,Consultants Fees,P03,Wellbeing,FRASER HEAD,09/01/2015,2205
Bath & North East Somerset Council,80421645,LL3,Supported Living,P03,Wellbeing,THE BRANDON TRUST,09/01/2015,0.16
Bath & North East Somerset Council,80421646,LL3,Supported Living,P03,Wellbeing,THE BRANDON TRUST,09/01/2015,110.79
Bath & North East Somerset Council,80421646,LL3,Supported Living,P03,Wellbeing,THE BRANDON TRUST,09/01/2015,110.79
Bath & North East Somerset Council,80421646,LL3,Supported Living,P03,Wellbeing,THE BRANDON TRUST,09/01/2015,110.79
Bath & North East Somerset Council,80421646,LL3,Supported Living,P03,Wellbeing,THE BRANDON TRUST,09/01/2015,110.79
Bath & North East Somerset Council,80421646,LL3,Supported Living,P03,Wellbeing,THE BRANDON TRUST,09/01/2015,110.79
Bath & North East Somerset Council,10762835,LV2,Contributions to Organisations,P09,Homes & Planning,COTSWOLDS CONSERVATION BOARD,09/01/2015,2286
Bath & North East Somerset Council,10762849,LJ4,Contracts,P01,Transport,MR C A HIGGS T/A LIBRA TRAVEL,09/01/2015,2312.7
Bath & North East Somerset Council,80421645,LL3,Supported Living,P03,Wellbeing,THE BRANDON TRUST,09/01/2015,165.64
Bath & North East Somerset Council,80421645,LL3,Supported Living,P03,Wellbeing,THE BRANDON TRUST,09/01/2015,165.64
Bath & North East Somerset Council,80421645,LL3,Supported Living,P03,Wellbeing,THE BRANDON TRUST,09/01/2015,165.64
Bath & North East Somerset Council,80421645,LL3,Supported Living,P03,Wellbeing,THE BRANDON TRUST,09/01/2015,165.64
Bath & North East Somerset Council,80421647,LL3,Supported Living,P03,Wellbeing,THE BRANDON TRUST,09/01/2015,165.68
Bath & North East Somerset Council,80421647,LL3,Supported Living,P03,Wellbeing,THE BRANDON TRUST,09/01/2015,165.68
Bath & North East Somerset Council,80421647,LL3,Supported Living,P03,Wellbeing,THE BRANDON TRUST,09/01/2015,165.68
Bath & North East Somerset Council,80421647,LL3,Supported Living,P03,Wellbeing,THE BRANDON TRUST,09/01/2015,165.68
Bath & North East Somerset Council,80421701,LM9,Day Care,P03,Wellbeing,THE BRANDON TRUST,09/01/2015,246
Bath & North East Somerset Council,80421701,LM9,Day Care,P03,Wellbeing,THE BRANDON TRUST,09/01/2015,246
Bath & North East Somerset Council,80421701,LM9,Day Care,P03,Wellbeing,THE BRANDON TRUST,09/01/2015,246
Bath & North East Somerset Council,80421703,LM9,Day Care,P03,Wellbeing,THE BRANDON TRUST,09/01/2015,246
Bath & North East Somerset Council,80421703,LM9,Day Care,P03,Wellbeing,THE BRANDON TRUST,09/01/2015,246
Bath & North East Somerset Council,80421703,LM9,Day Care,P03,Wellbeing,THE BRANDON TRUST,09/01/2015,246
Bath & North East Somerset Council,80421703,LM9,Day Care,P03,Wellbeing,THE BRANDON TRUST,09/01/2015,246
Bath & North East Somerset Council,80421589,LA7,Purchases for Resale,P06,Sustainable Development,YARTO EUROPE LTD,09/01/2015,2449.44
Bath & North East Somerset Council,10759858,LF6,Subscriptions,P01,Transport,DEVON COUNTY COUNCIL,09/01/2015,2500
Bath & North East Somerset Council,10763418,3F7,External Fees,P06,Sustainable Development,WOLSELEY UK LTD,09/01/2015,2699.3
Bath & North East Somerset Council,10762978,3F7,External Fees,P07,Community Resources,SCREEN SOLUTIONS,09/01/2015,2745.6
Bath & North East Somerset Council,10763365,LJ3,Other Services to the Council,Z98,West of England Partnership,GWE BUSINESS WEST LTD,09/01/2015,2751.37
Bath & North East Somerset Council,10763381,LJ4,Contracts,P01,Transport,MCC-PATROL,09/01/2015,3180.65
Bath & North East Somerset Council,10763474,LJ4,Contracts,P02,"Early Years, Children & Youth",BATH AREA PLAY PROJECT,09/01/2015,3250
Bath & North East Somerset Council,10762134,3N7,Misc. Costs,P05,Neighbourhoods,TOM LEDBURY,09/01/2015,3290
Bath & North East Somerset Council,10762805,LM2,Foster Carer Allowances,P02,"Early Years, Children & Youth",AMICUS FOSTER CARE LIMITED,09/01/2015,3353.92
Bath & North East Somerset Council,10762778,LM2,Foster Carer Allowances,P02,"Early Years, Children & Youth",AMICUS FOSTER CARE LIMITED,09/01/2015,3631.42
Bath & North East Somerset Council,10762780,LM2,Foster Carer Allowances,P02,"Early Years, Children & Youth",AMICUS FOSTER CARE LIMITED,09/01/2015,3631.42
Bath & North East Somerset Council,10763535,LM2,Foster Carer Allowances,P02,"Early Years, Children & Youth",FOSTERING MATTERS LTD,09/01/2015,3903.57
Bath & North East Somerset Council,10762606,HE1,General Maintenance,P07,Community Resources,BATH BAKERY,09/01/2015,4137.69
Bath & North East Somerset Council,10762317,LJ1,Consultants Fees,P07,Community Resources,BEVAN BRITTAN,09/01/2015,4383.5
Bath & North East Somerset Council,10763536,LM2,Foster Carer Allowances,P02,"Early Years, Children & Youth",ENHANCED FOSTER CARE LTD,09/01/2015,4557
Bath & North East Somerset Council,10762777,LM2,Foster Carer Allowances,P02,"Early Years, Children & Youth",AMICUS FOSTER CARE LIMITED,09/01/2015,4659.87
Bath & North East Somerset Council,10762759,LJ4,Contracts,P03,Wellbeing,SIRONA CARE SERVICES LTD,09/01/2015,4666.67
Bath & North East Somerset Council,10762779,LM2,Foster Carer Allowances,P02,"Early Years, Children & Youth",AMICUS FOSTER CARE LIMITED,09/01/2015,5130.98
Bath & North East Somerset Council,10762168,DB1,Agency Staff,P05,Neighbourhoods,CAPITA SYMONDS,09/01/2015,6734.5
Bath & North East Somerset Council,10763315,3F7,External Fees,P01,Transport,HALCROW GROUP LTD,09/01/2015,7111.16
Bath & North East Somerset Council,10763380,LV1,Grants to Voluntary Bodies,P04,Leader,DARREN EVANS ASSESSMENTS,09/01/2015,7125
Bath & North East Somerset Council,10762754,LJ4,Contracts,P03,Wellbeing,SIRONA CARE SERVICES LTD,09/01/2015,9209.92
Bath & North East Somerset Council,10761379,HE1,General Maintenance,P01,Transport,VAISALA LTD,09/01/2015,9295.58
Bath & North East Somerset Council,10762472,LK1,Fees,,,DHL SUPPLY CHAIN LTD,09/01/2015,9794
Bath & North East Somerset Council,10763379,LJ4,Contracts,P02,"Early Years, Children & Youth",GLOBAL MEDIATION,09/01/2015,11500
Bath & North East Somerset Council,10762703,LJ4,Contracts,P03,Wellbeing,SIRONA CARE SERVICES LTD,09/01/2015,14000
Bath & North East Somerset Council,10762785,LM1,Volunt Homes Placements Top/Up,P02,"Early Years, Children & Youth",SERENDIPITY (DEVON) LTD,09/01/2015,14110
Bath & North East Somerset Council,10762568,LJ1,Consultants Fees,P09,Homes & Planning,GVA GRIMLEY LLP,09/01/2015,16330
Bath & North East Somerset Council,10760405,LM2,Foster Carer Allowances,P02,"Early Years, Children & Youth",SPORTFIT,09/01/2015,16800
Bath & North East Somerset Council,10763247,3F7,External Fees,P07,Community Resources,FABTECH WELDING & FABRICATION LTD,09/01/2015,18106
Bath & North East Somerset Council,10763128,LM1,Volunt Homes Placements Top/Up,P02,"Early Years, Children & Youth",SERENDIPITY (DEVON) LTD,09/01/2015,18171.43
Bath & North East Somerset Council,10763409,LJ4,Contracts,P02,"Early Years, Children & Youth",SOUTHSIDE FAMILY PROJECT,09/01/2015,25000
Bath & North East Somerset Council,10763142,3F7,External Fees,P01,Transport,ARTORIUS FABER,09/01/2015,27532.48
Bath & North East Somerset Council,10762857,DB1,Agency Staff,P07,Community Resources,COMENSURA LTD,09/01/2015,31789.72
Bath & North East Somerset Council,80422228,LL8,Individualised Budget,P03,Wellbeing,REDACTED,12/01/2015,926.2
Bath & North East Somerset Council,80422228,LL8,Individualised Budget,P03,Wellbeing,REDACTED,12/01/2015,926.2
Bath & North East Somerset Council,80422006,LM3,Residential Care,P03,Wellbeing,ANCHOR TRUST,12/01/2015,71.43
Bath & North East Somerset Council,80422006,LM3,Residential Care,P03,Wellbeing,ANCHOR TRUST,12/01/2015,142.86
Bath & North East Somerset Council,80422006,LM3,Residential Care,P03,Wellbeing,ANCHOR TRUST,12/01/2015,500
Bath & North East Somerset Council,80422006,LM3,Residential Care,P03,Wellbeing,ANCHOR TRUST,12/01/2015,500
Bath & North East Somerset Council,80422218,LL8,Individualised Budget,P03,Wellbeing,REDACTED,12/01/2015,324.62
Bath & North East Somerset Council,80422218,LL8,Individualised Budget,P03,Wellbeing,REDACTED,12/01/2015,324.62
Bath & North East Somerset Council,80422146,LL8,Individualised Budget,P03,Wellbeing,REDACTED,12/01/2015,346.5
Bath & North East Somerset Council,80422146,LL8,Individualised Budget,P03,Wellbeing,REDACTED,12/01/2015,346.5
Bath & North East Somerset Council,80422283,LL4,Direct Payments,P03,Wellbeing,REDACTED,12/01/2015,2265.35
Bath & North East Somerset Council,80422283,LL4,Direct Payments,P03,Wellbeing,REDACTED,12/01/2015,2265.35
Bath & North East Somerset Council,80422002,LL3,Supported Living,P03,Wellbeing,ARCH CARE SERVICES,12/01/2015,72
Bath & North East Somerset Council,80422002,LL3,Supported Living,P03,Wellbeing,ARCH CARE SERVICES,12/01/2015,72
Bath & North East Somerset Council,80422002,LL3,Supported Living,P03,Wellbeing,ARCH CARE SERVICES,12/01/2015,90
Bath & North East Somerset Council,80422002,LL3,Supported Living,P03,Wellbeing,ARCH CARE SERVICES,12/01/2015,90
Bath & North East Somerset Council,80422002,LL3,Supported Living,P03,Wellbeing,ARCH CARE SERVICES,12/01/2015,121.43
Bath & North East Somerset Council,80422002,LL3,Supported Living,P03,Wellbeing,ARCH CARE SERVICES,12/01/2015,135
Bath & North East Somerset Council,80422002,LL3,Supported Living,P03,Wellbeing,ARCH CARE SERVICES,12/01/2015,135
Bath & North East Somerset Council,80422002,LL3,Supported Living,P03,Wellbeing,ARCH CARE SERVICES,12/01/2015,252.5
Bath & North East Somerset Council,80422002,LL3,Supported Living,P03,Wellbeing,ARCH CARE SERVICES,12/01/2015,252.5
Bath & North East Somerset Council,80422002,LL3,Supported Living,P03,Wellbeing,ARCH CARE SERVICES,12/01/2015,278.76
Bath & North East Somerset Council,80422002,LL3,Supported Living,P03,Wellbeing,ARCH CARE SERVICES,12/01/2015,278.76
Bath & North East Somerset Council,80422002,LL3,Supported Living,P03,Wellbeing,ARCH CARE SERVICES,12/01/2015,312
Bath & North East Somerset Council,80422002,LL3,Supported Living,P03,Wellbeing,ARCH CARE SERVICES,12/01/2015,312
Bath & North East Somerset Council,80422002,LL3,Supported Living,P03,Wellbeing,ARCH CARE SERVICES,12/01/2015,321
Bath & North East Somerset Council,80422002,LL3,Supported Living,P03,Wellbeing,ARCH CARE SERVICES,12/01/2015,321
Bath & North East Somerset Council,80422002,LL3,Supported Living,P03,Wellbeing,ARCH CARE SERVICES,12/01/2015,330
Bath & North East Somerset Council,80422002,LL3,Supported Living,P03,Wellbeing,ARCH CARE SERVICES,12/01/2015,330
Bath & North East Somerset Council,80422002,LL3,Supported Living,P03,Wellbeing,ARCH CARE SERVICES,12/01/2015,346.43
Bath & North East Somerset Council,80422002,LL3,Supported Living,P03,Wellbeing,ARCH CARE SERVICES,12/01/2015,346.43
Bath & North East Somerset Council,80422002,LL3,Supported Living,P03,Wellbeing,ARCH CARE SERVICES,12/01/2015,425
Bath & North East Somerset Council,80422002,LL3,Supported Living,P03,Wellbeing,ARCH CARE SERVICES,12/01/2015,425
Bath & North East Somerset Council,80422002,LL3,Supported Living,P03,Wellbeing,ARCH CARE SERVICES,12/01/2015,425
Bath & North East Somerset Council,80422002,LL3,Supported Living,P03,Wellbeing,ARCH CARE SERVICES,12/01/2015,425
Bath & North East Somerset Council,80422002,LL3,Supported Living,P03,Wellbeing,ARCH CARE SERVICES,12/01/2015,425
Bath & North East Somerset Council,80422002,LL3,Supported Living,P03,Wellbeing,ARCH CARE SERVICES,12/01/2015,425
Bath & North East Somerset Council,80422002,LL3,Supported Living,P03,Wellbeing,ARCH CARE SERVICES,12/01/2015,425
Bath & North East Somerset Council,80422002,LL3,Supported Living,P03,Wellbeing,ARCH CARE SERVICES,12/01/2015,425
Bath & North East Somerset Council,80422002,LL3,Supported Living,P03,Wellbeing,ARCH CARE SERVICES,12/01/2015,425
Bath & North East Somerset Council,80422002,LL3,Supported Living,P03,Wellbeing,ARCH CARE SERVICES,12/01/2015,425
Bath & North East Somerset Council,80422002,LL3,Supported Living,P03,Wellbeing,ARCH CARE SERVICES,12/01/2015,425
Bath & North East Somerset Council,80422002,LL3,Supported Living,P03,Wellbeing,ARCH CARE SERVICES,12/01/2015,425
Bath & North East Somerset Council,80422002,LL3,Supported Living,P03,Wellbeing,ARCH CARE SERVICES,12/01/2015,425
Bath & North East Somerset Council,80422002,LL3,Supported Living,P03,Wellbeing,ARCH CARE SERVICES,12/01/2015,425
Bath & North East Somerset Council,80422002,LL3,Supported Living,P03,Wellbeing,ARCH CARE SERVICES,12/01/2015,425
Bath & North East Somerset Council,80422002,LL3,Supported Living,P03,Wellbeing,ARCH CARE SERVICES,12/01/2015,425
Bath & North East Somerset Council,80422002,LL3,Supported Living,P03,Wellbeing,ARCH CARE SERVICES,12/01/2015,425
Bath & North East Somerset Council,80422002,LL3,Supported Living,P03,Wellbeing,ARCH CARE SERVICES,12/01/2015,425
Bath & North East Somerset Council,80422002,LL3,Supported Living,P03,Wellbeing,ARCH CARE SERVICES,12/01/2015,425
Bath & North East Somerset Council,80422002,LL3,Supported Living,P03,Wellbeing,ARCH CARE SERVICES,12/01/2015,425
Bath & North East Somerset Council,80422002,LL3,Supported Living,P03,Wellbeing,ARCH CARE SERVICES,12/01/2015,425
Bath & North East Somerset Council,80422002,LL3,Supported Living,P03,Wellbeing,ARCH CARE SERVICES,12/01/2015,425
Bath & North East Somerset Council,80422002,LL3,Supported Living,P03,Wellbeing,ARCH CARE SERVICES,12/01/2015,425
Bath & North East Somerset Council,80422002,LL3,Supported Living,P03,Wellbeing,ARCH CARE SERVICES,12/01/2015,425
Bath & North East Somerset Council,80422002,LL3,Supported Living,P03,Wellbeing,ARCH CARE SERVICES,12/01/2015,425
Bath & North East Somerset Council,80422002,LL3,Supported Living,P03,Wellbeing,ARCH CARE SERVICES,12/01/2015,425
Bath & North East Somerset Council,80422002,LL3,Supported Living,P03,Wellbeing,ARCH CARE SERVICES,12/01/2015,425
Bath & North East Somerset Council,80422002,LL3,Supported Living,P03,Wellbeing,ARCH CARE SERVICES,12/01/2015,425
Bath & North East Somerset Council,80422002,LL3,Supported Living,P03,Wellbeing,ARCH CARE SERVICES,12/01/2015,425
Bath & North East Somerset Council,80422002,LL3,Supported Living,P03,Wellbeing,ARCH CARE SERVICES,12/01/2015,425
Bath & North East Somerset Council,80422002,LL3,Supported Living,P03,Wellbeing,ARCH CARE SERVICES,12/01/2015,425
Bath & North East Somerset Council,80422002,LL3,Supported Living,P03,Wellbeing,ARCH CARE SERVICES,12/01/2015,425
Bath & North East Somerset Council,80422002,LL3,Supported Living,P03,Wellbeing,ARCH CARE SERVICES,12/01/2015,425
Bath & North East Somerset Council,80422002,LL3,Supported Living,P03,Wellbeing,ARCH CARE SERVICES,12/01/2015,425
Bath & North East Somerset Council,80422002,LL3,Supported Living,P03,Wellbeing,ARCH CARE SERVICES,12/01/2015,425
Bath & North East Somerset Council,80422002,LL3,Supported Living,P03,Wellbeing,ARCH CARE SERVICES,12/01/2015,425
Bath & North East Somerset Council,80422002,LL3,Supported Living,P03,Wellbeing,ARCH CARE SERVICES,12/01/2015,425
Bath & North East Somerset Council,80422002,LL3,Supported Living,P03,Wellbeing,ARCH CARE SERVICES,12/01/2015,425
Bath & North East Somerset Council,80422002,LL3,Supported Living,P03,Wellbeing,ARCH CARE SERVICES,12/01/2015,425
Bath & North East Somerset Council,80422002,LL3,Supported Living,P03,Wellbeing,ARCH CARE SERVICES,12/01/2015,425
Bath & North East Somerset Council,80422002,LL3,Supported Living,P03,Wellbeing,ARCH CARE SERVICES,12/01/2015,425
Bath & North East Somerset Council,80422002,LL3,Supported Living,P03,Wellbeing,ARCH CARE SERVICES,12/01/2015,425
Bath & North East Somerset Council,80422002,LL3,Supported Living,P03,Wellbeing,ARCH CARE SERVICES,12/01/2015,425
Bath & North East Somerset Council,80422002,LL3,Supported Living,P03,Wellbeing,ARCH CARE SERVICES,12/01/2015,425
Bath & North East Somerset Council,80422002,LL3,Supported Living,P03,Wellbeing,ARCH CARE SERVICES,12/01/2015,425
Bath & North East Somerset Council,80422002,LL3,Supported Living,P03,Wellbeing,ARCH CARE SERVICES,12/01/2015,425
Bath & North East Somerset Council,80422002,LL3,Supported Living,P03,Wellbeing,ARCH CARE SERVICES,12/01/2015,425
Bath & North East Somerset Council,80422002,LL3,Supported Living,P03,Wellbeing,ARCH CARE SERVICES,12/01/2015,425
Bath & North East Somerset Council,80422002,LL3,Supported Living,P03,Wellbeing,ARCH CARE SERVICES,12/01/2015,425
Bath & North East Somerset Council,80422002,LL3,Supported Living,P03,Wellbeing,ARCH CARE SERVICES,12/01/2015,425
Bath & North East Somerset Council,80421973,LM6,Nursing Care,P03,Wellbeing,ARCH CARE SERVICES,12/01/2015,427
Bath & North East Somerset Council,80421973,LM6,Nursing Care,P03,Wellbeing,ARCH CARE SERVICES,12/01/2015,427
Bath & North East Somerset Council,80422002,LL3,Supported Living,P03,Wellbeing,ARCH CARE SERVICES,12/01/2015,431.27
Bath & North East Somerset Council,80422002,LL3,Supported Living,P03,Wellbeing,ARCH CARE SERVICES,12/01/2015,431.27
Bath & North East Somerset Council,80422002,LL3,Supported Living,P03,Wellbeing,ARCH CARE SERVICES,12/01/2015,445
Bath & North East Somerset Council,80422002,LL3,Supported Living,P03,Wellbeing,ARCH CARE SERVICES,12/01/2015,445
Bath & North East Somerset Council,80422274,LM6,Nursing Care,P03,Wellbeing,BARCHESTER HEALTH CARE,12/01/2015,110.89
Bath & North East Somerset Council,80422274,LM6,Nursing Care,P03,Wellbeing,BARCHESTER HEALTH CARE,12/01/2015,110.89
Bath & North East Somerset Council,80422274,LM6,Nursing Care,P03,Wellbeing,BARCHESTER HEALTH CARE,12/01/2015,110.89
Bath & North East Somerset Council,80422274,LM6,Nursing Care,P03,Wellbeing,BARCHESTER HEALTH CARE,12/01/2015,110.89
Bath & North East Somerset Council,80422274,LM6,Nursing Care,P03,Wellbeing,BARCHESTER HEALTH CARE,12/01/2015,110.89
Bath & North East Somerset Council,80422274,LM6,Nursing Care,P03,Wellbeing,BARCHESTER HEALTH CARE,12/01/2015,110.89
Bath & North East Somerset Council,80422274,LM6,Nursing Care,P03,Wellbeing,BARCHESTER HEALTH CARE,12/01/2015,110.89
Bath & North East Somerset Council,80422274,LM6,Nursing Care,P03,Wellbeing,BARCHESTER HEALTH CARE,12/01/2015,110.89
Bath & North East Somerset Council,80422274,LM6,Nursing Care,P03,Wellbeing,BARCHESTER HEALTH CARE,12/01/2015,110.89
Bath & North East Somerset Council,80422274,LM6,Nursing Care,P03,Wellbeing,BARCHESTER HEALTH CARE,12/01/2015,110.89
Bath & North East Somerset Council,80422274,LM6,Nursing Care,P03,Wellbeing,BARCHESTER HEALTH CARE,12/01/2015,110.89
Bath & North East Somerset Council,80422274,LM6,Nursing Care,P03,Wellbeing,BARCHESTER HEALTH CARE,12/01/2015,110.89
Bath & North East Somerset Council,80422274,LM6,Nursing Care,P03,Wellbeing,BARCHESTER HEALTH CARE,12/01/2015,110.89
Bath & North East Somerset Council,80422274,LM6,Nursing Care,P03,Wellbeing,BARCHESTER HEALTH CARE,12/01/2015,110.89
Bath & North East Somerset Council,80422274,LM6,Nursing Care,P03,Wellbeing,BARCHESTER HEALTH CARE,12/01/2015,110.89
Bath & North East Somerset Council,80422274,LM6,Nursing Care,P03,Wellbeing,BARCHESTER HEALTH CARE,12/01/2015,110.89
Bath & North East Somerset Council,80422274,LM6,Nursing Care,P03,Wellbeing,BARCHESTER HEALTH CARE,12/01/2015,110.89
Bath & North East Somerset Council,80422274,LM6,Nursing Care,P03,Wellbeing,BARCHESTER HEALTH CARE,12/01/2015,110.89
Bath & North East Somerset Council,80422274,LM6,Nursing Care,P03,Wellbeing,BARCHESTER HEALTH CARE,12/01/2015,110.89
Bath & North East Somerset Council,80422274,LM6,Nursing Care,P03,Wellbeing,BARCHESTER HEALTH CARE,12/01/2015,110.89
Bath & North East Somerset Council,80422274,LM6,Nursing Care,P03,Wellbeing,BARCHESTER HEALTH CARE,12/01/2015,110.89
Bath & North East Somerset Council,80422274,LM6,Nursing Care,P03,Wellbeing,BARCHESTER HEALTH CARE,12/01/2015,110.89
Bath & North East Somerset Council,80422274,LM6,Nursing Care,P03,Wellbeing,BARCHESTER HEALTH CARE,12/01/2015,110.89
Bath & North East Somerset Council,80422274,LM6,Nursing Care,P03,Wellbeing,BARCHESTER HEALTH CARE,12/01/2015,110.89
Bath & North East Somerset Council,80422274,LM6,Nursing Care,P03,Wellbeing,BARCHESTER HEALTH CARE,12/01/2015,110.89
Bath & North East Somerset Council,80422274,LM6,Nursing Care,P03,Wellbeing,BARCHESTER HEALTH CARE,12/01/2015,110.89
Bath & North East Somerset Council,80422274,LM6,Nursing Care,P03,Wellbeing,BARCHESTER HEALTH CARE,12/01/2015,110.89
Bath & North East Somerset Council,80422274,LM6,Nursing Care,P03,Wellbeing,BARCHESTER HEALTH CARE,12/01/2015,110.89
Bath & North East Somerset Council,80422274,LM6,Nursing Care,P03,Wellbeing,BARCHESTER HEALTH CARE,12/01/2015,110.89
Bath & North East Somerset Council,80422274,LM6,Nursing Care,P03,Wellbeing,BARCHESTER HEALTH CARE,12/01/2015,110.89
Bath & North East Somerset Council,80422274,LM6,Nursing Care,P03,Wellbeing,BARCHESTER HEALTH CARE,12/01/2015,110.89
Bath & North East Somerset Council,80422274,LM6,Nursing Care,P03,Wellbeing,BARCHESTER HEALTH CARE,12/01/2015,110.89
Bath & North East Somerset Council,80422274,LM6,Nursing Care,P03,Wellbeing,BARCHESTER HEALTH CARE,12/01/2015,110.89
Bath & North East Somerset Council,80422274,LM6,Nursing Care,P03,Wellbeing,BARCHESTER HEALTH CARE,12/01/2015,110.89
Bath & North East Somerset Council,80422274,LM6,Nursing Care,P03,Wellbeing,BARCHESTER HEALTH CARE,12/01/2015,110.89
Bath & North East Somerset Council,80422274,LM6,Nursing Care,P03,Wellbeing,BARCHESTER HEALTH CARE,12/01/2015,110.89
Bath & North East Somerset Council,80422274,LM6,Nursing Care,P03,Wellbeing,BARCHESTER HEALTH CARE,12/01/2015,110.89
Bath & North East Somerset Council,80422274,LM6,Nursing Care,P03,Wellbeing,BARCHESTER HEALTH CARE,12/01/2015,110.89
Bath & North East Somerset Council,80422274,LM6,Nursing Care,P03,Wellbeing,BARCHESTER HEALTH CARE,12/01/2015,110.89
Bath & North East Somerset Council,80422274,LM6,Nursing Care,P03,Wellbeing,BARCHESTER HEALTH CARE,12/01/2015,110.89
Bath & North East Somerset Council,80422274,LM6,Nursing Care,P03,Wellbeing,BARCHESTER HEALTH CARE,12/01/2015,110.89
Bath & North East Somerset Council,80422274,LM6,Nursing Care,P03,Wellbeing,BARCHESTER HEALTH CARE,12/01/2015,110.89
Bath & North East Somerset Council,80422274,LM6,Nursing Care,P03,Wellbeing,BARCHESTER HEALTH CARE,12/01/2015,110.89
Bath & North East Somerset Council,80422274,LM6,Nursing Care,P03,Wellbeing,BARCHESTER HEALTH CARE,12/01/2015,110.89
Bath & North East Somerset Council,80421987,LM6,Nursing Care,P03,Wellbeing,BARCHESTER HEALTH CARE,12/01/2015,993
Bath & North East Somerset Council,80421987,LM6,Nursing Care,P03,Wellbeing,BARCHESTER HEALTH CARE,12/01/2015,993
Bath & North East Somerset Council,80421987,LM6,Nursing Care,P03,Wellbeing,BARCHESTER HEALTH CARE,12/01/2015,1050
Bath & North East Somerset Council,80421987,LM6,Nursing Care,P03,Wellbeing,BARCHESTER HEALTH CARE,12/01/2015,1050
Bath & North East Somerset Council,80422258,LM6,Nursing Care,P03,Wellbeing,BARCHESTER HEALTHCARE HOMES LTD,12/01/2015,110.89
Bath & North East Somerset Council,80422258,LM6,Nursing Care,P03,Wellbeing,BARCHESTER HEALTHCARE HOMES LTD,12/01/2015,110.89
Bath & North East Somerset Council,80422258,LM6,Nursing Care,P03,Wellbeing,BARCHESTER HEALTHCARE HOMES LTD,12/01/2015,110.89
Bath & North East Somerset Council,80422258,LM6,Nursing Care,P03,Wellbeing,BARCHESTER HEALTHCARE HOMES LTD,12/01/2015,110.89
Bath & North East Somerset Council,80422258,LM6,Nursing Care,P03,Wellbeing,BARCHESTER HEALTHCARE HOMES LTD,12/01/2015,110.89
Bath & North East Somerset Council,80422258,LM6,Nursing Care,P03,Wellbeing,BARCHESTER HEALTHCARE HOMES LTD,12/01/2015,110.89
Bath & North East Somerset Council,80422258,LM6,Nursing Care,P03,Wellbeing,BARCHESTER HEALTHCARE HOMES LTD,12/01/2015,110.89
Bath & North East Somerset Council,80422258,LM6,Nursing Care,P03,Wellbeing,BARCHESTER HEALTHCARE HOMES LTD,12/01/2015,110.89
Bath & North East Somerset Council,80422258,LM6,Nursing Care,P03,Wellbeing,BARCHESTER HEALTHCARE HOMES LTD,12/01/2015,110.89
Bath & North East Somerset Council,80422258,LM6,Nursing Care,P03,Wellbeing,BARCHESTER HEALTHCARE HOMES LTD,12/01/2015,110.89
Bath & North East Somerset Council,80422258,LM6,Nursing Care,P03,Wellbeing,BARCHESTER HEALTHCARE HOMES LTD,12/01/2015,110.89
Bath & North East Somerset Council,80422258,LM6,Nursing Care,P03,Wellbeing,BARCHESTER HEALTHCARE HOMES LTD,12/01/2015,110.89
Bath & North East Somerset Council,80422258,LM6,Nursing Care,P03,Wellbeing,BARCHESTER HEALTHCARE HOMES LTD,12/01/2015,110.89
Bath & North East Somerset Council,80422258,LM6,Nursing Care,P03,Wellbeing,BARCHESTER HEALTHCARE HOMES LTD,12/01/2015,110.89
Bath & North East Somerset Council,80422258,LM6,Nursing Care,P03,Wellbeing,BARCHESTER HEALTHCARE HOMES LTD,12/01/2015,110.89
Bath & North East Somerset Council,80422258,LM6,Nursing Care,P03,Wellbeing,BARCHESTER HEALTHCARE HOMES LTD,12/01/2015,110.89
Bath & North East Somerset Council,80422258,LM6,Nursing Care,P03,Wellbeing,BARCHESTER HEALTHCARE HOMES LTD,12/01/2015,110.89
Bath & North East Somerset Council,80422258,LM6,Nursing Care,P03,Wellbeing,BARCHESTER HEALTHCARE HOMES LTD,12/01/2015,110.89
Bath & North East Somerset Council,80422258,LM6,Nursing Care,P03,Wellbeing,BARCHESTER HEALTHCARE HOMES LTD,12/01/2015,110.89
Bath & North East Somerset Council,80422258,LM6,Nursing Care,P03,Wellbeing,BARCHESTER HEALTHCARE HOMES LTD,12/01/2015,110.89
Bath & North East Somerset Council,80422258,LM6,Nursing Care,P03,Wellbeing,BARCHESTER HEALTHCARE HOMES LTD,12/01/2015,110.89
Bath & North East Somerset Council,80422258,LM6,Nursing Care,P03,Wellbeing,BARCHESTER HEALTHCARE HOMES LTD,12/01/2015,110.89
Bath & North East Somerset Council,80422258,LM6,Nursing Care,P03,Wellbeing,BARCHESTER HEALTHCARE HOMES LTD,12/01/2015,110.89
Bath & North East Somerset Council,80422258,LM6,Nursing Care,P03,Wellbeing,BARCHESTER HEALTHCARE HOMES LTD,12/01/2015,110.89
Bath & North East Somerset Council,80422258,LM6,Nursing Care,P03,Wellbeing,BARCHESTER HEALTHCARE HOMES LTD,12/01/2015,110.89
Bath & North East Somerset Council,80422258,LM6,Nursing Care,P03,Wellbeing,BARCHESTER HEALTHCARE HOMES LTD,12/01/2015,110.89
Bath & North East Somerset Council,80422258,LM6,Nursing Care,P03,Wellbeing,BARCHESTER HEALTHCARE HOMES LTD,12/01/2015,110.89
Bath & North East Somerset Council,80422258,LM6,Nursing Care,P03,Wellbeing,BARCHESTER HEALTHCARE HOMES LTD,12/01/2015,110.89
Bath & North East Somerset Council,80422258,LM6,Nursing Care,P03,Wellbeing,BARCHESTER HEALTHCARE HOMES LTD,12/01/2015,110.89
Bath & North East Somerset Council,80422258,LM6,Nursing Care,P03,Wellbeing,BARCHESTER HEALTHCARE HOMES LTD,12/01/2015,110.89
Bath & North East Somerset Council,80422258,LM6,Nursing Care,P03,Wellbeing,BARCHESTER HEALTHCARE HOMES LTD,12/01/2015,110.89
Bath & North East Somerset Council,80422258,LM6,Nursing Care,P03,Wellbeing,BARCHESTER HEALTHCARE HOMES LTD,12/01/2015,110.89
Bath & North East Somerset Council,80422258,LM6,Nursing Care,P03,Wellbeing,BARCHESTER HEALTHCARE HOMES LTD,12/01/2015,110.89
Bath & North East Somerset Council,80422258,LM6,Nursing Care,P03,Wellbeing,BARCHESTER HEALTHCARE HOMES LTD,12/01/2015,110.89
Bath & North East Somerset Council,80422258,LM6,Nursing Care,P03,Wellbeing,BARCHESTER HEALTHCARE HOMES LTD,12/01/2015,110.89
Bath & North East Somerset Council,80422258,LM6,Nursing Care,P03,Wellbeing,BARCHESTER HEALTHCARE HOMES LTD,12/01/2015,110.89
Bath & North East Somerset Council,80422258,LM6,Nursing Care,P03,Wellbeing,BARCHESTER HEALTHCARE HOMES LTD,12/01/2015,110.89
Bath & North East Somerset Council,80422258,LM6,Nursing Care,P03,Wellbeing,BARCHESTER HEALTHCARE HOMES LTD,12/01/2015,110.89
Bath & North East Somerset Council,80422258,LM6,Nursing Care,P03,Wellbeing,BARCHESTER HEALTHCARE HOMES LTD,12/01/2015,110.89
Bath & North East Somerset Council,80422258,LM6,Nursing Care,P03,Wellbeing,BARCHESTER HEALTHCARE HOMES LTD,12/01/2015,110.89
Bath & North East Somerset Council,80422258,LM6,Nursing Care,P03,Wellbeing,BARCHESTER HEALTHCARE HOMES LTD,12/01/2015,110.89
Bath & North East Somerset Council,80422258,LM6,Nursing Care,P03,Wellbeing,BARCHESTER HEALTHCARE HOMES LTD,12/01/2015,110.89
Bath & North East Somerset Council,80422258,LM6,Nursing Care,P03,Wellbeing,BARCHESTER HEALTHCARE HOMES LTD,12/01/2015,110.89
Bath & North East Somerset Council,80422258,LM6,Nursing Care,P03,Wellbeing,BARCHESTER HEALTHCARE HOMES LTD,12/01/2015,110.89
Bath & North East Somerset Council,80422258,LM6,Nursing Care,P03,Wellbeing,BARCHESTER HEALTHCARE HOMES LTD,12/01/2015,110.89
Bath & North East Somerset Council,80422258,LM6,Nursing Care,P03,Wellbeing,BARCHESTER HEALTHCARE HOMES LTD,12/01/2015,110.89
Bath & North East Somerset Council,80422258,LM6,Nursing Care,P03,Wellbeing,BARCHESTER HEALTHCARE HOMES LTD,12/01/2015,110.89
Bath & North East Somerset Council,80422258,LM6,Nursing Care,P03,Wellbeing,BARCHESTER HEALTHCARE HOMES LTD,12/01/2015,110.89
Bath & North East Somerset Council,80422258,LM6,Nursing Care,P03,Wellbeing,BARCHESTER HEALTHCARE HOMES LTD,12/01/2015,110.89
Bath & North East Somerset Council,80422258,LM6,Nursing Care,P03,Wellbeing,BARCHESTER HEALTHCARE HOMES LTD,12/01/2015,110.89
Bath & North East Somerset Council,80422258,LM6,Nursing Care,P03,Wellbeing,BARCHESTER HEALTHCARE HOMES LTD,12/01/2015,110.89
Bath & North East Somerset Council,80422258,LM6,Nursing Care,P03,Wellbeing,BARCHESTER HEALTHCARE HOMES LTD,12/01/2015,110.89
Bath & North East Somerset Council,80422258,LM6,Nursing Care,P03,Wellbeing,BARCHESTER HEALTHCARE HOMES LTD,12/01/2015,110.89
Bath & North East Somerset Council,80422258,LM6,Nursing Care,P03,Wellbeing,BARCHESTER HEALTHCARE HOMES LTD,12/01/2015,110.89
Bath & North East Somerset Council,80422258,LM6,Nursing Care,P03,Wellbeing,BARCHESTER HEALTHCARE HOMES LTD,12/01/2015,110.89
Bath & North East Somerset Council,80422258,LM6,Nursing Care,P03,Wellbeing,BARCHESTER HEALTHCARE HOMES LTD,12/01/2015,110.89
Bath & North East Somerset Council,80422258,LM6,Nursing Care,P03,Wellbeing,BARCHESTER HEALTHCARE HOMES LTD,12/01/2015,110.89
Bath & North East Somerset Council,80422258,LM6,Nursing Care,P03,Wellbeing,BARCHESTER HEALTHCARE HOMES LTD,12/01/2015,110.89
Bath & North East Somerset Council,80422258,LM6,Nursing Care,P03,Wellbeing,BARCHESTER HEALTHCARE HOMES LTD,12/01/2015,110.89
Bath & North East Somerset Council,80422258,LM6,Nursing Care,P03,Wellbeing,BARCHESTER HEALTHCARE HOMES LTD,12/01/2015,110.89
Bath & North East Somerset Council,80422258,LM6,Nursing Care,P03,Wellbeing,BARCHESTER HEALTHCARE HOMES LTD,12/01/2015,110.89
Bath & North East Somerset Council,80422258,LM6,Nursing Care,P03,Wellbeing,BARCHESTER HEALTHCARE HOMES LTD,12/01/2015,110.89
Bath & North East Somerset Council,80422258,LM6,Nursing Care,P03,Wellbeing,BARCHESTER HEALTHCARE HOMES LTD,12/01/2015,110.89
Bath & North East Somerset Council,80422258,LM6,Nursing Care,P03,Wellbeing,BARCHESTER HEALTHCARE HOMES LTD,12/01/2015,110.89
Bath & North East Somerset Council,80422258,LM6,Nursing Care,P03,Wellbeing,BARCHESTER HEALTHCARE HOMES LTD,12/01/2015,110.89
